Workbook

Sheet AER only (hidden)
B1: Data in this worksheet is used for data validation and database purposes.
B2: Date last modified:
B3: 14 April 2015 | C3: merged cell C46/47
B4: 17 April 2015 | C4: adjusted dms_RYE to automate based on dms_Model (NB: EB & CA refer to CRCP_y5)
B5: 14 May 2015 | C5: adapted this cover for use in CA & EB RINs
B7: October 2015 | C7: added full Trading Name for worksheet headings
B8: USES NAMED RANGES FLAG | C8: yes
B9: dms_Model_List | C9: dms_Worksheet_List | E9: dms_RYE_Formula_Result
B10: ARR | C10: REGULATORY REPORTING STATEMENT | E10: =LEFT(CRY,2)&RIGHT(CRY,2) -> 2016
B11: CA | C11: CATEGORY ANALYSIS | E11: =LEFT(CRY,2)&RIGHT(CRY,2) -> 2016
B12: CAM/Service change Backcast | C12: REGULATORY REPORTING STATEMENT | E12: =LEFT(dms_FRCP_FinalYear_Num,2)&RIGHT(dms_FRCP_FinalYear_Num,2) -> 2021
B13: CPI | C13: CPI
B14: EB | C14: ECONOMIC BENCHMARKING | E14: =LEFT(CRY,2)&RIGHT(CRY,2) -> 2016
B15: PTRM | C15: POST TAX REVENUE MODEL | E15: =LEFT(dms_FRCP_FinalYear_Num,2)&RIGHT(dms_FRCP_FinalYear_Num,2) -> 2021
B16: Reset | C16: REGULATORY REPORTING STATEMENT | E16: =LEFT(dms_FRCP_FinalYear_Num,2)&RIGHT(dms_FRCP_FinalYear_Num,2) -> 2021
B17: RFM | C17: ROLL FORWARD MODEL | E17: =LEFT(dms_CRCP_FinalYear_Num,2)&RIGHT(dms_CRCP_FinalYear_Num,2) -> 2015
B18: WACC | C18: WEIGHTED AVERAGE COST OF CAPITAL
N19: Feeder Types | R19: TasNetworks (D)
N20: CBD | O20: Urban | P20: Short rural | Q20: long rural | R20: EXTRA
B21: dms_TradingName_List | C21: dms_TradingNameFull_List | D21: dms_ABN_List | E21: dms_State_List | F21: dms_Sector_List | G21: dms_Segment_List | H21: dms_FormControl_List | I21: dms_CRCPlength_List | J21: dms_FRCPlength_List | K21: dms_JurisdictionList | L21: dms_663_List | M21: dms_DeterminationRef_List | N21: dms_CBD_flag | O21: dms_Urban_flag | P21: dms_ShortRural_flag | Q21: dms_LongRural_flag | R21: dms_FeederType_5_flag | S21: dms_FeederName_1 | T21: dms_FeederName_2 | U21: dms_FeederName_3 | V21: dms_FeederName_4 | W21: dms_FeederName_5
B22: ActewAGL Distribution | C22: ActewAGL Distribution | D22: 76670568688 | E22: ACT | F22: Electricity | G22: Distribution | H22: Revenue cap | I22: 5 | J22: 6 | K22: ACT | L22: 5 | M22: 2014-19 Distribution Determination | N22: NO | O22: YES | P22: YES | Q22: NO | R22: NO | S22: CBD | T22: Urban | U22: Short rural | V22: Long rural
B23: ActewAGL Distribution (Tx Assets) | C23: ActewAGL Distribution (Tx Assets) | D23: 76670568688 | E23: ACT | F23: Electricity | G23: Distribution | H23: Revenue cap | I23: 5 | J23: 5 | K23: ACT | L23: 5 | M23: distribution determination | S23: CBD | T23: Urban | U23: Short rural | V23: Long rural
B24: AGN | C24: AGN | D24: 78551685 | E24: SA | F24: Gas | G24: Distribution | H24: Revenue cap | I24: 5 | J24: 5 | K24: SA | L24: 5 | M24: distribution determination | S24: CBD | T24: Urban | U24: Short rural | V24: Long rural
B25: Ausgrid | C25: Ausgrid | D25: 67505337385 | E25: NSW | F25: Electricity | G25: Distribution | H25: Revenue cap | I25: 5 | J25: 5 | K25: NSW | L25: 5 | M25: 2014-19 Distribution Determination | N25: YES | O25: YES | P25: YES | Q25: YES | R25: NO | S25: CBD | T25: Urban | U25: Short rural | V25: Long rural
B26: Ausgrid (Tx Assets) | C26: Ausgrid (Tx Assets) | D26: 67505337385 | E26: NSW | F26: Electricity | G26: Distribution | H26: Revenue cap | I26: 5 | J26: 5 | K26: NSW | L26: 5 | M26: distribution determination | S26: CBD | T26: Urban | U26: Short rural | V26: Long rural
B27: AusNet (D) | C27: AusNet Electricity Services | D27: 91064651118 | E27: Vic | F27: Electricity | G27: Distribution | H27: Revenue cap | I27: 5 | J27: 5 | K27: Vic | L27: 2 | M27: 2016-20 Distribution Determination | N27: NO | O27: YES | P27: YES | Q27: YES | R27: NO | S27: CBD | T27: Urban | U27: Short rural | V27: Long rural
B28: AusNet (T) | C28: AusNet (T) | D28: 48116124362 | E28: Vic | F28: Electricity | G28: Transmission | H28: Revenue cap | I28: 5 | J28: 5 | K28: Vic | L28: 2 | M28: distribution determination | S28: CBD | T28: Urban | U28: Short rural | V28: Long rural
B29: Australian Distribution Co. | C29: Australian Distribution Co. | D29: 11222333444 | E29: - | F29: Electricity | G29: Distribution | H29: Revenue cap | I29: 5 | J29: 5 | K29: NSW | L29: 2 | M29: distribution determination | S29: CBD | T29: Urban | U29: Short rural | V29: Long rural
B30: Australian Transmission Co. | C30: Australian Transmission Co. | D30: 11222333444 | E30: - | F30: Electricity | G30: Transmission | H30: Revenue cap | I30: 5 | J30: 5 | K30: Vic | L30: 5 | M30: distribution determination | S30: CBD | T30: Urban | U30: Short rural | V30: Long rural
B31: CitiPower | C31: CitiPower | D31: 76064651056 | E31: Vic | F31: Electricity | G31: Distribution | H31: Revenue cap | I31: 5 | J31: 5 | K31: Vic | L31: 2 | M31: 2016-20 Distribution Determination | N31: YES | O31: YES | P31: NO | Q31: NO | R31: NO | S31: CBD | T31: Urban | U31: Short rural | V31: Long rural
B32: Directlink | C32: Directlink | D32: 16779340889 | E32: NSW | F32: Electricity | G32: Transmission | H32: Revenue cap | I32: 10 | J32: 5 | K32: Qld | L32: 5 | M32: distribution determination | S32: CBD | T32: Urban | U32: Short rural | V32: Long rural
B33: ElectraNet | C33: ElectraNet | D33: 41094482416 | E33: SA | F33: Electricity | G33: Transmission | H33: Revenue cap | I33: 5 | J33: 5 | K33: SA | L33: 5 | M33: distribution determination | S33: CBD | T33: Urban | U33: Short rural | V33: Long rural
B34: Endeavour Energy | C34: Endeavour Energy | D34: 59253130878 | E34: NSW | F34: Electricity | G34: Distribution | H34: Revenue cap | I34: 5 | J34: 5 | K34: NSW | L34: 5 | M34: 2014-19 Distribution Determination | N34: NO | O34: YES | P34: YES | Q34: YES | R34: NO | S34: CBD | T34: Urban | U34: Short rural | V34: Long rural
B35: Energex | C35: Energex | D35: 40078849055 | E35: Qld | F35: Electricity | G35: Distribution | H35: Revenue cap | I35: 5 | J35: 5 | K35: Qld | L35: 5 | M35: 2015-20 Distribution Determination | N35: YES | O35: YES | P35: YES | Q35: NO | R35: NO | S35: CBD | T35: Urban | U35: Short rural | V35: Long rural
B36: Ergon Energy | C36: Ergon Energy | D36: 50087646062 | E36: Qld | F36: Electricity | G36: Distribution | H36: Revenue cap | I36: 5 | J36: 5 | K36: Qld | L36: 5 | M36: 2015-20 Distribution Determination | N36: NO | O36: YES | P36: YES | Q36: YES | R36: NO | S36: CBD | T36: Urban | U36: Short rural | V36: Long rural
B37: Essential Energy | C37: Essential Energy | D37: 37428185226 | E37: NSW | F37: Electricity | G37: Distribution | H37: Revenue cap | I37: 5 | J37: 5 | K37: NSW | L37: 5 | M37: 2014-19 Distribution Determination | N37: NO | O37: YES | P37: YES | Q37: YES | R37: NO | S37: CBD | T37: Urban | U37: Short rural | V37: Long rural
B38: Jemena Electricity | C38: Jemena Electricity | D38: 82064651083 | E38: Vic | F38: Electricity | G38: Distribution | H38: Revenue cap | I38: 5 | J38: 5 | K38: Vic | L38: 2 | M38: 2016-20 Distribution Determination | N38: NO | O38: YES | P38: YES | Q38: NO | R38: NO | S38: CBD | T38: Urban | U38: Short rural | V38: Long rural
B39: Murraylink | C39: Murraylink | D39: 79181207909 | E39: NSW | F39: Electricity | G39: Transmission | H39: Revenue cap | I39: 5 | J39: 5 | K39: SA | L39: 5 | M39: distribution determination | S39: CBD | T39: Urban | U39: Short rural | V39: Long rural
B40: Powercor Australia | C40: Powercor Australia | D40: 89064651109 | E40: Vic | F40: Electricity | G40: Distribution | H40: Revenue cap | I40: 5 | J40: 5 | K40: Vic | L40: 2 | M40: 2016-20 Distribution Determination | N40: NO | O40: YES | P40: YES | Q40: YES | R40: NO | S40: CBD | T40: Urban | U40: Short rural | V40: Long rural
B41: Powerlink | C41: Queensland Electricity Transmission Corporation Limited trading as Powerlink Queensland | D41: 82078849233 | E41: Qld | F41: Electricity | G41: Transmission | H41: Revenue cap | I41: 5 | J41: 5 | K41: Qld | L41: 5 | M41: distribution determination | S41: CBD | T41: Urban | U41: Short rural | V41: Long rural
B42: Qld,SA &ACT Gas Reset | C42: Qld,SA &ACT Gas Reset | D42: 22222222222 | E42: - | F42: Gas | G42: Distribution | H42: ? | I42: 5 | J42: 5 | K42: - | L42: x | M42: distribution determination | S42: CBD | T42: Urban | U42: Short rural | V42: Long rural
B43: SA Power Networks | C43: SA Power Networks | D43: 13332330749 | E43: SA | F43: Electricity | G43: Distribution | H43: Revenue cap | I43: 5 | J43: 5 | K43: SA | L43: 5 | M43: 2015-20 Distribution Determination | N43: YES | O43: YES | P43: YES | Q43: YES | R43: NO | S43: CBD | T43: Urban | U43: Short rural | V43: Long rural
B44: TasNetworks (D) | C44: TasNetworks (D) | D44: 24167357299 | E44: Tas | F44: Electricity | G44: Distribution | H44: Revenue cap | I44: 5 | J44: 5 | K44: Tas | L44: 5 | M44: distribution determination | N44: YES | O44: YES | P44: YES | Q44: YES | R44: YES | S44: Critical Infrastructure | T44: High density commercial | U44: Urban | V44: High density rural | W44: Low density rural
B45: TasNetworks (T) | C45: TasNetworks (T) | D45: 24167357299 | E45: Tas | F45: Electricity | G45: Transmission | H45: Revenue cap | I45: 5 | J45: 5 | K45: Tas | L45: 5 | M45: distribution determination | S45: CBD | T45: Urban | U45: Short rural | V45: Long rural
B46: TransGrid | C46: TransGrid | D46: 19622755774 | E46: NSW | F46: Electricity | G46: Transmission | H46: Revenue cap | I46: 5 | J46: 5 | K46: NSW | L46: 5 | M46: distribution determination | S46: CBD | T46: Urban | U46: Short rural | V46: Long rural
B47: United Energy | C47: United Energy | D47: 70064651029 | E47: Vic | F47: Electricity | G47: Distribution | H47: Revenue cap | I47: 5 | J47: 5 | K47: Vic | L47: 2 | M47: 2016-20 Distribution Determination | N47: NO | O47: YES | P47: YES | Q47: NO | R47: NO | S47: CBD | T47: Urban | U47: Short rural | V47: Long rural
B48: DNSP Backcasting | C48: Victorian DNSP Backcasting | D48: 33333333666 | E48: Vic | F48: Electricity | G48: Distribution | H48: ? | I48: 5 | J48: 5 | K48: - | L48: x | M48: distribution determination | S48: CBD | T48: Urban | U48: Short rural | V48: Long rural
B49: DNSP Reset | C49: Victorian DNSP Reset | D49: 33333333333 | E49: Vic | F49: Electricity | G49: Distribution | H49: ? | I49: 5 | J49: 5 | K49: - | L49: x | M49: distribution determination | S49: CBD | T49: Urban | U49: Short rural | V49: Long rural
B54: dms_SourceList | C54: dms_FormControl_Choices | E54: dms_FRCPlength_Num_List | F54: dms_FinalYear_List
B55: After appeal | C55: Revenue cap | E55: 1 | F55: FRCP_y1
B56: Draft decision | C56: Revenue yield | E56: 2 | F56: FRCP_y2
B57: Final decision | C57: Weighted average price cap | E57: 3 | F57: FRCP_y3
B58: Pass through decision | E58: 4 | F58: FRCP_y4
B59: PTRM annual update | E59: 5 | F59: FRCP_y5
B60: PTRM interim update 1 | E60: 6 | F60: FRCP_y6
B61: PTRM interim update 2 | E61: 7 | F61: FRCP_y7
B62: PTRM interim update 3 | E62: 8 | F62: FRCP_y8
B63: PTRM interim update 4 | E63: 9 | F63: FRCP_y9
B64: Regulatory proposal | E64: 10 | F64: FRCP_y10
B65: Reporting
B66: Revised regulatory proposal
B67: RFM annual update
B68: WACC annual update
B71: Notes
B72: RFM - Base year is usually CRCP_y1 | C72: EG. Victorian 2016-20 - base year = 2011
B73: RFM - Form of Control Field is not relevant
B74: PTRM - capture base year input by NSP | C74: =PTRM input'!Q7

Sheet Contents
B3: =CONCATENATE(dms_Segment," Network Service Provider") -> Distribution Network Service Provider
B4: Annual Reporting RIN Template
B5: Table of Contents
C8: Instructions
C9: Business & other details
B12: CATEGORY ANALYSIS | C12: STPIS | D12: STATUTORY ACCOUNTS
B14: 2.11 Labour | C14: 6.2 STPIS Reliability | D14: 8.1 Income
C15: 6.6 STPIS Customer Service | D15: 8.2 Capex
C16: 6.7 STPIS Daily Performance
C17: 6.8 STPIS Exclusions | D17: 8.4 Opex
C18: 6.9 STPIS GSL
B22: NETWORK PERFORMANCE | C22: OTHER INFORMATION | D22: PRICING PROPOSAL
D23: Victorian Businesses Only
B24: 3.6 Quality of services | C24: 7.8 Avoided Cost Payments
B25: 3.6.8 Network-feeders | C25: 7.10 Juris Scheme | D25: 9.5 TUoS
B26: 3.6.9 Network-reliability | C26: 7.11 DMIS-DMIA
C27: 7.12 Safety and Bushfire
C28: 7.13 TARC
B29: PUBLIC LIGHTING
B31: 4.1 Public lighting tariffs

Sheet Instructions
B8: =CONCATENATE(dms_Segment," Network Service Provider") -> Distribution Network Service Provider
B9: Annual Reporting RIN Template
C11: =CONCATENATE("This template is to be used by ",dms_TradingName, " to fulfil its annual reporting obligations to the AER.") -> This template is to be used by Ergon Energy to fulfil its annual reporting obligations to the AER.
F12: Amendments made December 2015
F13: Click here for details.
C14: INSTRUCTIONS
C15: Complete the Business & other details worksheet before entering data or values in any other worksheets. The Business & other details worksheet is linked to other cells within the workbook and automatically generates certain column headings and conditional formatting.
C17: Identifying CONFIDENTIAL INFORMATION: Please use the macro at the top of each worksheet to identify confidential information.
C18: -Do this by selecting the cell or cells that contain confidential information and then run the Mark selected cells as CONFIDENTIAL macro. This will format the cells a specific colour that is identified by the AER's database which in turn marks that information as confidential. -To reverse this, select the cell or cells and run the Return cells to NON-CONFIDENTIAL macro
C20: All amounts are to be unrounded and reported in nominal terms on a one for one basis: that is 1000 is to be entered as '1000' not '1' as in previous templates. Colour coding of input sheets:
D21: Yellow = Input cells
D22: Grey = Not applicable/No inputs required
D23: Leave coloured cells blank if no information exists. PLEASE DO NOT ENTER TEXT into cells that are to contain numeric data.
C26: Returning completed responses Please return two (2) files to the AER: 1. A confidential version which must contain a complete set of all responses with confidential information marked using the Mark selected cells CONFIDENTIAL macro and which has been completed using the locked template file provided by the AER. 2. A public version with confidential information either removed completely or aggregated in some form together with writtten consent to disclose the public version of the response. Use the drop down box on the Business and other details worksheet to identify the file as either confidential ('consolidated') or public.

Sheet Business & other details
C1: =(LOOKUP(dms_Model,dms_Model_List,dms_Worksheet_List)) -> REGULATORY REPORTING STATEMENT
C2: =dms_TradingName -> Ergon Energy
C3: =CONCATENATE("Annual Reporting RIN Response ",CRY) -> Annual Reporting RIN Response 2015-16
C4: BUSINESS & OTHER DETAILS
C6: Instructions
C7: Complete the following business details regulatory template before entering data or values in any other regulatory templates. This regulatory template is linked to other cells within these worksheets and is used to automatically generate some column headings and to apply conditional formatting to certain cells.
C10: SUBMISSION PARTICULARS INPUT SHEETS
C12: ENTITY DETAILS
C14: Short name | D14: Ergon Energy
C15: ACN / ABN | D15: =INDEX(dms_ABN_List,MATCH(dms_TradingName,dms_TradingName_List)) -> 50087646062
C18: Business address | D18: Address 1 | F18: 420 Flinders Street
E19: Address 2
D20: Suburb | F20: Townsville
E21: State | F21: =INDEX(dms_State_List,MATCH(dms_TradingName,dms_TradingName_List)) -> Qld | G21: p/code | H21: 4810
C23: Postal address | D23: Address 1 | F23: Po Box 264
E24: Address 2
D25: Suburb | F25: Fortitude Valley
E26: State | F26: Qld | G26: p/code | H26: 4006
C29: Contact name/s | D29: Jenny Doyle | G29: Group Manager, Regulatory Affairs
C30: Contact phone/s
C31: Contact email address/s
C33: REGULATORY CONTROL PERIODS
C35: Forthcoming regulatory control period | D35: 2016-17 | E35: =IF(dms_RPT="financial",VALUE(LEFT(FRCP_y1,4)+1)&"-"&VALUE(MID(FRCP_y1,3,2)+2),VALUE(LEFT(FRCP_y1,4)+1)) -> 2017-18 | F35: =IF(dms_RPT="financial",VALUE(LEFT(FRCP_y2,4)+1)&"-"&VALUE(MID(FRCP_y2,3,2)+2),VALUE(LEFT(FRCP_y2,4)+1)) -> 2018-19 | G35: =IF(dms_RPT="financial",VALUE(LEFT(FRCP_y3,4)+1)&"-"&VALUE(MID(FRCP_y3,3,2)+2),VALUE(LEFT(FRCP_y3,4)+1)) -> 2019-20 | H35: =IF(dms_RPT="financial",VALUE(LEFT(FRCP_y4,4)+1)&"-"&VALUE(MID(FRCP_y4,3,2)+2),VALUE(LEFT(FRCP_y4,4)+1)) -> 2020-21 | I35: =IF(dms_RPT="financial",VALUE(LEFT(FRCP_y5,4)+1)&"-"&VALUE(MID(FRCP_y5,3,2)+2),VALUE(LEFT(FRCP_y5,4)+1)) -> 2021-22 | J35: =IF(dms_RPT="financial",VALUE(LEFT(FRCP_y6,4)+1)&"-"&VALUE(MID(FRCP_y6,3,2)+2),VALUE(LEFT(FRCP_y6,4)+1)) -> 2022-23 | K35: =IF(dms_RPT="financial",VALUE(LEFT(FRCP_y7,4)+1)&"-"&VALUE(MID(FRCP_y7,3,2)+2),VALUE(LEFT(FRCP_y7,4)+1)) -> 2023-24 | L35: =IF(dms_RPT="financial",VALUE(LEFT(FRCP_y8,4)+1)&"-"&VALUE(MID(FRCP_y8,3,2)+2),VALUE(LEFT(FRCP_y8,4)+1)) -> 2024-25 | M35: =IF(dms_RPT="financial",VALUE(LEFT(FRCP_y9,4)+1)&"-"&VALUE(MID(FRCP_y9,3,2)+2),VALUE(LEFT(FRCP_y9,4)+1)) -> 2025-26
C38: Current regulatory control period | D38: =IF(dms_RPT="financial",VALUE(LEFT(CRCP_y2,4)-1)&"-"&TEXT(VALUE(RIGHT(CRCP_y2,2)-1),"0#"),VALUE(LEFT(CRCP_y2,4)-1)) -> 2011-12 | E38: =IF(dms_RPT="financial",VALUE(LEFT(CRCP_y3,4)-1)&"-"&TEXT(VALUE(RIGHT(CRCP_y3,2)-1),"0#"),VALUE(LEFT(CRCP_y3,4)-1)) -> 2012-13 | F38: =IF(dms_RPT="financial",VALUE(LEFT(CRCP_y4,4)-1)&"-"&TEXT(VALUE(RIGHT(CRCP_y4,2)-1),"0#"),VALUE(LEFT(CRCP_y4,4)-1)) -> 2013-14 | G38: =IF(dms_RPT="financial",VALUE(LEFT(CRCP_y5,4)-1)&"-"&TEXT(VALUE(RIGHT(CRCP_y5,2)-1),"0#"),VALUE(LEFT(CRCP_y5,4)-1)) -> 2014-15 | H38: =IF(dms_RPT="financial",VALUE(LEFT(FRCP_y1,4)-1)&"-"&TEXT(VALUE(RIGHT(FRCP_y1,2)-1),"0#"),VALUE(LEFT(FRCP_y1,4)-1)) -> 2015-16
C41: Previous regulatory control period | D41: =IF(dms_RPT="financial",VALUE(LEFT(PRCP_y2,4)-1)&"-"&TEXT(VALUE(MID(PRCP_y2,3,2)),"0#"),VALUE(LEFT(PRCP_y2,4)-1)) -> 2006-07 | E41: =IF(dms_RPT="financial",VALUE(LEFT(PRCP_y3,4)-1)&"-"&TEXT(VALUE(MID(PRCP_y3,3,2)),"0#"),VALUE(LEFT(PRCP_y3,4)-1)) -> 2007-08 | F41: =IF(dms_RPT="financial",VALUE(LEFT(PRCP_y4,4)-1)&"-"&TEXT(VALUE(MID(PRCP_y4,3,2)),"0#"),VALUE(LEFT(PRCP_y4,4)-1)) -> 2008-09 | G41: =IF(dms_RPT="financial",VALUE(LEFT(PRCP_y5,4)-1)&"-"&TEXT(VALUE(RIGHT(PRCP_y5,2)-1),"0#"),VALUE(LEFT(PRCP_y5,4)-1)) -> 2009-10 | H41: =IF(dms_RPT="financial",VALUE(LEFT(CRCP_y1,4)-1)&"-"&TEXT(VALUE(RIGHT(CRCP_y1,2)-1),"0#"),VALUE(LEFT(CRCP_y1,4)-1)) -> 2010-11
C44: Current regulatory year | D44: 2015-16
C49: Source | D49: Reporting
C50: Consolidated confidential or public version? | D50: Consolidated
C51: Amended RIN submission - amendment reason | D51: Table 8.2.4 Capex amended to exclude capital contributions in response to AER ERG IR046 information request (20 June 2019). D19/93026
C52: EBSS - First application of scheme in forthcoming period? | D52: No
C53: Sector | D53: =INDEX(dms_Sector_List,MATCH(dms_TradingName,dms_TradingName_List)) -> Electricity | E53: dms_Sector | F53: =INDEX(dms_Sector_List,MATCH(dms_TradingName,dms_TradingName_List))
C54: Segment | D54: =INDEX(dms_Segment_List,MATCH(dms_TradingName,dms_TradingName_List)) -> Distribution | E54: dms_Segment | F54: =INDEX(dms_Segment_List,MATCH(dms_TradingName,dms_TradingName_List))
C55: Regulatory Year Ending | D55: =INDEX(dms_RYE_Formula_Result,MATCH(dms_Model,dms_Model_List)) -> 2016 | E55: dms_RYE | F55: =INDEX(dms_RYE_Formula_Result,MATCH(dms_Model,dms_Model_List))
C56: Reporting Period Type | D56: =IF(LEN(FRCP_y1)>4,"Financial","Calendar") -> Financial | E56: dms_RPT | F56: =IF(LEN(FRCP_y1)>4,"Financial","Calendar")
C57: Model or RIN Type | D57: ARR | E57: dms_Model
C58: Security Classification | D58: Public | E58: dms_Classification
C59: Template - version no. | D59: 5 | E59: dms_TemplateNumber
C60: Dollar $ real (the last month before the FRCP_y1) | D60: =CONCATENATE(IF(dms_RPT="Financial","June ","December "),VALUE((LEFT(FRCP_y1,2))&RIGHT(FRCP_y1,2))-1) -> June 2016 | E60: dms_DollarReal | F60: =CONCATENATE(IF(dms_RPT="Financial","June ","December "),VALUE((LEFT(FRCP_y1,2))&RIGHT(FRCP_y1,2))-1)
C61: Form of control | D61: =INDEX(dms_FormControl_List,MATCH(dms_TradingName,dms_TradingName_List)) -> Revenue cap | E61: dms_FormControl | F61: =INDEX(dms_FormControl_List,MATCH(dms_TradingName,dms_TradingName_List))
C62: RIN response - version no. | D62: 1 | E62: dms_RINversion
C63: Jurisdiction | D63: =INDEX(dms_JurisdictionList,MATCH(dms_TradingName,dms_TradingName_List)) -> Qld | E63: dms_Jurisdiction | F63: =INDEX(dms_JurisdictionList,MATCH(dms_TradingName,dms_TradingName_List))
C64: Length of current reg control period | D64: =INDEX(dms_CRCPlength_List,MATCH(dms_TradingName,dms_TradingName_List)) -> 5 | E64: dms_CRCPlength | F64: =INDEX(dms_CRCPlength_List,MATCH(dms_TradingName,dms_TradingName_List))
C65: Length of forthcoming reg control period | D65: =INDEX(dms_FRCPlength_List,MATCH(dms_TradingName,dms_TradingName_List)) -> 5 | E65: dms_FRCPlength | F65: =INDEX(dms_FRCPlength_List,MATCH(dms_TradingName,dms_TradingName_List))
C66: FRCP length in years | D66: =INDEX(dms_FRCPlength_List,MATCH(dms_TradingName,dms_TradingName_List)) -> 5 | E66: dms_FRCPlength_Num | F66: =INDEX(dms_FRCPlength_List,MATCH(dms_TradingName,dms_TradingName_List))
C67: FRCP Final Year Reference | D67: =INDEX(dms_FinalYear_List,MATCH(dms_FRCPlength_Num,dms_FRCPlength_Num_List)) -> FRCP_y5 | E67: dms_FRCP_FinalYear | F67: =INDEX(dms_FinalYear_List,MATCH(dms_FRCPlength_Num,dms_FRCPlength_Num_List))
C68: FRCP Final Year | D68: =INDIRECT(dms_FRCP_FinalYear) -> 2020-21 | E68: dms_FRCP_FinalYear_Num | F68: =INDIRECT(dms_FRCP_FinalYear)
C69: CRCP length in years | D69: 5 | E69: dms_CRCPlength_Num | F69: =INDEX(dms_CRCPlength_List,MATCH(dms_TradingName,dms_TradingName_List))
C70: CRCP Final Year Reference | D70: CRCP_y5 | E70: dms_CRCP_FinalYear | F70: =INDEX(dms_CFinalYear_List,MATCH(dms_CRCPlength_Num,dms_CRCPlength_Num_List))
C71: CRCP Final Year | D71: 2014-15 | E71: dms_CRCP_FinalYear_Num | F71: =INDIRECT(dms_CRCP_FinalYear)
C72: Backcast templates only - unit of measure | D72: $0s | E72: If the cover sheet is for Backcast data ensure to apply dms_Backcast_UOM named range to this field. Otherwise, do not apply this named range.
C73: Table 6.6.3 - Public lighting repair - no. business days | D73: =INDEX(dms_663_List,MATCH(dms_TradingName,dms_TradingName_List)) -> 5
C74: Distribution Determination Reference | D74: =INDEX(dms_DeterminationRef_List,MATCH(dms_TradingName,dms_TradingName_List)) -> 2015-20 Distribution Determination | E74: =dms_DeterminationRef
C75: CBD Feeder for this business | D75: =INDEX(dms_CBD_flag,MATCH(dms_TradingName,dms_TradingName_List)) -> NO | E75: dms_CBD_flag_NSP
C76: Urban Feeder for this business | D76: =INDEX(dms_Urban_flag,MATCH(dms_TradingName,dms_TradingName_List)) -> YES | E76: dms_Urban_flag_NSP
C77: Short rural Feeder for this business | D77: =INDEX(dms_ShortRural_flag,MATCH(dms_TradingName,dms_TradingName_List)) -> YES | E77: dms_ShortRural_flag_NSP
C78: Long rural Feeder for this business | D78: =INDEX(dms_LongRural_flag,MATCH(dms_TradingName,dms_TradingName_List)) -> YES | E78: dms_LongRural_flag_NSP

Sheet 2.11 Labour
B1: =(LOOKUP(dms_Model,dms_Model_List,dms_Worksheet_List)) -> REGULATORY REPORTING STATEMENT
B2: =dms_TradingName -> Ergon Energy
B3: =CONCATENATE("Annual Reporting RIN Response ",CRY) -> Annual Reporting RIN Response 2015-16
B4: 2.11 LABOUR
B6: Tables 2.11.1 and 2.11.2 deliberately omitted.
B8: 2.11.3 - LABOUR / NON-LABOUR EXPENDITURE SPLIT
B9: 2.11.3.1 - Opex
C10: =CRY -> 2015-16
C11: $0's, nominal
C12: Opex
B13: In-house labour expenditure | C13: 217115933
B14: Labour expenditure outsourced to related parties | C14: 21900381
B15: Labour expenditure outsourced to unrelated parties | C15: 93115499
B16: Controllable non-labour expenditure | C16: 61970418
B17: Uncontrollable non-labour expenditure | C17: 109121884
B18: Total | C18: =SUM(C13:C17) -> 503224115
B20: Reconciliation with Opex worksheets - SCS | C20: Opex
B21: Total including margins | C21: =dms_Total_Actual_Opex -> 503224115 | D21: =IF(C18=dms_Total_Actual_Opex,"OK","Error") -> OK
B24: 2.11.3.2 - Capex
C25: =CRY -> 2015-16
C26: $0's, nominal
C27: Capex
B28: In-house labour expenditure | C28: 235849067
B29: Labour expenditure outsourced to related parties | C29: 1554968
B30: Labour expenditure outsourced to unrelated parties | C30: 147575944
B31: Controllable non-labour expenditure | C31: 238237220
B32: Uncontrollable non-labour expenditure
B33: Total | C33: =SUM(C28:C32) -> 623217199
B35: Reconciliation with Capex & Opex worksheets - SCS | C35: Capex
B36: Total including margins | C36: =dms_Total_Actual_Capex -> 623217199 | D36: =IF(C33=dms_Total_Actual_Capex,"OK","Error") -> OK

Sheet 3.6 Quality of services
B1: =(LOOKUP(dms_Model,dms_Model_List,dms_Worksheet_List)) -> REGULATORY REPORTING STATEMENT
B2: =dms_TradingName -> Ergon Energy
B3: =CONCATENATE("Annual Reporting RIN Response ",CRY) -> Annual Reporting RIN Response 2015-16
B4: 3.6 QUALITY OF SERVICES
B6: 3.6.5 - QUALITY OF SUPPLY METRICS
C7: Unit | D7: Volume
D8: =CRY -> 2015-16
B9: Over voltage events - due to high voltage injection | C9: number
B10: Customers receiving over-voltage - due to high voltage injection | C10: number
B11: Over voltage events - due to lightning | C11: number
B12: Customers receiving over-voltage - due to lightning | C12: number
B13: Over voltage events - due to voltage regulation or other cause | C13: number
B14: Customers receiving over-voltage - due to voltage regulation or other cause | C14: number
B15: Voltage variations - steady state (zone sub) | C15: number
B16: Voltage variations - one minute (zone sub) | C16: number
B17: Voltage variations - 10 seconds (zone sub) Min<0.7 | C17: number
B18: Voltage variations - 10 seconds (zone sub) Min<0.8 | C18: number
B19: Voltage variations - 10 seconds (zone sub) Min<0.9 | C19: number
B20: Voltage variations - steady state (feeder) | C20: number
B21: Voltage variations - % zone subs monitored | C21: (per cent)
B22: Voltage variations - % feeders monitored | C22: (per cent)
B24: 3.6.6 - COMPLAINTS - TECHNICAL QUALITY OF SUPPLY
C25: Unit | D25: Volume
D26: =CRY -> 2015-16
B27: 3.6.6.1 - TECHNICAL QUALITY OF SUPPLY
B28: Number of complaints - technical quality of supply | C28: number | D28: 177
B29: 3.6.6.2 - PERCENTAGE OF COMPLAINTS BY CATEGORY
B30: Low voltage supply | C30: (per cent)
B31: Voltage dips | C31: (per cent)
B32: Voltage swell | C32: (per cent)
B33: Voltage spike (impulsive transient) | C33: (per cent)
B34: Waveform distortion | C34: (per cent)
B35: TV or radio interference | C35: (per cent)
B36: Solar related | C36: (per cent)
B37: Noise from appliances | C37: (per cent)
B38: Other | C38: (per cent)
B39: 3.6.6.3 - PERCENTAGE OF COMPLAINTS BY LIKELY CAUSE
B40: Network equipment faulty | C40: (per cent)
B41: Network interference by NSP equipment | C41: (per cent)
B42: Network interference by another customer | C42: (per cent)
B43: Network limitation | C43: (per cent)
B44: Customer internal problem | C44: (per cent)
B45: No problem identified | C45: (per cent)
B46: Environmental | C46: (per cent)
B47: Other | C47: (per cent)
B49: 3.6.7 - CUSTOMER SERVICE METRICS
C50: Unit | D50: =CRY -> 2015-16
B51: 3.6.7.1 - TIMELY PROVISIONS OF SERVICES
B52: Number of connections made | C52: number | D52: 9184
B53: Number of connections not made on or before agreed date | C53: number | D53: 116
B54: 3.6.7.2 - TIMELY REPAIR OF FAULTY STREET LIGHTS
B55: Street lights - average monthly number "out" | C55: number | D55: 580
B56: Street lights - not repaired by "fix by" date | C56: number | D56: 2877
B57: Street lights - average number of days to repair | C57: number | D57: 7.99
B58: Total number of street lights | C58: number | D58: 142117
B59: 3.6.7.3 - CALL CENTRE PERFORMANCE
B60: Calls to call centre fault line | C60: number | D60: 416996
B61: Calls to fault line answered within 30 seconds | C61: number | D61: 100613
B62: Calls to fault line - average waiting time before call answered | C62: number | D62: 24 seconds
B63: Call centre - number of overload events | C63: number | D63: 0
B64: Percentage of calls abandoned | C64: (per cent) | D64: 0.085
B65: 3.6.7.4 - NUMBER OF CUSTOMER COMPLAINTS
B66: Complaint - reliability of supply | C66: number | D66: 316
B67: Complaint - technical quality of supply | C67: number | D67: =IF(ISBLANK(D28),"",D28) -> 177
B68: Complaint - administrative process or customer service | C68: number | D68: 840
B69: Complaint - connection or augmentation | C69: number | D69: 585
B70: Complaint - other | C70: number | D70: 3055
B71: Total number of complaints | C71: number | D71: 4973

Sheet 3.6.8 Network-feeders
B1: =(LOOKUP(dms_Model,dms_Model_List,dms_Worksheet_List)) -> REGULATORY REPORTING STATEMENT | G1: =CONCATENATE("1-Jan-",LEFT(CRY,4)) -> 1-Jan-2015
B2: =dms_TradingName -> Ergon Energy
B3: =CONCATENATE("Annual Reporting RIN Response ",CRY) -> Annual Reporting RIN Response 2015-16
B4: 3.6 QUALITY OF SERVICES
B6: Did the MAIFI parameter of the STPIS apply during the period? | F6: No | G6: ** IMPORTANT Please ensure this question is answered correctly. Your response will affect other tables throughout this workbook and will determine which cells are grey and which are input cells.
B10: 3.6.8 - NETWORK FEEDER RELIABILITY
B11: Feeder ID / name | C11: Description of the service area for the feeder | D11: Feeder classification (drop down) | E11: Number of distribution customers | F11: Length of high voltage distribution lines | H11: Maximum demand (MVA) | I11: Energy not supplied (MWh) | K11: Unplanned Outages | P11: Planned Outages | U11: Momentary feeder outages
F12: Overhead | G12: Underground | I12: Unplanned | J12: Planned | K12: Total number of unplanned outages | L12: Unplanned customer minutes off-supply (SAIDI) | N12: Unplanned interruptions (SAIFI) | P12: Total number of planned outages | Q12: Planned customer minutes off-supply (SAIDI) | S12: Planned interruptions (SAIFI) | U12: Total number of momentary feeder outages | V12: Momentary interruptions due to feeder outages (MAIFI)
L13: Including excluded events and MEDs | M13: After removing excluded events and MED | N13: Including excluded events and MEDs | O13: After removing excluded events and MED | Q13: Including MEDs | R13: After removing MED | S13: Including MEDs | T13: After removing MED | V13: Including excluded events and MEDs | W13: After removing excluded events and MED
B14: 10020655 | C14: FN | D14: RURAL SHORT | E14: 715 | F14: 98.05837 | G14: 0.84155 | H14: 2.832 | I14: 6.650509459 | J14: 0.376379497 | K14: 49 | L14: 392.2106 | M14: 392.2106 | N14: 3.2615 | O14: 3.2615 | P14: 17 | Q14: 22.1968 | R14: 22.1968 | S14: 0.1524 | T14: 0.1524
B15: 10020657 | C15: FN | D15: RURAL SHORT | E15: 729 | F15: 8.57592 | G15: 1.18408 | H15: 0 | I15: 9.962720961 | J15: 0.2285254721 | K15: 35 | L15: 604.8376 | M15: 604.8376 | N15: 7.1207 | O15: 7.1207 | P15: 9 | Q15: 13.8738 | R15: 13.8738 | S15: 0.0933 | T15: 0.0933
B16: 10020658 | C16: FN | D16: RURAL SHORT | E16: 0 | F16: 0 | G16: 0 | H16: 0 | I16: 0 | J16: 0 | K16: 0 | L16: 0 | M16: 0 | N16: 0 | O16: 0 | P16: 0 | Q16: 0 | R16: 0 | S16: 0 | T16: 0
B17: 10020659 | C17: FN | D17: RURAL LONG | E17: 971 | F17: 215.22056 | G17: 0.87066 | H17: 0 | I17: 14.0500455 | J17: 0.3225998957 | K17: 69 | L17: 1266.656 | M17: 1266.656 | N17: 9.6014 | O17: 9.6014 | P17: 21 | Q17: 29.0834 | R17: 28 | S17: 0.483 | T17: 0.4789
B18: 10020660 | C18: FN | D18: RURAL SHORT | E18: 786 | F18: 12.92145 | G18: 10.46707 | H18: 2.464 | I18: 4.334672791 | J18: 0.8680840216 | K18: 15 | L18: 204.8429 | M18: 204.5195 | N18: 2.1845 | O18: 2.1832 | P18: 20 | Q18: 41.0229 | R18: 41.0229 | S18: 0.2481 | T18: 0.2481
B19: 10020661 | C19: FN | D19: URBAN | E19: 1420 | F19: 4.49179 | G19: 9.57298 | H19: 5.629 | I19: 4.265399219 | J19: 0.09627227471 | K19: 12 | L19: 182.0605 | M19: 182.0605 | N19: 1.043 | O19: 1.043 | P19: 15 | Q19: 4.1092 | R19: 4.1092 | S19: 0.031 | T19: 0.031
B20: 10020662 | C20: FN | D20: RURAL SHORT | E20: 445 | F20: 34.66489 | G20: 2.58147 | H20: 1.135 | I20: 4.115320819 | J20: 1.08712245 | K20: 9 | L20: 278.8942 | M20: 278.8942 | N20: 2.1888 | O20: 2.1888 | P20: 19 | Q20: 73.674 | R20: 73.0448 | S20: 0.7865 | T20: 0.7775
B21: 10020663 | C21: FN | D21: URBAN | E21: 685 | F21: 0 | G21: 11.27851 | H21: 6.604 | I21: 8.488998625 | J21: 0.06894356226 | K21: 9 | L21: 164.8337 | M21: 164.3695 | N21: 2.2905 | O21: 2.2891 | P21: 7 | Q21: 1.3387 | R21: 1.3387 | S21: 0.0175 | T21: 0.0175
B22: 10020669 | C22: FN | D22: RURAL LONG | E22: 352 | F22: 1134.90851 | G22: 0.16491 | H22: 1.161 | I22: 27.61312136 | J22: 5.9443032 | K22: 68 | L22: 1945.6456 | M22: 1900.2674 | N22: 17.2102 | O22: 17.1051 | P22: 65 | Q22: 418.841 | R22: 418.841 | S22: 1.8381 | T22: 1.8381
B23: 10020670 | C23: FN | D23: RURAL LONG | E23: 170 | F23: 450.88745 | G23: 0 | H23: 0.552 | I23: 6.091910905 | J23: 3.696105135 | K23: 35 | L23: 465.8836 | M23: 465.8836 | N23: 7.7 | O23: 7.7 | P23: 8 | Q23: 282.6625 | R23: 282.6625 | S23: 2.5647 | T23: 2.5647
B24: 10020671 | C24: FN | D24: RURAL LONG | E24: 148 | F24: 324.0559 | G24: 0 | H24: 0 | I24: 16.48353446 | J24: 7.561515974 | K24: 32 | L24: 917.0559 | M24: 917.0559 | N24: 13.473 | O24: 13.473 | P24: 6 | Q24: 420.6824 | R24: 420.6824 | S24: 2.2568 | T24: 2.2568
B25: 10020673 | C25: FN | D25: RURAL LONG | E25: 574 | F25: 466.1814 | G25: 0 | H25: 2.493 | I25: 27.52839318 | J25: 6.01465392 | K25: 65 | L25: 1195.3571 | M25: 1195.0904 | N25: 20.1812 | O25: 20.1794 | P25: 26 | Q25: 261.1725 | R25: 261.1725 | S25: 1.1551 | T25: 1.1551
B26: 10020674 | C26: FN | D26: RURAL LONG | E26: 70 | F26: 883.95367 | G26: 0 | H26: 0.688 | I26: 235.3817783 | J26: 29.79478564 | K26: 49 | L26: 5349.5636 | M26: 5349.5636 | N26: 23.4571 | O26: 23.4571 | P26: 13 | Q26: 677.1514 | R26: 677.1514 | S26: 2.8857 | T26: 2.8857
B27: 10020675 | C27: FN | D27: RURAL SHORT | E27: 385 | F27: 76.7489 | G27: 0.2236 | H27: 3.092 | I27: 50.2659215 | J27: 21.87657766 | K27: 44 | L27: 1008.4896 | M27: 1008.4896 | N27: 18.0935 | O27: 18.0935 | P27: 10 | Q27: 438.9117 | R27: 438.9117 | S27: 2.1117 | T27: 2.1117
B28: 10020677 | C28: FN | D28: RURAL SHORT | E28: 15 | F28: 9.23213 | G28: 0.1977 | H28: 2.678 | I28: 160.6385861 | J28: 0 | K28: 9 | L28: 146.64 | M28: 146.64 | N28: 2 | O28: 2 | P28: 0 | Q28: 0 | R28: 0 | S28: 0 | T28: 0
B29: 10020679 | C29: FN | D29: RURAL SHORT | E29: 1286 | F29: 107.92888 | G29: 3.01368 | H29: 2.203 | I29: 1.363202107 | J29: 0.3461800105 | K29: 42 | L29: 123.2828 | M29: 121.1031 | N29: 1.6229 | O29: 1.6221 | P29: 3 | Q29: 31.3072 | R29: 31.3072 | S29: 0.2154 | T29: 0.2154
B30: 10020689 | C30: FN | D30: RURAL SHORT | E30: 167 | F30: 76.65052 | G30: 0.05259 | H30: 0.958 | I30: 11.34829874 | J30: 0.08404627285 | K30: 38 | L30: 997.7224 | M30: 997.7224 | N30: 8.5569 | O30: 8.5569 | P30: 4 | Q30: 7.3892 | R30: 7.3892 | S30: 0.0838 | T30: 0.0838
B31: 10020700 | C31: FN | D31: RURAL SHORT | E31: 11 | F31: 4.58014 | G31: 0.03744 | H31: 0.117 | I31: 0.9419387943 | J31: 8.798952409 | K31: 4 | L31: 82.1667 | M31: 82.1667 | N31: 2.0909 | O31: 2.0909 | P31: 4 | Q31: 767.5455 | R31: 767.5455 | S31: 2.9091 | T31: 2.9091
B32: 10020711 | C32: FN | D32: RURAL SHORT | E32: 7 | F32: 8.91649 | G32: 0.04557 | H32: 0.02 | I32: 0.40916181 | J32: 3.751966027 | K32: 3 | L32: 67.8619 | M32: 67.8619 | N32: 2.1429 | O32: 2.1429 | P32: 4 | Q32: 622.2857 | R32: 622.2857 | S32: 2.5714 | T32: 2.5714
B33: 10020722 | C33: FN | D33: RURAL SHORT | E33: 510 | F33: 152.26517 | G33: 0.12215 | H33: 1.131 | I33: 5.202645921 | J33: 3.907715869 | K33: 40 | L33: 593.208 | M33: 593.208 | N33: 5.3784 | O33: 5.3784 | P33: 69 | Q33: 445.5595 | R33: 445.5595 | S33: 1.7353 | T33: 1.7353
B34: 10020744 | C34: FN | D34: RURAL LONG | E34: 62 | F34: 346.55044 | G34: 0.12641 | H34: 0.354 | I34: 15.17319369 | J34: 0.3046826043 | K34: 14 | L34: 775.1121 | M34: 775.1121 | N34: 8.1129 | O34: 8.1129 | P34: 2 | Q34: 15.5645 | R34: 15.5645 | S34: 0.0645 | T34: 0.0645
B35: 10020755 | C35: FN | D35: RURAL LONG | E35: 412 | F35: 289.8926 | G35: 0.02602 | H35: 1.695 | I35: 33.31090578 | J35: 1.338116901 | K35: 26 | L35: 472.5603 | M35: 472.4121 | N35: 7.4175 | O35: 7.415 | P35: 6 | Q35: 18.983 | R35: 18.983 | S35: 0.0995 | T35: 0.0995
B36: 10020761 | C36: FN | D36: URBAN | E36: 883 | F36: 7.43984 | G36: 2.07661 | H36: 3.854 | I36: 0.08968588072 | J36: 0.2564485087 | K36: 14 | L36: 6.4271 | M36: 6.3987 | N36: 0.051 | O36: 0.0498 | P36: 15 | Q36: 18.3777 | R36: 18.3777 | S36: 0.1302 | T36: 0.1302
B37: 10020764 | C37: FN | D37: RURAL SHORT | E37: 2025 | F37: 58.43027 | G37: 18.12162 | H37: 4.924 | I37: 6.980683702 | J37: 1.113682696 | K37: 56 | L37: 638.9603 | M37: 638.9603 | N37: 4.5946 | O37: 4.5946 | P37: 33 | Q37: 101.9383 | R37: 101.9383 | S37: 0.6543 | T37: 0.6543
B38: 10020765 | C38: FN | D38: RURAL SHORT | E38: 432 | F38: 85.64048 | G38: 0.80043 | H38: 0.816 | I38: 1.556719711 | J38: 2.51030557 | K38: 33 | L38: 219.5151 | M38: 219.5151 | N38: 1.8935 | O38: 1.8935 | P38: 32 | Q38: 353.9815 | R38: 353.9815 | S38: 1.169 | T38: 1.169
B39: 10020767 | C39: FN | D39: RURAL SHORT | E39: 1350 | F39: 104.79031 | G39: 8.46467 | H39: 3.954 | I39: 2.972868713 | J39: 0.3951066058 | K39: 43 | L39: 218.0293 | M39: 218.0108 | N39: 1.7215 | O39: 1.7207 | P39: 11 | Q39: 28.977 | R39: 28.977 | S39: 0.1748 | T39: 0.1748
B40: 10020768 | C40: FN | D40: RURAL SHORT | E40: 229 | F40: 17.43309 | G40: 0.33212 | H40: 0.829 | I40: 1.370622079 | J40: 1.579740444 | K40: 5 | L40: 120.1755 | M40: 120.1755 | N40: 1.048 | O40: 1.048 | P40: 8 | Q40: 138.5109 | R40: 138.5109 | S40: 0.524 | T40: 0.524
B41: 10020770 | C41: FN | D41: RURAL SHORT | E41: 120 | F41: 77.66008 | G41: 0.75765 | H41: 9.59 | I41: 54.17832422 | J41: 20.42786573 | K41: 17 | L41: 578.6831 | M41: 578.6831 | N41: 2.2 | O41: 2.2 | P41: 8 | Q41: 218.1917 | R41: 218.1917 | S41: 0.8417 | T41: 0.8417
B42: 10020771 | C42: FN | D42: RURAL LONG | E42: 386 | F42: 201.00035 | G42: 0.47407 | H42: 3.253 | I42: 15.77617194 | J42: 9.456019084 | K42: 62 | L42: 656.0642 | M42: 655.7955 | N42: 5.0466 | O42: 5.044 | P42: 37 | Q42: 393.2358 | R42: 391.9456 | S42: 1.3938 | T42: 1.386
B43: 10020772 | C43: FN | D43: RURAL LONG | E43: 845 | F43: 212.57542 | G43: 0.2932 | H43: 2.289 | I43: 1.725805178 | J43: 6.104070652 | K43: 81 | L43: 149.775 | M43: 149.775 | N43: 3.3621 | O43: 3.3621 | P43: 94 | Q43: 529.7453 | R43: 529.7453 | S43: 1.7527 | T43: 1.7527
B44: 10020773 | C44: FN | D44: RURAL SHORT | E44: 585 | F44: 98.48179 | G44: 2.95882 | H44: 0 | I44: 2.544196734 | J44: 6.735697043 | K44: 22 | L44: 214.7694 | M44: 214.7694 | N44: 2.1299 | O44: 2.1299 | P44: 37 | Q44: 568.5966 | R44: 568.5966 | S44: 2.0615 | T44: 2.0615
B45: 10020774 | C45: FN | D45: RURAL SHORT | E45: 1811 | F45: 37.19899 | G45: 2.50154 | H45: 4.808 | I45: 3.600899063 | J45: 0.08753032875 | K45: 38 | L45: 277.4529 | M45: 277.4529 | N45: 2.27 | O45: 2.27 | P45: 12 | Q45: 6.7443 | R45: 6.7443 | S45: 0.169 | T45: 0.169
B46: 10020775 | C46: FN | D46: RURAL SHORT | E46: 1100 | F46: 111.28083 | G46: 1.12735 | H46: 3.854 | I46: 3.877351051 | J46: 0.3360955084 | K46: 52 | L46: 246.909 | M46: 244.2908 | N46: 2.7609 | O46: 2.6736 | P46: 31 | Q46: 21.4025 | R46: 21.4025 | S46: 0.1355 | T46: 0.1355
B47: 10020776 | C47: FN | D47: RURAL SHORT | E47: 316 | F47: 19.82347 | G47: 0.63822 | H47: 4.264 | I47: 1.100747456 | J47: 0.2769536814 | K47: 8 | L47: 53.1273 | M47: 53.1273 | N47: 2.4209 | O47: 2.4209 | P47: 5 | Q47: 13.3671 | R47: 13.3671 | S47: 0.1139 | T47: 0.1139
B48: 10020777 | C48: FN | D48: RURAL SHORT | E48: 1809 | F48: 79.86026 | G48: 3.32345 | H48: 4.837 | I48: 0.9466240385 | J48: 2.6269571 | K48: 43 | L48: 77.5639 | M48: 77.5639 | N48: 3.2642 | O48: 3.2642 | P48: 53 | Q48: 215.246 | R48: 215.246 | S48: 0.869 | T48: 0.869
B49: 10020778 | C49: FN | D49: RURAL SHORT | E49: 624 | F49: 128.29294 | G49: 2.53296 | H49: 0 | I49: 2.519351548 | J49: 5.834722481 | K49: 28 | L49: 276.5209 | M49: 276.5209 | N49: 2.1747 | O49: 2.1747 | P49: 58 | Q49: 640.4119 | R49: 640.4119 | S49: 2.4744 | T49: 2.4744
B50: 10020779 | C50: FN | D50: RURAL SHORT | E50: 597 | F50: 86.86753 | G50: 0.53995 | H50: 3.124 | I50: 2.384832805 | J50: 0.5740763114 | K50: 29 | L50: 181.0454 | M50: 179.8691 | N50: 4.9313 | O50: 4.9296 | P50: 18 | Q50: 43.5812 | R50: 43.5812 | S50: 0.2044 | T50: 0.2044
B51: 10020780 | C51: FN | D51: RURAL SHORT | E51: 653 | F51: 55.91561 | G51: 1.33618 | H51: 1.495 | I51: 2.686869197 | J51: 3.301301666 | K51: 23 | L51: 271.1185 | M51: 271.1185 | N51: 4.2542 | O51: 4.2542 | P51: 32 | Q51: 333.1178 | R51: 333.1178 | S51: 1.0796 | T51: 1.0796
B52: 10020781 | C52: FN | D52: RURAL SHORT | E52: 287 | F52: 16.13591 | G52: 0.21306 | H52: 0.766 | I52: 2.502226158 | J52: 0.7828333422 | K52: 9 | L52: 244.7842 | M52: 244.7842 | N52: 3.1672 | O52: 3.1672 | P52: 8 | Q52: 76.5819 | R52: 76.5819 | S52: 0.3449 | T52: 0.3449
B53: 10020782 | C53: FN | D53: RURAL SHORT | E53: 1275 | F53: 11.87997 | G53: 16.91185 | H53: 8.3 | I53: 3.86039077 | J53: 0.6277244378 | K53: 16 | L53: 256.3533 | M53: 256.2506 | N53: 3.1529 | O53: 3.1522 | P53: 7 | Q53: 41.6847 | R53: 41.6847 | S53: 0.1529 | T53: 0.1529
B54: 10020783 | C54: FN | D54: URBAN | E54: 2096 | F54: 9.56782 | G54: 2.85123 | H54: 10.139 | I54: 0.1426589361 | J54: 0.208006217 | K54: 24 | L54: 7.1208 | M54: 7.077 | N54: 0.0453 | O54: 0.0448 | P54: 14 | Q54: 10.3826 | R54: 10.3826 | S54: 0.0911 | T54: 0.0911
B55: 10020784 | C55: FN | D55: RURAL SHORT | E55: 711 | F55: 6.33204 | G55: 1.26166 | H55: 0 | I55: 2.386498598 | J55: 2.153046997 | K55: 12 | L55: 192.6871 | M55: 192.6871 | N55: 1.4149 | O55: 1.4149 | P55: 14 | Q55: 173.8381 | R55: 173.8381 | S55: 0.6878 | T55: 0.6878
B56: 10020785 | C56: FN | D56: RURAL SHORT | E56: 871 | F56: 5.98203 | G56: 4.69081 | H56: 1.952 | I56: 2.523090408 | J56: 0.4673588468 | K56: 11 | L56: 315.3061 | M56: 315.3061 | N56: 2.1206 | O56: 2.1206 | P56: 12 | Q56: 58.405 | R56: 58.405 | S56: 0.194 | T56: 0.194
B57: 10020786 | C57: FN | D57: RURAL SHORT | E57: 2564 | F57: 8.27524 | G57: 5.64832 | H57: 0 | I57: 0.01059788168 | J57: 0.09116715124 | K57: 19 | L57: 0.9107 | M57: 0.9107 | N57: 0.0078 | O57: 0.0078 | P57: 14 | Q57: 7.8342 | R57: 7.8225 | S57: 0.0515 | T57: 0.0511
B58: 10020787 | C58: FN | D58: RURAL SHORT | E58: 1472 | F58: 150.50703 | G58: 0.8605 | H58: 2.687 | I58: 1.41445381 | J58: 0.08061945298 | K58: 43 | L58: 204.1796 | M58: 204.1796 | N58: 2.5971 | O58: 2.5971 | P58: 12 | Q58: 11.6376 | R58: 11.6376 | S58: 0.0428 | T58: 0.0428
B59: 10020788 | C59: FN | D59: URBAN | E59: 333 | F59: 0.05566 | G59: 8.22449 | H59: 5.852 | I59: 4.205718551 | J59: 0.02222954613 | K59: 1 | L59: 39.2012 | M59: 39.2012 | N59: 1.003 | O59: 1.003 | P59: 2 | Q59: 0.2072 | R59: 0.2072 | S59: 0.006 | T59: 0.006
B60: 10020794 | C60: FN | D60: URBAN | E60: 131 | F60: 3.6005 | G60: 0.7293 | H60: 1.681 | I60: 0.02442034785 | J60: 0.6499631718 | K60: 1 | L60: 0.5435 | M60: 0.5435 | N60: 0.0076 | O60: 0.0076 | P60: 2 | Q60: 14.4656 | R60: 14.4656 | S60: 0.1145 | T60: 0.1145
B61: 10020795 | C61: FN | D61: RURAL SHORT | E61: 565 | F61: 3.72387 | G61: 0.4788 | H61: 0 | I61: 0.02547221691 | J61: 0.1803704978 | K61: 6 | L61: 1.0263 | M61: 1.0263 | N61: 0.0708 | O61: 0.0708 | P61: 2 | Q61: 7.2673 | R61: 7.2673 | S61: 0.0531 | T61: 0.0531
B62: 10020796 | C62: FN | D62: URBAN | E62: 2207 | F62: 7.39662 | G62: 5.69696 | H62: 5.223 | I62: 0.3425420097 | J62: 0.3379509343 | K62: 23 | L62: 39.4316 | M62: 39.4316 | N62: 1.1309 | O62: 1.1309 | P62: 15 | Q62: 38.9031 | R62: 38.8999 | S62: 0.1758 | T62: 0.1754
B63: 10020797 | C63: FN | D63: RURAL SHORT | E63: 865 | F63: 24.20359 | G63: 4.33839 | H63: 4.5 | I63: 2.768318979 | J63: 0.7742006087 | K63: 12 | L63: 244.0828 | M63: 243.9104 | N63: 2.0659 | O63: 2.0647 | P63: 8 | Q63: 68.2613 | R63: 68.2613 | S63: 0.2254 | T63: 0.2254
B64: 10020798 | C64: FN | D64: RURAL SHORT | E64: 1809 | F64: 18.93822 | G64: 14.03345 | H64: 8.99 | I64: 3.688871972 | J64: 0.5671260949 | K64: 31 | L64: 184.707 | M64: 184.707 | N64: 2.2609 | O64: 2.2609 | P64: 20 | Q64: 28.3968 | R64: 28.3968 | S64: 0.1647 | T64: 0.1647
B65: 10020799 | C65: FN | D65: RURAL SHORT | E65: 1065 | F65: 89.18781 | G65: 3.76936 | H65: 4.6 | I65: 5.495420631 | J65: 0.1807059088 | K65: 39 | L65: 378.0373 | M65: 377.8154 | N65: 4.1822 | O65: 4.1812 | P65: 10 | Q65: 12.431 | R65: 12.431 | S65: 0.0507 | T65: 0.0507
B66: 10020800 | C66: FN | D66: URBAN | E66: 426 | F66: 7.10704 | G66: 2.94116 | H66: 8.647 | I66: 3.635261225 | J66: 5.568420607 | K66: 11 | L66: 37.9625 | M66: 37.9625 | N66: 0.5188 | O66: 0.5188 | P66: 17 | Q66: 58.1502 | R66: 57.1408 | S66: 0.223 | T66: 0.2207
B67: 10020802 | C67: FN | D67: RURAL SHORT | E67: 1523 | F67: 4.08443 | G67: 10.13259 | H67: 3.707 | I67: 0.003971249568 | J67: 0.133893443 | K67: 5 | L67: 0.3039 | M67: 0.3039 | N67: 0.0033 | O67: 0.0033 | P67: 5 | Q67: 10.2462 | R67: 10.2462 | S67: 0.0834 | T67: 0.0834
B68: 10020803 | C68: FN | D68: URBAN | E68: 762 | F68: 5.10384 | G68: 4.46002 | H68: 6.076 | I68: 0.04866563011 | J68: 2.246717371 | K68: 9 | L68: 1.2277 | M68: 1.2277 | N68: 0.0118 | O68: 0.0118 | P68: 16 | Q68: 56.6785 | R68: 56.6785 | S68: 0.3412 | T68: 0.3412
B69: 10020804 | C69: FN | D69: RURAL SHORT | E69: 1659 | F69: 59.96619 | G69: 10.08793 | H69: 2.919 | I69: 6.169508641 | J69: 4.192519983 | K69: 67 | L69: 640.0813 | M69: 585.787 | N69: 5.1947 | O69: 4.1537 | P69: 51 | Q69: 434.9704 | R69: 434.88 | S69: 1.5823 | T69: 1.5799
B70: 10020805 | C70: FN | D70: URBAN | E70: 429 | F70: 5.36416 | G70: 4.93475 | H70: 6.73 | I70: 7.763449931 | J70: 0.392238232 | K70: 10 | L70: 127.4293 | M70: 127.4293 | N70: 1.1072 | O70: 1.1072 | P70: 14 | Q70: 6.4382 | R70: 6.4382 | S70: 0.0606 | T70: 0.0606
B71: 10020806 | C71: FN | D71: RURAL LONG | E71: 1603 | F71: 241.42363 | G71: 5.37395 | H71: 3.532 | I71: 1.424456845 | J71: 0.7369551361 | K71: 86 | L71: 192.8169 | M71: 192.7825 | N71: 2.821 | O71: 2.8203 | P71: 82 | Q71: 99.7555 | R71: 99.7555 | S71: 0.5465 | T71: 0.5465
B72: 10020807 | C72: FN | D72: RURAL SHORT | E72: 1299 | F72: 7.44362 | G72: 1.22004 | H72: 0 | I72: 1.683429874 | J72: 0.384628729 | K72: 17 | L72: 113.4891 | M72: 113.4891 | N72: 1.0523 | O72: 1.0523 | P72: 31 | Q72: 25.9299 | R72: 25.9299 | S72: 0.1101 | T72: 0.1101
B73: 10020808 | C73: FN | D73: URBAN | E73: 3014 | F73: 19.92133 | G73: 3.43378 | H73: 7.441 | I73: 0.9873035076 | J73: 0.01710713827 | K73: 50 | L73: 98.5391 | M73: 98.5391 | N73: 1.1944 | O73: 1.1944 | P73: 9 | Q73: 1.7074 | R73: 1.7074 | S73: 0.0093 | T73: 0.0093
B74: 10020809 | C74: FN | D74: RURAL SHORT | E74: 1134 | F74: 6.08849 | G74: 1.61162 | H74: 0 | I74: 0.5898322603 | J74: 0.1165766222 | K74: 12 | L74: 28.604 | M74: 28.604 | N74: 0.1058 | O74: 0.1058 | P74: 7 | Q74: 5.6534 | R74: 5.6534 | S74: 0.0697 | T74: 0.0697
B75: 10020810 | C75: FN | D75: URBAN | E75: 286 | F75: 0 | G75: 3.91742 | H75: 2.86 | I75: 7.703201507 | J75: 0.2078991495 | K75: 1 | L75: 120.4839 | M75: 120.4839 | N75: 0.986 | O75: 0.986 | P75: 3 | Q75: 3.2517 | R75: 3.2517 | S75: 0.014 | T75: 0.014
B76: 10020811 | C76: FN | D76: URBAN | E76: 96 | F76: 0 | G76: 1.27765 | H76: 2.721 | I76: 0.1583906376 | J76: 0.1090724422 | K76: 1 | L76: 0.9076 | M76: 0.9076 | N76: 0.0104 | O76: 0.0104 | P76: 1 | Q76: 0.625 | R76: 0.625 | S76: 0.0208 | T76: 0.0208
B77: 10020812 | C77: FN | D77: URBAN | E77: 187 | F77: 0 | G77: 1.7673 | H77: 3.894 | I77: 0 | J77: 0.127394 | K77: 0 | L77: 0 | M77: 0 | N77: 0 | O77: 0 | P77: 3 | Q77: 1.4545 | R77: 1.4545 | S77: 0.016 | T77: 0.016
B78: 10020813 | C78: FN | D78: URBAN | E78: 118 | F78: 0 | G78: 2.3125 | H78: 2.328 | I78: 0 | J78: 1.270283376 | K78: 0 | L78: 0 | M78: 0 | N78: 0 | O78: 0 | P78: 3 | Q78: 7.6356 | R78: 7.6356 | S78: 0.0339 | T78: 0.0339
B79: 10020814 | C79: FN | D79: URBAN | E79: 143 | F79: 0 | G79: 2.58892 | H79: 3.615 | I79: 10.71096778 | J79: 0.1417974449 | K79: 2 | L79: 64.4407 | M79: 64.4407 | N79: 0.965 | O79: 0.965 | P79: 5 | Q79: 0.8531 | R79: 0.8531 | S79: 0.035 | T79: 0.035
B80: 10020815 | C80: FN | D80: URBAN | E80: 98 | F80: 0 | G80: 2.23339 | H80: 6.494 | I80: 0 | J80: 7.517039671 | K80: 0 | L80: 0 | M80: 0 | N80: 0 | O80: 0 | P80: 5 | Q80: 19.102 | R80: 19.102 | S80: 0.1327 | T80: 0.1327
B81: 10020816 | C81: FN | D81: URBAN | E81: 313 | F81: 0 | G81: 2.84954 | H81: 2.981 | I81: 0.06349298685 | J81: 0.1858974647 | K81: 2 | L81: 0.9701 | M81: 0.9701 | N81: 0.0096 | O81: 0.0096 | P81: 3 | Q81: 2.8403 | R81: 2.8403 | S81: 0.2971 | T81: 0.2971
B82: 10020817 | C82: FN | D82: RURAL SHORT | E82: 1414 | F82: 113.08677 | G82: 2.44659 | H82: 4.724 | I82: 4.193509071 | J82: 0.1413912501 | K82: 48 | L82: 240.4803 | M82: 240.4162 | N82: 2.6931 | O82: 2.6924 | P82: 8 | Q82: 8.1082 | R82: 8.1082 | S82: 0.0552 | T82: 0.0552
B83: 10020818 | C83: FN | D83: URBAN | E83: 371 | F83: 0 | G83: 5.98826 | H83: 4.449 | I83: 0 | J83: 0.9432394939 | K83: 0 | L83: 0 | M83: 0 | N83: 0 | O83: 0 | P83: 3 | Q83: 11.8518 | R83: 11.8518 | S83: 0.0674 | T83: 0.0674
B84: 10020820 | C84: FN | D84: URBAN | E84: 166 | F84: 0 | G84: 2.36141 | H84: 4.102 | I84: 0.4417352828 | J84: 2.262811835 | K84: 1 | L84: 2.9 | M84: 2.9 | N84: 1.0482 | O84: 1.0482 | P84: 2 | Q84: 14.8554 | R84: 14.8554 | S84: 0.4277 | T84: 0.4277
B85: 10020821 | C85: FN | D85: URBAN | E85: 4 | F85: 0 | G85: 1.22757 | H85: 3.618 | I85: 0 | J85: 0 | K85: 0 | L85: 0 | M85: 0 | N85: 0 | O85: 0 | P85: 0 | Q85: 0 | R85: 0 | S85: 0 | T85: 0
B86: 10020822 | C86: FN | D86: URBAN | E86: 290 | F86: 0 | G86: 2.48222 | H86: 4.042 | I86: 0.01646726708 | J86: 1.891391944 | K86: 1 | L86: 0.2164 | M86: 0.2164 | N86: 0.0034 | O86: 0.0034 | P86: 9 | Q86: 24.8552 | R86: 24.8552 | S86: 0.2552 | T86: 0.2552
B87: 10020824 | C87: FN | D87: RURAL SHORT | E87: 556 | F87: 68.86746 | G87: 0.4557 | H87: 1.221 | I87: 2.1633437 | J87: 2.472870618 | K87: 27 | L87: 289.0514 | M87: 288.8233 | N87: 3.4388 | O87: 3.4371 | P87: 49 | Q87: 330.4083 | R87: 288.8183 | S87: 1.3885 | T87: 1.2194
B88: 10020825 | C88: FN | D88: RURAL SHORT | E88: 2527 | F88: 50.92719 | G88: 14.64799 | H88: 6.421 | I88: 3.316365743 | J88: 0.2904427276 | K88: 35 | L88: 336.4223 | M88: 336.4223 | N88: 6.3403 | O88: 6.3403 | P88: 23 | Q88: 29.4634 | R88: 29.4575 | S88: 0.1425 | T88: 0.1421
B89: 10020826 | C89: FN | D89: RURAL SHORT | E89: 2846 | F89: 12.89317 | G89: 19.26953 | H89: 0 | I89: 0.1995650521 | J89: 0.2475396217 | K89: 28 | L89: 17.086 | M89: 17.086 | N89: 0.104 | O89: 0.104 | P89: 31 | Q89: 21.1934 | R89: 21.1934 | S89: 0.1374 | T89: 0.1374
B90: 10020827 | C90: FN | D90: RURAL SHORT | E90: 1333 | F90: 12.14483 | G90: 1.81557 | H90: 3 | I90: 0.6494276183 | J90: 2.751245387 | K90: 25 | L90: 21.5286 | M90: 21.2201 | N90: 0.2198 | O90: 0.2161 | P90: 25 | Q90: 91.2041 | R90: 91.2041 | S90: 0.5469 | T90: 0.5469
B91: 10020828 | C91: FN | D91: RURAL LONG | E91: 1313 | F91: 221.48293 | G91: 1.44981 | H91: 2.864 | I91: 2.252808123 | J91: 0.1025680196 | K91: 60 | L91: 264.4141 | M91: 264.3883 | N91: 3.2521 | O91: 3.2513 | P91: 26 | Q91: 12.0385 | R91: 12.0385 | S91: 0.0792 | T91: 0.0792
B92: 10020829 | C92: FN | D92: RURAL SHORT | E92: 2342 | F92: 22.10908 | G92: 18.75476 | H92: 6.4 | I92: 1.451475697 | J92: 1.580471857 | K92: 31 | L92: 144.2596 | M92: 144.2596 | N92: 3.1751 | O92: 3.1751 | P92: 31 | Q92: 157.0803 | R92: 157.0803 | S92: 0.7797 | T92: 0.7797
B93: 10020830 | C93: FN | D93: RURAL SHORT | E93: 174 | F93: 1.39944 | G93: 12.81576 | H93: 0 | I93: 16.10873685 | J93: 0.8623293261 | K93: 2 | L93: 115.5183 | M93: 115.5183 | N93: 0.9943 | O93: 0.9943 | P93: 3 | Q93: 6.1839 | R93: 6.1839 | S93: 0.0345 | T93: 0.0345
B94: 10020831 | C94: FN | D94: RURAL SHORT | E94: 2965 | F94: 31.21932 | G94: 2.81586 | H94: 6.494 | I94: 0.1340751445 | J94: 0.499017856 | K94: 35 | L94: 12.5377 | M94: 12.5179 | N94: 0.4745 | O94: 0.4742 | P94: 40 | Q94: 46.6644 | R94: 46.6644 | S94: 0.2769 | T94: 0.2769
B95: 10020832 | C95: FN | D95: RURAL SHORT | E95: 1436 | F95: 10.55841 | G95: 14.459 | H95: 0 | I95: 2.728858333 | J95: 1.150678457 | K95: 24 | L95: 166.3781 | M95: 166.3781 | N95: 1.6602 | O95: 1.6602 | P95: 11 | Q95: 70.1567 | R95: 70.1567 | S95: 0.2953 | T95: 0.2953
B96: 10020833 | C96: FN | D96: RURAL SHORT | E96: 1851 | F96: 12.87491 | G96: 8.66437 | H96: 6.3 | I96: 0.5524214877 | J96: 0.5710582143 | K96: 19 | L96: 29.3481 | M96: 29.3062 | N96: 0.1659 | O96: 0.1653 | P96: 22 | Q96: 30.3382 | R96: 30.3382 | S96: 0.2555 | T96: 0.2555
B97: 10020834 | C97: FN | D97: RURAL SHORT | E97: 650 | F97: 7.96369 | G97: 1.49487 | H97: 2.634 | I97: 1.918879793 | J97: 1.550553846 | K97: 8 | L97: 120.6397 | M97: 120.6397 | N97: 1.3062 | O97: 1.3062 | P97: 9 | Q97: 97.4831 | R97: 97.4831 | S97: 0.3908 | T97: 0.3908
B98: 10020835 | C98: FN | D98: URBAN | E98: 1224 | F98: 3.61382 | G98: 4.61159 | H98: 3.2 | I98: 1.659558916 | J98: 0.09369116231 | K98: 18 | L98: 192.008 | M98: 192.008 | N98: 1.2092 | O98: 1.2092 | P98: 8 | Q98: 10.8399 | R98: 10.8399 | S98: 0.0842 | T98: 0.0842
B99: 10020836 | C99: FN | D99: RURAL SHORT | E99: 860 | F99: 175.5557 | G99: 1.00867 | H99: 3.211 | I99: 8.564471675 | J99: 0.2489877672 | K99: 65 | L99: 525.5989 | M99: 524.0487 | N99: 6.4756 | O99: 6.4395 | P99: 12 | Q99: 15.2803 | R99: 15.2803 | S99: 0.0733 | T99: 0.0733
B100: 10020837 | C100: FN | D100: RURAL SHORT | E100: 490 | F100: 128.46429 | G100: 0.32704 | H100: 3.697 | I100: 14.80292128 | J100: 3.016773216 | K100: 55 | L100: 687.8915 | M100: 687.4513 | N100: 4.8347 | O100: 4.8327 | P100: 19 | Q100: 140.1894 | R100: 140.1894 | S100: 0.6224 | T100: 0.6224
B101: 10020838 | C101: FN | D101: URBAN | E101: 934 | F101: 5.95673 | G101: 3.27178 | H101: 5.169 | I101: 0.6564638832 | J101: 0.6324314956 | K101: 18 | L101: 28.3538 | M101: 28.2381 | N101: 0.4004 | O101: 0.3994 | P101: 12 | Q101: 27.3158 | R101: 27.3158 | S101: 0.136 | T101: 0.136
B102: 10020839 | C102: FN | D102: URBAN | E102: 1062 | F102: 6.61352 | G102: 2.27355 | H102: 2.979 | I102: 1.145907512 | J102: 0.6206282021 | K102: 14 | L102: 86.5023 | M102: 86.5023 | N102: 1.1243 | O102: 1.1243 | P102: 20 | Q102: 46.85 | R102: 46.85 | S102: 0.3964 | T102: 0.3964
B103: 10020840 | C103: FN | D103: RURAL SHORT | E103: 2092 | F103: 28.66705 | G103: 2.87036 | H103: 4.587 | I103: 0.5015671064 | J103: 0.1647268541 | K103: 32 | L103: 41.2917 | M103: 41.2917 | N103: 1.0688 | O103: 1.0688 | P103: 36 | Q103: 13.5612 | R103: 13.5612 | S103: 0.1042 | T103: 0.1042
B104: 10020841 | C104: FN | D104: RURAL SHORT | E104: 645 | F104: 104.7806 | G104: 3.10901 | H104: 2.225 | I104: 0.6252240965 | J104: 0.1809945603 | K104: 25 | L104: 44.0019 | M104: 43.9001 | N104: 0.5023 | O104: 0.5008 | P104: 12 | Q104: 12.738 | R104: 12.738 | S104: 0.0589 | T104: 0.0589
B105: 10020842 | C105: FN | D105: RURAL SHORT | E105: 1012 | F105: 118.78516 | G105: 5.91907 | H105: 1.842 | I105: 6.630292885 | J105: 0.5095246504 | K105: 51 | L105: 717.8926 | M105: 717.7619 | N105: 10.5435 | O105: 10.5425 | P105: 36 | Q105: 55.1686 | R105: 55.1686 | S105: 0.2945 | T105: 0.2945
B106: 10020844 | C106: FN | D106: RURAL SHORT | E106: 630 | F106: 158.94755 | G106: 1.891 | H106: 1.179 | I106: 1.032708614 | J106: 0.3793939684 | K106: 32 | L106: 110.7765 | M106: 110.7765 | N106: 1.5524 | O106: 1.5524 | P106: 11 | Q106: 40.6968 | R106: 40.6968 | S106: 0.1476 | T106: 0.1476
B107: 10020845 | C107: FN | D107: RURAL SHORT | E107: 90 | F107: 15.50719 | G107: 0.28848 | H107: 0.208 | I107: 9.202412912 | J107: 0.2502405881 | K107: 10 | L107: 1359.8313 | M107: 1358.9372 | N107: 2.4 | O107: 2.3889 | P107: 7 | Q107: 36.9778 | R107: 36.9778 | S107: 0.1667 | T107: 0.1667
B108: 10020846 | C108: FN | D108: RURAL SHORT | E108: 1158 | F108: 23.88703 | G108: 5.30851 | H108: 6.1 | I108: 7.449107619 | J108: 0.9222239046 | K108: 25 | L108: 384.716 | M108: 384.6584 | N108: 3.2487 | O108: 3.2478 | P108: 55 | Q108: 47.6291 | R108: 47.6291 | S108: 0.2617 | T108: 0.2617
B109: 10020847 | C109: FN | D109: RURAL SHORT | E109: 1723 | F109: 133.75964 | G109: 4.7817 | H109: 3.38 | I109: 7.209321295 | J109: 0.5609320087 | K109: 51 | L109: 861.324 | M109: 823.1651 | N109: 6.4817 | O109: 6.4098 | P109: 88 | Q109: 67.0166 | R109: 67.0166 | S109: 0.3192 | T109: 0.3192
B110: 10020848 | C110: FN | D110: RURAL SHORT | E110: 98 | F110: 78.59278 | G110: 0.22181 | H110: 0.211 | I110: 5.206218511 | J110: 0 | K110: 7 | L110: 476.7102 | M110: 476.7102 | N110: 3.1531 | O110: 3.1531 | P110: 0 | Q110: 0 | R110: 0 | S110: 0 | T110: 0
B111: 10020850 | C111: FN | D111: RURAL SHORT | E111: 1402 | F111: 131.18244 | G111: 4.0107 | H111: 2.616 | I111: 1.327582309 | J111: 0.06421883676 | K111: 40 | L111: 177.3415 | M111: 177.3415 | N111: 1.7418 | O111: 1.7418 | P111: 10 | Q111: 8.5785 | R111: 8.5785 | S111: 0.107 | T111: 0.107
B112: 10020855 | C112: FN | D112: RURAL SHORT | E112: 632 | F112: 137.44595 | G112: 0.39834 | H112: 3.239 | I112: 3.755552041 | J112: 0.2424355668 | K112: 52 | L112: 223.0198 | M112: 223.0198 | N112: 1.0158 | O112: 1.0158 | P112: 13 | Q112: 14.3968 | R112: 14.3968 | S112: 0.0902 | T112: 0.0902
B113: 10020856 | C113: FN | D113: RURAL SHORT | E113: 139 | F113: 64.20967 | G113: 0.07037 | H113: 0.947 | I113: 0.5314165876 | J113: 3.029825488 | K113: 21 | L113: 30.3024 | M113: 30.3024 | N113: 0.2374 | O113: 0.2374 | P113: 23 | Q113: 172.7665 | R113: 172.7665 | S113: 0.964 | T113: 0.964
B114: 10020857 | C114: FN | D114: RURAL SHORT | E114: 227 | F114: 86.01142 | G114: 0.03577 | H114: 2.812 | I114: 3.77688509 | J114: 9.125441382 | K114: 24 | L114: 120.0587 | M114: 119.5209 | N114: 0.6652 | O114: 0.6608 | P114: 33 | Q114: 290.0773 | R114: 290.0773 | S114: 1.0132 | T114: 1.0132
B115: 10020858 | C115: FN | D115: RURAL SHORT | E115: 0 | F115: 0 | G115: 0.0406 | H115: 0 | I115: 0 | J115: 0 | K115: 0 | L115: 0 | M115: 0 | N115: 0 | O115: 0 | P115: 0 | Q115: 0 | R115: 0 | S115: 0 | T115: 0
B116: 10128810 | C116: FN | D116: RURAL SHORT | E116: 276 | F116: 87.73737 | G116: 0.1377 | H116: 0.579 | I116: 2.92621009 | J116: 0.4711983019 | K116: 26 | L116: 399.272 | M116: 399.272 | N116: 4.1486 | O116: 4.1486 | P116: 43 | Q116: 64.2935 | R116: 62.7283 | S116: 0.6667 | T116: 0.6594
B117: 10129302 | C117: FN | D117: URBAN | E117: 0 | F117: 7.44377 | G117: 0.503 | H117: 12.071 | I117: 0 | J117: 0 | K117: 0 | L117: 0 | M117: 0 | N117: 0 | O117: 0 | P117: 0 | Q117: 0 | R117: 0 | S117: 0 | T117: 0
B118: 10129324 | C118: FN | D118: RURAL SHORT | E118: 1100 | F118: 74.24025 | G118: 1.28138 | H118: 2.305 | I118: 2.255217758 | J118: 1.922634282 | K118: 48 | L118: 247.4109 | M118: 247.3515 | N118: 4.0018 | O118: 4.0009 | P118: 30 | Q118: 210.9245 | R118: 210.57 | S118: 1.0027 | T118: 1.0018
B119: 10129677 | C119: FN | D119: RURAL SHORT | E119: 2 | F119: 39.19622 | G119: 0.19531 | H119: 0.78 | I119: 13.95342057 | J119: 3.541242858 | K119: 6 | L119: 654.0833 | M119: 654.0833 | N119: 6 | O119: 6 | P119: 2 | Q119: 166 | R119: 166 | S119: 1 | T119: 1
B120: 10129863 | C120: FN | D120: URBAN | E120: 20 | F120: 1.80387 | G120: 2.02902 | H120: 1.814 | I120: 0 | J120: 16.06769966 | K120: 0 | L120: 0 | M120: 0 | N120: 0 | O120: 0 | P120: 1 | Q120: 23.25 | R120: 23.25 | S120: 0.05 | T120: 0.05
B121: 10130404 | C121: FN | D121: RURAL SHORT | E121: 605 | F121: 3.1275 | G121: 1.67107 | H121: 0 | I121: 0.01758780152 | J121: 0.5269054647 | K121: 8 | L121: 1.4677 | M121: 1.4677 | N121: 0.0149 | O121: 0.0149 | P121: 1 | Q121: 43.9702 | R121: 43.9702 | S121: 0.1554 | T121: 0.1554
B122: 10130408 | C122: FN | D122: RURAL SHORT | E122: 268 | F122: 4.48827 | G122: 5.59786 | H122: 0 | I122: 2.300192859 | J122: 1.397211264 | K122: 7 | L122: 57.9961 | M122: 57.9961 | N122: 1.0634 | O122: 1.0634 | P122: 4 | Q122: 35.2287 | R122: 35.2287 | S122: 0.1567 | T122: 0.1567
B123: 10130452 | C123: FN | D123: URBAN | E123: 827 | F123: 1.53868 | G123: 5.26981 | H123: 2.872 | I123: 0.5943522011 | J123: 0.5034812642 | K123: 8 | L123: 35.6987 | M123: 35.6987 | N123: 0.3736 | O123: 0.3736 | P123: 13 | Q123: 30.2407 | R123: 30.2407 | S123: 0.1306 | T123: 0.1306
B124: 10131875 | C124: FN | D124: RURAL SHORT | E124: 7 | F124: 11.09112 | G124: 0.06391 | H124: 0 | I124: 1.048707667 | J124: 7.694713051 | K124: 1 | L124: 71.5714 | M124: 71.5714 | N124: 1.4286 | O124: 1.4286 | P124: 2 | Q124: 525.1429 | R124: 525.1429 | S124: 1.8571 | T124: 1.8571
B125: 10131881 | C125: FN | D125: RURAL SHORT | E125: 5 | F125: 3.3835 | G125: 0.21842 | H125: 0 | I125: 0.690584268 | J125: 3.229728706 | K125: 2 | L125: 63.12 | M125: 63.12 | N125: 1.8 | O125: 1.8 | P125: 2 | Q125: 295.2 | R125: 295.2 | S125: 1.8 | T125: 1.8
B126: 10132616 | C126: FN | D126: URBAN | E126: 315 | F126: 0 | G126: 3.09081 | H126: 4.557 | I126: 0.02293342033 | J126: 0.1373944345 | K126: 1 | L126: 0.2782 | M126: 0.2782 | N126: 0.0032 | O126: 0.0032 | P126: 3 | Q126: 1.6667 | R126: 1.6667 | S126: 0.1333 | T126: 0.1333
B127: 10132684 | C127: FN | D127: RURAL LONG | E127: 161 | F127: 234.72094 | G127: 0.21487 | H127: 1.013 | I127: 22.26049119 | J127: 1.180044074 | K127: 30 | L127: 819.944 | M127: 819.944 | N127: 8.0373 | O127: 8.0373 | P127: 7 | Q127: 43.4658 | R127: 43.4658 | S127: 0.2609 | T127: 0.2609
B128: 10132687 | C128: FN | D128: RURAL SHORT | E128: 35 | F128: 96.42814 | G128: 0.23824 | H128: 0.696 | I128: 66.78929659 | J128: 17.22752528 | K128: 19 | L128: 868.8857 | M128: 868.8857 | N128: 7.0857 | O128: 7.0857 | P128: 6 | Q128: 224.119 | R128: 224.119 | S128: 1.2857 | T128: 1.2857
B129: 10134499 | C129: FN | D129: RURAL SHORT | E129: 1928 | F129: 9.17564 | G129: 8.62521 | H129: 4.444 | I129: 0.1394794028 | J129: 0.466094818 | K129: 15 | L129: 12.8713 | M129: 12.8009 | N129: 0.1276 | O129: 0.1266 | P129: 17 | Q129: 43.0117 | R129: 43.0117 | S129: 0.235 | T129: 0.235
B130: 10134518 | C130: FN | D130: URBAN | E130: 2851 | F130: 2.08293 | G130: 17.01752 | H130: 7.185 | I130: 0.00774740645 | J130: 0.01354613457 | K130: 8 | L130: 0.8516 | M130: 0.8516 | N130: 0.0144 | O130: 0.0144 | P130: 11 | Q130: 1.489 | R130: 1.489 | S130: 0.0186 | T130: 0.0186
B131: 10134605 | C131: FN | D131: URBAN | E131: 2570 | F131: 6.67922 | G131: 18.78401 | H131: 8.787 | I131: 0.269996409 | J131: 0.1199766133 | K131: 13 | L131: 20.9261 | M131: 20.8927 | N131: 0.1428 | O131: 0.1424 | P131: 18 | Q131: 9.2988 | R131: 9.2988 | S131: 0.0514 | T131: 0.0514
B132: 10135223 | C132: FN | D132: RURAL SHORT | E132: 10 | F132: 9.64767 | G132: 0 | H132: 0.1 | I132: 0.3398669439 | J132: 1.923393082 | K132: 1 | L132: 50.1833 | M132: 50.1833 | N132: 1 | O132: 1 | P132: 1 | Q132: 284 | R132: 284 | S132: 1 | T132: 1
B133: 20001080 | C133: NQ | D133: URBAN | E133: 161 | F133: 0 | G133: 3.22237 | H133: 2.088 | I133: 0.04416112807 | J133: 0 | K133: 2 | L133: 1.1193 | M133: 1.1193 | N133: 0.0124 | O133: 0.0124 | P133: 0 | Q133: 0 | R133: 0 | S133: 0 | T133: 0
B134: 20001081 | C134: NQ | D134: URBAN | E134: 602 | F134: 3.56042 | G134: 0.98244 | H134: 2.756 | I134: 0.3005719938 | J134: 0.4775068574 | K134: 12 | L134: 14.2211 | M134: 14.2211 | N134: 0.0814 | O134: 0.0814 | P134: 4 | Q134: 22.5925 | R134: 22.5925 | S134: 0.1146 | T134: 0.1146
B135: 20001108 | C135: NQ | D135: URBAN | E135: 870 | F135: 5.34249 | G135: 1.13453 | H135: 3.116 | I135: 0.6089706879 | J135: 0.6847559683 | K135: 19 | L135: 38.4168 | M135: 38.293 | N135: 0.2713 | O135: 0.2701 | P135: 6 | Q135: 43.1977 | R135: 43.1977 | S135: 0.2667 | T135: 0.2667
B136: 20001141 | C136: NQ | D136: URBAN | E136: 42 | F136: 0 | G136: 1.72829 | H136: 1.5 | I136: 0 | J136: 0 | K136: 0 | L136: 0 | M136: 0 | N136: 0 | O136: 0 | P136: 0 | Q136: 0 | R136: 0 | S136: 0 | T136: 0
B137: 20001148 | C137: NQ | D137: URBAN | E137: 1239 | F137: 7.78295 | G137: 0.73376 | H137: 3.067 | I137: 4.246208147 | J137: 0.06558275606 | K137: 22 | L137: 481.5987 | M137: 481.4978 | N137: 5.9516 | O137: 5.9508 | P137: 10 | Q137: 7.4383 | R137: 7.4383 | S137: 0.0751 | T137: 0.0751
B138: 20001165 | C138: NQ | D138: URBAN | E138: 111 | F138: 0.87363 | G138: 2.46729 | H138: 3.281 | I138: 0 | J138: 0.03544570407 | K138: 0 | L138: 0 | M138: 0 | N138: 0 | O138: 0 | P138: 1 | Q138: 0.5405 | R138: 0.5405 | S138: 0.009 | T138: 0.009
B139: 20001178 | C139: NQ | D139: URBAN | E139: 1217 | F139: 7.35742 | G139: 0.4223 | H139: 3.564 | I139: 0.05075276168 | J139: 0.08079687197 | K139: 18 | L139: 5.193 | M139: 5.193 | N139: 1.0173 | O139: 1.0173 | P139: 10 | Q139: 8.2671 | R139: 8.2671 | S139: 0.1619 | T139: 0.1619
B140: 20001196 | C140: NQ | D140: URBAN | E140: 420 | F140: 3.44892 | G140: 0.63677 | H140: 1.974 | I140: 0.8291756544 | J140: 0.5497111883 | K140: 9 | L140: 59.046 | M140: 59.046 | N140: 1.0786 | O140: 1.0786 | P140: 7 | Q140: 39.1452 | R140: 39.1452 | S140: 0.4667 | T140: 0.4667
B141: 20001246 | C141: NQ | D141: RURAL SHORT | E141: 61 | F141: 7.71326 | G141: 0.32614 | H141: 0.54 | I141: 1.684840773 | J141: 3.346675849 | K141: 9 | L141: 62.4262 | M141: 62.4262 | N141: 0.4262 | O141: 0.4262 | P141: 1 | Q141: 124 | R141: 124 | S141: 1.0164 | T141: 1.0164
B142: 20001263 | C142: NQ | D142: RURAL SHORT | E142: 410 | F142: 52.28941 | G142: 0.06828 | H142: 2.4 | I142: 3.7603457 | J142: 1.678700357 | K142: 42 | L142: 241.0832 | M142: 241.0832 | N142: 2.4 | O142: 2.4 | P142: 17 | Q142: 107.6248 | R142: 107.6248 | S142: 0.3976 | T142: 0.3976
B143: 20001353 | C143: NQ | D143: RURAL SHORT | E143: 206 | F143: 76.19426 | G143: 0.41225 | H143: 1.257 | I143: 9.482595377 | J143: 6.930404806 | K143: 48 | L143: 293.4254 | M143: 293.0432 | N143: 2.1068 | O143: 2.1019 | P143: 9 | Q143: 214.4515 | R143: 214.4515 | S143: 0.8544 | T143: 0.8544
B144: 20001488 | C144: NQ | D144: RURAL SHORT | E144: 605 | F144: 69.46701 | G144: 0.09379 | H144: 2.973 | I144: 4.044259592 | J144: 1.229718618 | K144: 72 | L144: 282.6328 | M144: 281.5578 | N144: 2.9868 | O144: 2.9802 | P144: 12 | Q144: 85.9388 | R144: 85.9388 | S144: 0.4264 | T144: 0.4264
B145: 20001649 | C145: NQ | D145: RURAL SHORT | E145: 465 | F145: 108.92166 | G145: 0.31002 | H145: 3.6 | I145: 11.8649969 | J145: 5.785785887 | K145: 87 | L145: 551.016 | M145: 551.016 | N145: 2.643 | O145: 2.643 | P145: 14 | Q145: 268.6946 | R145: 268.6946 | S145: 0.7914 | T145: 0.7914
B146: 20001859 | C146: NQ | D146: RURAL SHORT | E146: 93 | F146: 41.50168 | G146: 0 | H146: 0.506 | I146: 6.612584132 | J146: 1.50350199 | K146: 22 | L146: 771.5158 | M146: 673.1516 | N146: 10.3011 | O146: 9.3118 | P146: 5 | Q146: 175.4194 | R146: 175.4194 | S146: 2.2903 | T146: 2.2903
B147: 20001962 | C147: NQ | D147: RURAL SHORT | E147: 305 | F147: 74.8109 | G147: 0.01855 | H147: 0 | I147: 5.301161953 | J147: 0.002677736107 | K147: 40 | L147: 389.4105 | M147: 389.4105 | N147: 7.9377 | O147: 7.9377 | P147: 2 | Q147: 0.1967 | R147: 0.1967 | S147: 0.0066 | T147: 0.0066
B148: 20002064 | C148: NQ | D148: RURAL SHORT | E148: 90 | F148: 59.4411 | G148: 0 | H148: 0 | I148: 16.48710471 | J148: 1.091856175 | K148: 36 | L148: 661.8859 | M148: 661.8859 | N148: 7.7889 | O148: 7.7889 | P148: 3 | Q148: 43.8333 | R148: 43.8333 | S148: 0.3 | T148: 0.3
B149: 20002143 | C149: NQ | D149: RURAL SHORT | E149: 1 | F149: 8.31066 | G149: 0 | H149: 0 | I149: 0.01240496019 | J149: 0.02956864564 | K149: 3 | L149: 566.3667 | M149: 566.3667 | N149: 3 | O149: 3 | P149: 4 | Q149: 1350 | R149: 1350 | S149: 4 | T149: 4
B150: 20002149 | C150: NQ | D150: RURAL SHORT | E150: 2 | F150: 13.35168 | G150: 0 | H150: 0 | I150: 3.066848489 | J150: 7.310185185 | K150: 3 | L150: 566.3667 | M150: 566.3667 | N150: 3 | O150: 3 | P150: 4 | Q150: 1350 | R150: 1350 | S150: 4 | T150: 4
B151: 20002267 | C151: NQ | D151: RURAL SHORT | E151: 502 | F151: 32.62465 | G151: 0 | H151: 0 | I151: 8.932020498 | J151: 0.2486570491 | K151: 28 | L151: 939.4574 | M151: 939.4574 | N151: 9.2191 | O151: 9.2191 | P151: 5 | Q151: 26.1534 | R151: 26.1534 | S151: 0.5319 | T151: 0.5319
B152: 20002331 | C152: NQ | D152: RURAL SHORT | E152: 991 | F152: 65.70393 | G152: 0.64412 | H152: 0 | I152: 7.61157737 | J152: 0.3891092696 | K152: 32 | L152: 960.0844 | M152: 960.0844 | N152: 10.8002 | O152: 10.8002 | P152: 11 | Q152: 49.0802 | R152: 49.0802 | S152: 0.777 | T152: 0.777
B153: 20002437 | C153: NQ | D153: RURAL SHORT | E153: 278 | F153: 23.61301 | G153: 0.13026 | H153: 1 | I153: 0.2868696313 | J153: 3.154850012 | K153: 30 | L153: 27.4876 | M153: 27.4253 | N153: 0.3129 | O153: 0.3094 | P153: 16 | Q153: 302.295 | R153: 302.295 | S153: 0.964 | T153: 0.964
B154: 20002494 | C154: NQ | D154: RURAL SHORT | E154: 398 | F154: 168.01338 | G154: 1.12003 | H154: 1.536 | I154: 12.87116249 | J154: 2.901326028 | K154: 36 | L154: 822.299 | M154: 822.299 | N154: 4.9673 | O154: 4.9673 | P154: 10 | Q154: 185.3568 | R154: 185.3568 | S154: 0.7889 | T154: 0.7889
B155: 20002622 | C155: NQ | D155: RURAL SHORT | E155: 1278 | F155: 9.42358 | G155: 7.38016 | H155: 3.079 | I155: 0.3085136737 | J155: 0.4667624923 | K155: 27 | L155: 28.3398 | M155: 28.3114 | N155: 0.5548 | O155: 0.554 | P155: 7 | Q155: 42.8764 | R155: 42.8764 | S155: 0.1236 | T155: 0.1236
B156: 20002652 | C156: NQ | D156: RURAL SHORT | E156: 901 | F156: 9.9504 | G156: 3.58341 | H156: 3.768 | I156: 0.3824874881 | J156: 0.3327562373 | K156: 36 | L156: 20.879 | M156: 20.855 | N156: 0.3097 | O156: 0.3085 | P156: 14 | Q156: 18.1643 | R156: 18.1643 | S156: 0.162 | T156: 0.162
B157: 20002698 | C157: NQ | D157: RURAL SHORT | E157: 1585 | F157: 13.21275 | G157: 2.05747 | H157: 3.694 | I157: 0.6775701957 | J157: 0.7130142089 | K157: 60 | L157: 77.7397 | M157: 77.7021 | N157: 0.7754 | O157: 0.7748 | P157: 33 | Q157: 81.8063 | R157: 81.8063 | S157: 0.3596 | T157: 0.3596
B158: 20002744 | C158: NQ | D158: URBAN | E158: 1 | F158: 1.4105 | G158: 0.48886 | H158: 4.32 | I158: 0 | J158: 237.5997129 | K158: 0 | L158: 0 | M158: 0 | N158: 0 | O158: 0 | P158: 1 | Q158: 12.1833 | R158: 12.1833 | S158: 1 | T158: 1
B159: 20002752 | C159: NQ | D159: RURAL SHORT | E159: 1826 | F159: 0.46028 | G159: 22.9368 | H159: 4.988 | I159: 0.4253399275 | J159: 0.002517207911 | K159: 6 | L159: 45.5213 | M159: 45.5213 | N159: 1.0586 | O159: 1.0586 | P159: 7 | Q159: 0.2694 | R159: 0.2694 | S159: 0.0038 | T159: 0.0038
B160: 20002914 | C160: NQ | D160: RURAL SHORT | E160: 245 | F160: 9.72388 | G160: 2.93071 | H160: 3.709 | I160: 0.6362109512 | J160: 1.956052813 | K160: 6 | L160: 11.6281 | M160: 11.6281 | N160: 0.8408 | O160: 0.8408 | P160: 5 | Q160: 35.751 | R160: 35.751 | S160: 0.1224 | T160: 0.1224
B161: 20002948 | C161: NQ | D161: RURAL SHORT | E161: 1233 | F161: 7.3841 | G161: 8.96768 | H161: 2.97 | I161: 0.9086364867 | J161: 0.1102269007 | K161: 6 | L161: 106.8393 | M161: 106.8393 | N161: 1.219 | O161: 1.219 | P161: 12 | Q161: 12.9607 | R161: 12.9607 | S161: 0.1217 | T161: 0.1217
B162: 20002985 | C162: NQ | D162: URBAN | E162: 52 | F162: 3.32541 | G162: 0.48584 | H162: 1.82 | I162: 21.9631662 | J162: 0.2118574703 | K162: 4 | L162: 203.3478 | M162: 203.3478 | N162: 1.1154 | O162: 1.1154 | P162: 3 | Q162: 1.9615 | R162: 1.9615 | S162: 0.0577 | T162: 0.0577
B163: 20003026 | C163: NQ | D163: RURAL SHORT | E163: 1320 | F163: 8.78637 | G163: 10.25165 | H163: 4.441 | I163: 1.639672285 | J163: 0.1676182487 | K163: 16 | L163: 168.4169 | M163: 168.4169 | N163: 1.097 | O163: 1.097 | P163: 12 | Q163: 17.2167 | R163: 17.2167 | S163: 0.1136 | T163: 0.1136
B164: 20003061 | C164: NQ | D164: URBAN | E164: 260 | F164: 4.69835 | G164: 2.49115 | H164: 2.782 | I164: 0.1419165995 | J164: 0.01523438157 | K164: 5 | L164: 3.4393 | M164: 3.4393 | N164: 0.0308 | O164: 0.0308 | P164: 5 | Q164: 0.3692 | R164: 0.3692 | S164: 0.0231 | T164: 0.0231
B165: 20003088 | C165: NQ | D165: RURAL SHORT | E165: 1073 | F165: 19.09261 | G165: 6.80879 | H165: 3.12 | I165: 0.05503165826 | J165: 0.007147384209 | K165: 15 | L165: 4.987 | M165: 4.987 | N165: 0.0447 | O165: 0.0447 | P165: 4 | Q165: 0.6477 | R165: 0.6477 | S165: 0.0037 | T165: 0.0037
B166: 20003281 | C166: NQ | D166: RURAL SHORT | E166: 545 | F166: 4.69668 | G166: 1.33698 | H166: 1.372 | I166: 0.0440992163 | J166: 0.4552928497 | K166: 14 | L166: 5.0061 | M166: 5.0061 | N166: 0.0275 | O166: 0.0275 | P166: 4 | Q166: 51.6844 | R166: 51.6844 | S166: 0.2606 | T166: 0.2606
B167: 20003294 | C167: NQ | D167: RURAL SHORT | E167: 700 | F167: 7.779 | G167: 0.16828 | H167: 0.9 | I167: 3.739607223 | J167: 0.03563078274 | K167: 21 | L167: 448.3022 | M167: 448.2557 | N167: 5.3857 | O167: 5.3843 | P167: 5 | Q167: 4.2714 | R167: 4.2714 | S167: 0.0229 | T167: 0.0229
B168: 20003306 | C168: NQ | D168: URBAN | E168: 479 | F168: 4.44066 | G168: 1.02697 | H168: 1.798 | I168: 0.08799141789 | J168: 0.429536343 | K168: 9 | L168: 5.5434 | M168: 5.5434 | N168: 0.0188 | O168: 0.0188 | P168: 6 | Q168: 27.0605 | R168: 27.0605 | S168: 0.2276 | T168: 0.2276
B169: 20003317 | C169: NQ | D169: URBAN | E169: 877 | F169: 4.69767 | G169: 0.97945 | H169: 3.239 | I169: 0.06837681156 | J169: 0.4163662908 | K169: 18 | L169: 4.8986 | M169: 4.8986 | N169: 0.0331 | O169: 0.0331 | P169: 3 | Q169: 29.829 | R169: 29.829 | S169: 0.203 | T169: 0.203
B170: 20003329 | C170: NQ | D170: URBAN | E170: 19 | F170: 0 | G170: 2.22656 | H170: 4.422 | I170: 0 | J170: 0 | K170: 0 | L170: 0 | M170: 0 | N170: 0 | O170: 0 | P170: 0 | Q170: 0 | R170: 0 | S170: 0 | T170: 0
B171: 20003349 | C171: NQ | D171: URBAN | E171: 998 | F171: 5.24624 | G171: 0.91057 | H171: 3.451 | I171: 0.2196808754 | J171: 0.2089536331 | K171: 23 | L171: 18.3879 | M171: 18.366 | N171: 0.1413 | O171: 0.1403 | P171: 7 | Q171: 17.49 | R171: 17.49 | S171: 0.1583 | T171: 0.1583
B172: 20003387 | C172: NQ | D172: URBAN | E172: 501 | F172: 0 | G172: 4.04947 | H172: 4.241 | I172: 8.028864212 | J172: 3.882232888 | K172: 11 | L172: 359.3849 | M172: 359.3849 | N172: 3.6447 | O172: 3.6447 | P172: 16 | Q172: 173.775 | R172: 173.775 | S172: 0.6647 | T172: 0.6647
B173: 20003411 | C173: NQ | D173: URBAN | E173: 384 | F173: 0.13457 | G173: 4.56556 | H173: 2.462 | I173: 0.02098541382 | J173: 0.1924569863 | K173: 5 | L173: 1.1878 | M173: 1.1878 | N173: 0.013 | O173: 0.013 | P173: 2 | Q173: 10.8933 | R173: 10.8933 | S173: 0.2188 | T173: 0.2188
B174: 20003435 | C174: NQ | D174: RURAL LONG | E174: 455 | F174: 217.15666 | G174: 0.03147 | H174: 1.4 | I174: 6.131465044 | J174: 2.506530917 | K174: 21 | L174: 265.434 | M174: 201.3475 | N174: 4.3978 | O174: 3.3912 | P174: 9 | Q174: 108.5089 | R174: 108.5089 | S174: 2.1055 | T174: 2.1055
B175: 20003471 | C175: NQ | D175: RURAL SHORT | E175: 246 | F175: 6.76439 | G175: 0.09071 | H175: 0 | I175: 13.64862619 | J175: 13.39228384 | K175: 17 | L175: 524.0675 | M175: 460.9185 | N175: 5.8862 | O175: 4.8943 | P175: 15 | Q175: 514.2247 | R175: 514.2247 | S175: 3.8537 | T175: 3.8537
B176: 20003493 | C176: NQ | D176: RURAL SHORT | E176: 2 | F176: 1.24384 | G176: 0 | H176: 0 | I176: 7.414090163 | J176: 4.501808869 | K176: 2 | L176: 133.4 | M176: 69.7333 | N176: 2 | O176: 1 | P176: 2 | Q176: 81 | R176: 81 | S176: 2 | T176: 2
B177: 20003547 | C177: NQ | D177: RURAL SHORT | E177: 1 | F177: 0.03532 | G177: 0.30441 | H177: 0 | I177: 37095.4554 | J177: 0 | K177: 10 | L177: 2317.2167 | M177: 2317.2167 | N177: 10 | O177: 10 | P177: 0 | Q177: 0 | R177: 0 | S177: 0 | T177: 0
B178: 20003550 | C178: NQ | D178: RURAL SHORT | E178: 341 | F178: 49.35201 | G178: 0.96174 | H178: 0 | I178: 14.98285459 | J178: 0 | K178: 13 | L178: 2341.7228 | M178: 2341.649 | N178: 8.915 | O178: 8.912 | P178: 0 | Q178: 0 | R178: 0 | S178: 0 | T178: 0
B179: 20003792 | C179: NQ | D179: RURAL SHORT | E179: 1104 | F179: 111.53828 | G179: 0.1908 | H179: 2.9 | I179: 1.24148724 | J179: 1.698008385 | K179: 46 | L179: 110.7184 | M179: 110.6241 | N179: 1.4882 | O179: 1.4873 | P179: 69 | Q179: 151.4319 | R179: 151.4319 | S179: 0.5779 | T179: 0.5779
B180: 20003866 | C180: NQ | D180: RURAL LONG | E180: 111 | F180: 583.84913 | G180: 0.28203 | H180: 9.364 | I180: 237.1163855 | J180: 369.3357451 | K180: 26 | L180: 662.0545 | M180: 662.0545 | N180: 3.2703 | O180: 3.2703 | P180: 20 | Q180: 1031.2252 | R180: 1031.2252 | S180: 3.5856 | T180: 3.5856
B181: 20003945 | C181: NQ | D181: URBAN | E181: 1 | F181: 1.4381 | G181: 0.00739 | H181: 9.526 | I181: 0 | J181: 0 | K181: 0 | L181: 0 | M181: 0 | N181: 0 | O181: 0 | P181: 0 | Q181: 0 | R181: 0 | S181: 0 | T181: 0
B182: 20003949 | C182: NQ | D182: RURAL LONG | E182: 190 | F182: 371.86994 | G182: 0 | H182: 0.434 | I182: 15.96336657 | J182: 0.4526813295 | K182: 21 | L182: 1366.3153 | M182: 1366.3153 | N182: 5.6 | O182: 5.6 | P182: 3 | Q182: 38.7453 | R182: 38.7453 | S182: 0.2158 | T182: 0.2158
B183: 20003983 | C183: NQ | D183: RURAL SHORT | E183: 71 | F183: 138.28506 | G183: 0 | H183: 0.416 | I183: 27.29389023 | J183: 10.80031585 | K183: 10 | L183: 1084.1779 | M183: 1084.1779 | N183: 5.8451 | O183: 5.8451 | P183: 4 | Q183: 429.0141 | R183: 429.0141 | S183: 2.1972 | T183: 2.1972
B184: 20004054 | C184: NQ | D184: RURAL LONG | E184: 776 | F184: 359.78538 | G184: 0.37352 | H184: 1.787 | I184: 4.255901228 | J184: 2.617407649 | K184: 40 | L184: 428.0043 | M184: 428.0043 | N184: 3.1469 | O184: 3.1469 | P184: 15 | Q184: 263.2255 | R184: 263.2255 | S184: 4.558 | T184: 4.558
B185: 20004081 | C185: NQ | D185: RURAL LONG | E185: 784 | F185: 686.20201 | G185: 0.05105 | H185: 3.985 | I185: 5.301227134 | J185: 3.657934445 | K185: 63 | L185: 264.2683 | M185: 264.2683 | N185: 3.1122 | O185: 3.1122 | P185: 43 | Q185: 182.3495 | R185: 181.0829 | S185: 4.5523 | T185: 4.5485
B186: 20004307 | C186: NQ | D186: RURAL SHORT | E186: 307 | F186: 41.00531 | G186: 0.08381 | H186: 0.896 | I186: 0.7386475967 | J186: 1.274753717 | K186: 21 | L186: 56.474 | M186: 56.474 | N186: 3.3225 | O186: 3.3225 | P186: 7 | Q186: 97.4625 | R186: 97.4625 | S186: 3.9739 | T186: 3.9739
B187: 20004592 | C187: NQ | D187: RURAL SHORT | E187: 463 | F187: 7.21402 | G187: 0.21434 | H187: 2.14 | I187: 0.138190762 | J187: 2.937151256 | K187: 14 | L187: 6.6313 | M187: 6.5375 | N187: 1.0648 | O187: 1.0626 | P187: 15 | Q187: 140.9438 | R187: 140.9438 | S187: 4.2419 | T187: 4.2419
B188: 20004679 | C188: NQ | D188: RURAL SHORT | E188: 1 | F188: 0.24247 | G188: 0 | H188: 0 | I188: 2.14334682 | J188: 4.304809458 | K188: 4 | L188: 698.05 | M188: 698.05 | N188: 4 | O188: 4 | P188: 4 | Q188: 1402 | R188: 1402 | S188: 4 | T188: 4
B189: 20004700 | C189: NQ | D189: URBAN | E189: 453 | F189: 3.04814 | G189: 2.20464 | H189: 3.217 | I189: 0.3642371269 | J189: 0.4469583822 | K189: 8 | L189: 11.6068 | M189: 11.4451 | N189: 0.0971 | O189: 0.0949 | P189: 2 | Q189: 14.2428 | R189: 14.2428 | S189: 0.2031 | T189: 0.2031
B190: 20004715 | C190: NQ | D190: URBAN | E190: 50 | F190: 0 | G190: 1.17292 | H190: 1.4 | I190: 0 | J190: 0 | K190: 0 | L190: 0 | M190: 0 | N190: 0 | O190: 0 | P190: 0 | Q190: 0 | R190: 0 | S190: 0 | T190: 0
B191: 20004751 | C191: NQ | D191: URBAN | E191: 869 | F191: 5.43339 | G191: 1.68407 | H191: 2.355 | I191: 0.02889231678 | J191: 0.006394642292 | K191: 14 | L191: 3.1144 | M191: 3.1144 | N191: 0.0173 | O191: 0.0173 | P191: 5 | Q191: 0.6893 | R191: 0.6893 | S191: 0.0069 | T191: 0.0069
B192: 20004796 | C192: NQ | D192: RURAL SHORT | E192: 1341 | F192: 16.59237 | G192: 11.56789 | H192: 3.891 | I192: 0.242947845 | J192: 0.1946505198 | K192: 10 | L192: 20.1678 | M192: 20.1678 | N192: 0.0932 | O192: 0.0932 | P192: 8 | Q192: 16.1585 | R192: 16.1585 | S192: 0.0544 | T192: 0.0544
B193: 20004893 | C193: NQ | D193: URBAN | E193: 1233 | F193: 5.53942 | G193: 3.89962 | H193: 4.567 | I193: 0.2104551038 | J193: 0.001038640317 | K193: 30 | L193: 17.2637 | M193: 17.2637 | N193: 0.1071 | O193: 0.1071 | P193: 5 | Q193: 0.0852 | R193: 0.0852 | S193: 0.0041 | T193: 0.0041
B194: 20004903 | C194: NQ | D194: RURAL SHORT | E194: 954 | F194: 164.38751 | G194: 4.52194 | H194: 4.9 | I194: 1.435525557 | J194: 1.206982005 | K194: 31 | L194: 144.8141 | M194: 144.6549 | N194: 1.7306 | O194: 1.7296 | P194: 17 | Q194: 121.7589 | R194: 121.7589 | S194: 0.5912 | T194: 0.5912
B195: 20004937 | C195: NQ | D195: RURAL LONG | E195: 308 | F195: 776.59448 | G195: 0.25414 | H195: 0 | I195: 33.90235706 | J195: 3.439284757 | K195: 32 | L195: 1586.4122 | M195: 1506.6871 | N195: 5.0714 | O195: 4.0292 | P195: 14 | Q195: 160.9364 | R195: 160.9364 | S195: 2.4123 | T195: 2.4123
B196: 20004955 | C196: NQ | D196: RURAL SHORT | E196: 277 | F196: 27.8376 | G196: 0.1699 | H196: 0 | I196: 5.906076892 | J196: 9.968866361 | K196: 21 | L196: 192.0358 | M196: 128.599 | N196: 2.574 | O196: 1.5776 | P196: 18 | Q196: 324.1372 | R196: 324.1372 | S196: 2.9386 | T196: 2.9386
B197: 20005039 | C197: NQ | D197: RURAL SHORT | E197: 2 | F197: 11.3159 | G197: 0 | H197: 0 | I197: 1.306892048 | J197: 0.08814605787 | K197: 15 | L197: 8148.7333 | M197: 8148.7333 | N197: 8 | O197: 8 | P197: 4 | Q197: 549.6083 | R197: 549.6083 | S197: 2 | T197: 2
B198: 20005133 | C198: NQ | D198: RURAL LONG | E198: 1144 | F198: 251.31275 | G198: 0.53644 | H198: 4.229 | I198: 4.306519528 | J198: 1.013926394 | K198: 39 | L198: 260.9197 | M198: 247.2276 | N198: 2.3357 | O198: 1.3252 | P198: 10 | Q198: 61.4309 | R198: 61.4309 | S198: 0.3811 | T198: 0.3811
B199: 20005188 | C199: NQ | D199: RURAL SHORT | E199: 887 | F199: 17.51456 | G199: 1.13418 | H199: 5.25 | I199: 2.22243436 | J199: 1.591264614 | K199: 28 | L199: 104.764 | M199: 104.6732 | N199: 2.9583 | O199: 2.9572 | P199: 34 | Q199: 75.0111 | R199: 75.0111 | S199: 0.2616 | T199: 0.2616
B200: 20005242 | C200: NQ | D200: URBAN | E200: 157 | F200: 3.22786 | G200: 0.8324 | H200: 2.467 | I200: 26.79137797 | J200: 21.32567637 | K200: 7 | L200: 227.5818 | M200: 227.5818 | N200: 1.4522 | O200: 1.4522 | P200: 11 | Q200: 181.1529 | R200: 181.1529 | S200: 2.414 | T200: 2.414
B201: 20005265 | C201: NQ | D201: RURAL SHORT | E201: 1221 | F201: 19.77353 | G201: 0.48553 | H201: 4.4 | I201: 4.973573059 | J201: 0.08491290799 | K201: 23 | L201: 283.556 | M201: 247.5335 | N201: 3.1835 | O201: 2.1818 | P201: 9 | Q201: 4.8411 | R201: 4.8411 | S201: 0.0246 | T201: 0.0246
B202: 20005314 | C202: NQ | D202: RURAL SHORT | E202: 517 | F202: 12.98053 | G202: 0.35807 | H202: 2.287 | I202: 1.156867036 | J202: 0.2382936701 | K202: 11 | L202: 65.5912 | M202: 37.0324 | N202: 1.5513 | O202: 0.559 | P202: 5 | Q202: 13.5106 | R202: 13.5106 | S202: 0.0832 | T202: 0.0832
B203: 20005336 | C203: NQ | D203: URBAN | E203: 1035 | F203: 6.28156 | G203: 0.99197 | H203: 5.2 | I203: 2.013105527 | J203: 0.5273683162 | K203: 20 | L203: 94.351 | M203: 33.7174 | N203: 2.8512 | O203: 0.287 | P203: 7 | Q203: 24.7169 | R203: 24.7169 | S203: 0.2338 | T203: 0.2338
B204: 20005357 | C204: NQ | D204: URBAN | E204: 674 | F204: 5.57291 | G204: 1.38128 | H204: 2.71 | I204: 4.782725696 | J204: 1.225888492 | K204: 19 | L204: 395.5592 | M204: 344.6073 | N204: 6.1706 | O204: 4.1706 | P204: 14 | Q204: 101.3881 | R204: 101.3881 | S204: 0.4318 | T204: 0.4318
... 1104 more rows

Sheet 3.6.9 Network-reliability
B1: =(LOOKUP(dms_Model,dms_Model_List,dms_Worksheet_List)) -> REGULATORY REPORTING STATEMENT | G1: =CONCATENATE("1-Jan-",LEFT(CRY,4)) -> 1-Jan-2015
B2: =dms_TradingName -> Ergon Energy
B3: =CONCATENATE("Annual Reporting RIN Response ",CRY) -> Annual Reporting RIN Response 2015-16
B4: 3.6 QUALITY OF SERVICES
B7: 3.6.9 - NETWORK FEEDER RELIABILITY - PLANNED OUTAGES
B10: 3.6.9.1 - PLANNED MINUTES OFF SUPPLY (SAIDI)
C11: =CRY -> 2015-16
B12: =INDEX(dms_FeederName_1,MATCH(dms_TradingName,dms_TradingName_List)) -> CBD
B13: =INDEX(dms_FeederName_2,MATCH(dms_TradingName,dms_TradingName_List)) -> Urban | C13: 33.15092847
B14: =INDEX(dms_FeederName_3,MATCH(dms_TradingName,dms_TradingName_List)) -> Short rural | C14: 81.70212989
B15: =INDEX(dms_FeederName_4,MATCH(dms_TradingName,dms_TradingName_List)) -> Long rural | C15: 154.8414322
B16: =IF((INDEX(dms_FeederName_5,MATCH(dms_TradingName,dms_TradingName_List))=0),"",(INDEX(dms_FeederName_5,MATCH(dms_TradingName,dms_TradingName_List)))) -> 
B18: 3.6.9.2 - PLANNED INTERRUPTIONS TO SUPPLY (SAIFI)
C19: =CRY -> 2015-16
B20: =INDEX(dms_FeederName_1,MATCH(dms_TradingName,dms_TradingName_List)) -> CBD
B21: =INDEX(dms_FeederName_2,MATCH(dms_TradingName,dms_TradingName_List)) -> Urban | C21: 0.2021508193
B22: =INDEX(dms_FeederName_3,MATCH(dms_TradingName,dms_TradingName_List)) -> Short rural | C22: 0.4532040344
B23: =INDEX(dms_FeederName_4,MATCH(dms_TradingName,dms_TradingName_List)) -> Long rural | C23: 0.846091319
B24: =IF((INDEX(dms_FeederName_5,MATCH(dms_TradingName,dms_TradingName_List))=0),"",(INDEX(dms_FeederName_5,MATCH(dms_TradingName,dms_TradingName_List)))) -> 

Sheet 4.1 Public lighting
B1: =(LOOKUP(dms_Model,dms_Model_List,dms_Worksheet_List)) -> REGULATORY REPORTING STATEMENT
B2: =dms_TradingName -> Ergon Energy
B3: =CONCATENATE("Annual Reporting RIN Response ",CRY) -> Annual Reporting RIN Response 2015-16
B4: 4.1 PUBLIC LIGHTING
B6: Tables 4.1.1 - 4.1.3 deliberately omitted.
B8: 4.1.4 - PUBLIC LIGHTING METRICS BY TARIFF
B10: Tariff categories | C10: Number of Lights | D10: Public Lighting Revenue
B11: <insert tariff category> | C11: 0's | D11: $0's, nominal
B22: To enter further tariff categories - please insert new lines above this line.
B23: Total | C23: =SUM(C12:C21) -> 0 | D23: =SUM(D12:D21) -> 0

Sheet 6.2 STPIS Reliability
B1: =(LOOKUP(dms_Model,dms_Model_List,dms_Worksheet_List)) -> REGULATORY REPORTING STATEMENT
B2: =dms_TradingName -> Ergon Energy
B3: =CONCATENATE("Annual Reporting RIN Response ",CRY) -> Annual Reporting RIN Response 2015-16
B4: 6.2 RELIABILITY AND CUSTOMER SERVICE PERFORMANCE
B6: Did the MAIFI parameter of the STPIS apply during the period? This flag is set from the response on worksheet 3.6.8 Network feeders | D6: =dms_MAIFI_Flag -> No
B9: 6.2.1 - UNPLANNED MINUTES OFF SUPPLY (SAIDI)
D10: =CRY -> 2015-16
B11: Total sustained minutes off supply | C11: =INDEX(dms_FeederName_1,MATCH(dms_TradingName,dms_TradingName_List)) -> CBD
C12: =INDEX(dms_FeederName_2,MATCH(dms_TradingName,dms_TradingName_List)) -> Urban | D12: 112.1812
C13: =INDEX(dms_FeederName_3,MATCH(dms_TradingName,dms_TradingName_List)) -> Short rural | D13: 315.377
C14: =INDEX(dms_FeederName_4,MATCH(dms_TradingName,dms_TradingName_List)) -> Long rural | D14: 885.593
C15: =IF((INDEX(dms_FeederName_5,MATCH(dms_TradingName,dms_TradingName_List))=0),"",(INDEX(dms_FeederName_5,MATCH(dms_TradingName,dms_TradingName_List)))) -> 
C16: Whole Network | D16: 315.2438
B17: Total of excluded events* *see 3.3 of STPIS | C17: =INDEX(dms_FeederName_1,MATCH(dms_TradingName,dms_TradingName_List)) -> CBD
C18: =INDEX(dms_FeederName_2,MATCH(dms_TradingName,dms_TradingName_List)) -> Urban | D18: 17.573
C19: =INDEX(dms_FeederName_3,MATCH(dms_TradingName,dms_TradingName_List)) -> Short rural | D19: 38.5941
C20: =INDEX(dms_FeederName_4,MATCH(dms_TradingName,dms_TradingName_List)) -> Long rural | D20: 63.8466
C21: =IF((INDEX(dms_FeederName_5,MATCH(dms_TradingName,dms_TradingName_List))=0),"",(INDEX(dms_FeederName_5,MATCH(dms_TradingName,dms_TradingName_List)))) -> 
C22: Whole Network | D22: 34.7525
B23: Total sustained minutes off supply after removing excluded events | C23: =INDEX(dms_FeederName_1,MATCH(dms_TradingName,dms_TradingName_List)) -> CBD
C24: =INDEX(dms_FeederName_2,MATCH(dms_TradingName,dms_TradingName_List)) -> Urban | D24: 94.6082
C25: =INDEX(dms_FeederName_3,MATCH(dms_TradingName,dms_TradingName_List)) -> Short rural | D25: 276.7829
C26: =INDEX(dms_FeederName_4,MATCH(dms_TradingName,dms_TradingName_List)) -> Long rural | D26: 821.7463
C27: =IF((INDEX(dms_FeederName_5,MATCH(dms_TradingName,dms_TradingName_List))=0),"",(INDEX(dms_FeederName_5,MATCH(dms_TradingName,dms_TradingName_List)))) -> 
C28: Whole Network | D28: 280.4913
B31: 6.2.2 - UNPLANNED INTERRUPTIONS TO SUPPLY (SAIFI)
D32: =CRY -> 2015-16
B33: Total sustained interruptions | C33: =INDEX(dms_FeederName_1,MATCH(dms_TradingName,dms_TradingName_List)) -> CBD
C34: =INDEX(dms_FeederName_2,MATCH(dms_TradingName,dms_TradingName_List)) -> Urban | D34: 1.1936
C35: =INDEX(dms_FeederName_3,MATCH(dms_TradingName,dms_TradingName_List)) -> Short rural | D35: 2.7451
C36: =INDEX(dms_FeederName_4,MATCH(dms_TradingName,dms_TradingName_List)) -> Long rural | D36: 6.3314
C37: =IF((INDEX(dms_FeederName_5,MATCH(dms_TradingName,dms_TradingName_List))=0),"",(INDEX(dms_FeederName_5,MATCH(dms_TradingName,dms_TradingName_List)))) -> 
C38: Whole Network | D38: 2.657
B39: Total of excluded events* *see 3.3 of STPIS | C39: =INDEX(dms_FeederName_1,MATCH(dms_TradingName,dms_TradingName_List)) -> CBD
C40: =INDEX(dms_FeederName_2,MATCH(dms_TradingName,dms_TradingName_List)) -> Urban | D40: 0.1231
C41: =INDEX(dms_FeederName_3,MATCH(dms_TradingName,dms_TradingName_List)) -> Short rural | D41: 0.1577
C42: =INDEX(dms_FeederName_4,MATCH(dms_TradingName,dms_TradingName_List)) -> Long rural | D42: 0.2968
C43: =IF((INDEX(dms_FeederName_5,MATCH(dms_TradingName,dms_TradingName_List))=0),"",(INDEX(dms_FeederName_5,MATCH(dms_TradingName,dms_TradingName_List)))) -> 
C44: Whole Network | D44: 0.1625
B45: Total sustained interruptions after removing excluded events | C45: =INDEX(dms_FeederName_1,MATCH(dms_TradingName,dms_TradingName_List)) -> CBD
C46: =INDEX(dms_FeederName_2,MATCH(dms_TradingName,dms_TradingName_List)) -> Urban | D46: 1.0704
C47: =INDEX(dms_FeederName_3,MATCH(dms_TradingName,dms_TradingName_List)) -> Short rural | D47: 2.5873
C48: =INDEX(dms_FeederName_4,MATCH(dms_TradingName,dms_TradingName_List)) -> Long rural | D48: 6.0347
C49: =IF((INDEX(dms_FeederName_5,MATCH(dms_TradingName,dms_TradingName_List))=0),"",(INDEX(dms_FeederName_5,MATCH(dms_TradingName,dms_TradingName_List)))) -> 
C50: Whole Network | D50: 2.4945
B55: 6.2.3 - UNPLANNED MOMENTARY INTERRUPTIONS TO SUPPLY (MAIFI)
D56: =CRY -> 2015-16
B57: Total momentary interruptions | C57: =INDEX(dms_FeederName_1,MATCH(dms_TradingName,dms_TradingName_List)) -> CBD
C58: =INDEX(dms_FeederName_2,MATCH(dms_TradingName,dms_TradingName_List)) -> Urban
C59: =INDEX(dms_FeederName_3,MATCH(dms_TradingName,dms_TradingName_List)) -> Short rural
C60: =INDEX(dms_FeederName_4,MATCH(dms_TradingName,dms_TradingName_List)) -> Long rural
C61: =IF((INDEX(dms_FeederName_5,MATCH(dms_TradingName,dms_TradingName_List))=0),"",(INDEX(dms_FeederName_5,MATCH(dms_TradingName,dms_TradingName_List)))) -> 
C62: Whole Network
B63: Total of excluded events* *see 3.3 of STPIS | C63: =INDEX(dms_FeederName_1,MATCH(dms_TradingName,dms_TradingName_List)) -> CBD
C64: =INDEX(dms_FeederName_2,MATCH(dms_TradingName,dms_TradingName_List)) -> Urban
C65: =INDEX(dms_FeederName_3,MATCH(dms_TradingName,dms_TradingName_List)) -> Short rural
C66: =INDEX(dms_FeederName_4,MATCH(dms_TradingName,dms_TradingName_List)) -> Long rural
C67: =IF((INDEX(dms_FeederName_5,MATCH(dms_TradingName,dms_TradingName_List))=0),"",(INDEX(dms_FeederName_5,MATCH(dms_TradingName,dms_TradingName_List)))) -> 
C68: Whole Network
B69: Total momentary interruptions after removing excluded events | C69: =INDEX(dms_FeederName_1,MATCH(dms_TradingName,dms_TradingName_List)) -> CBD
C70: =INDEX(dms_FeederName_2,MATCH(dms_TradingName,dms_TradingName_List)) -> Urban
C71: =INDEX(dms_FeederName_3,MATCH(dms_TradingName,dms_TradingName_List)) -> Short rural
C72: =INDEX(dms_FeederName_4,MATCH(dms_TradingName,dms_TradingName_List)) -> Long rural
C73: =IF((INDEX(dms_FeederName_5,MATCH(dms_TradingName,dms_TradingName_List))=0),"",(INDEX(dms_FeederName_5,MATCH(dms_TradingName,dms_TradingName_List)))) -> 
C74: Whole Network
B79: 6.2.4 - DISTRIBUTION CUSTOMER NUMBERS
D80: =CRY -> 2015-16
B81: Customer numbers at the start of the period | C81: =INDEX(dms_FeederName_1,MATCH(dms_TradingName,dms_TradingName_List)) -> CBD
C82: =INDEX(dms_FeederName_2,MATCH(dms_TradingName,dms_TradingName_List)) -> Urban | D82: 238410
C83: =INDEX(dms_FeederName_3,MATCH(dms_TradingName,dms_TradingName_List)) -> Short rural | D83: 373063
C84: =INDEX(dms_FeederName_4,MATCH(dms_TradingName,dms_TradingName_List)) -> Long rural | D84: 79465
C85: =IF((INDEX(dms_FeederName_5,MATCH(dms_TradingName,dms_TradingName_List))=0),"",(INDEX(dms_FeederName_5,MATCH(dms_TradingName,dms_TradingName_List)))) -> 
C86: Whole Network | D86: 690938
B87: Customer numbers at the end of the period | C87: =INDEX(dms_FeederName_1,MATCH(dms_TradingName,dms_TradingName_List)) -> CBD
C88: =INDEX(dms_FeederName_2,MATCH(dms_TradingName,dms_TradingName_List)) -> Urban | D88: 204397
C89: =INDEX(dms_FeederName_3,MATCH(dms_TradingName,dms_TradingName_List)) -> Short rural | D89: 414569
C90: =INDEX(dms_FeederName_4,MATCH(dms_TradingName,dms_TradingName_List)) -> Long rural | D90: 78005
C91: =IF((INDEX(dms_FeederName_5,MATCH(dms_TradingName,dms_TradingName_List))=0),"",(INDEX(dms_FeederName_5,MATCH(dms_TradingName,dms_TradingName_List)))) -> 
C92: Whole Network | D92: 696971
B93: Average customer numbers | C93: =INDEX(dms_FeederName_1,MATCH(dms_TradingName,dms_TradingName_List)) -> CBD | D93: =ROUND(SUM(D81+D87)/2,0) -> 0
C94: =INDEX(dms_FeederName_2,MATCH(dms_TradingName,dms_TradingName_List)) -> Urban | D94: =ROUND(SUM(D82+D88)/2,0) -> 221404
C95: =INDEX(dms_FeederName_3,MATCH(dms_TradingName,dms_TradingName_List)) -> Short rural | D95: =ROUND(SUM(D83+D89)/2,0) -> 393816
C96: =INDEX(dms_FeederName_4,MATCH(dms_TradingName,dms_TradingName_List)) -> Long rural | D96: =ROUND(SUM(D84+D90)/2,0) -> 78735
C97: =IF((INDEX(dms_FeederName_5,MATCH(dms_TradingName,dms_TradingName_List))=0),"",(INDEX(dms_FeederName_5,MATCH(dms_TradingName,dms_TradingName_List)))) ->  | D97: =ROUND(SUM(D85+D91)/2,0) -> 0
C98: Whole Network | D98: 693955

Sheet 6.6 STPIS Customer Service
B1: =(LOOKUP(dms_Model,dms_Model_List,dms_Worksheet_List)) -> REGULATORY REPORTING STATEMENT
B2: =dms_TradingName -> Ergon Energy
B3: =CONCATENATE("Annual Reporting RIN Response ",CRY) -> Annual Reporting RIN Response 2015-16
B4: 6.6 STPIS CUSTOMER SERVICE
B7: 6.6.1 - TELEPHONE ANSWERING
C9: Number of calls after removing excluded events | D9: Total number of calls
C10: =CRY -> 2015-16 | D10: =CRY -> 2015-16
B11: Number of calls received | C11: 126580 | D11: 132777
B12: Number of calls answered within 30 seconds | C12: 100613
B13: Percentage of calls answered within 30 seconds | C13: =C12/C11 -> 0.7948570074

Sheet 6.7 STPIS Daily Performance
B1: =(LOOKUP(dms_Model,dms_Model_List,dms_Worksheet_List)) -> REGULATORY REPORTING STATEMENT | I1: =CONCATENATE(IF(LEN(CRY)=4,"1-Jan-","1-Jul-"),LEFT(CRY,4)) -> 1-Jul-2015
B2: =dms_TradingName -> Ergon Energy
B3: =CONCATENATE("Annual Reporting RIN Response ",CRY) -> Annual Reporting RIN Response 2015-16
B4: 6.7 STPIS DAILY PERFORMANCE
B7: Did the MAIFI parameter of the STPIS apply during the period? This flag is set from the response on worksheet 3.6.8 Network feeders | G7: =dms_MAIFI_Flag -> No
B9: The excluded events to be removed from the data refer only to events listed in clause 3.3(a) of the STPIS, with respect to reliability data, and in clause 5.4 of the STPIS with respect to customer service parameters. *Customer service information must be reported as per the definitions in the STPIS, that is excluding: • calls to payment lines and automated interactive services • calls abandoned by the customer within 30 seconds of the call being queued for response by a human operator (where the time in which a telephone call is abandoned is not measured, then an estimate of the number of calls abandoned within 30 seconds will be determined by taking 20 per cent of all calls abandoned).
B11: 6.7.1 - DAILY PERFORMANCE DATA - UNPLANNED
B13: Date | C13: Customer service* | E13: MAIFI
C14: Number of calls received (after removing excluded events) | D14: Number of calls answered in 30 seconds (after removing excluded events) | E14: =INDEX(dms_FeederName_1,MATCH(dms_TradingName,dms_TradingName_List)) -> CBD | G14: =INDEX(dms_FeederName_2,MATCH(dms_TradingName,dms_TradingName_List)) -> Urban | I14: =INDEX(dms_FeederName_3,MATCH(dms_TradingName,dms_TradingName_List)) -> Short rural | K14: =INDEX(dms_FeederName_4,MATCH(dms_TradingName,dms_TradingName_List)) -> Long rural | M14: =IF((INDEX(dms_FeederName_5,MATCH(dms_TradingName,dms_TradingName_List))=0),"Network",(INDEX(dms_FeederName_5,MATCH(dms_TradingName,dms_TradingName_List)))) -> Network | O14: Network
E15: All events | F15: After removing excluded events | G15: All events | H15: After removing excluded events | I15: All events | J15: After removing excluded events | K15: All events | L15: After removing excluded events | M15: All events | N15: After removing excluded events | O15: All events | P15: After removing excluded events
B16: =CONCATENATE(IF(LEN(CRY)=4,"1-Jan-","1-Jul-"),LEFT(CRY,4)) -> 1-Jul-2015 | C16: 360 | D16: 229
B17: =B16+1 -> 2015-07-02 | C17: 344 | D17: 288
B18: 2015-07-03 | C18: 316 | D18: 236
B19: 2015-07-04 | C19: 150 | D19: 133
B20: 2015-07-05 | C20: 131 | D20: 117
B21: 2015-07-06 | C21: 262 | D21: 232
B22: 2015-07-07 | C22: 263 | D22: 250
B23: 2015-07-08 | C23: 225 | D23: 202
B24: 2015-07-09 | C24: 304 | D24: 223
B25: 2015-07-10 | C25: 280 | D25: 213
B26: 2015-07-11 | C26: 134 | D26: 128
B27: 2015-07-12 | C27: 350 | D27: 195
B28: 2015-07-13 | C28: 594 | D28: 355
B29: 2015-07-14 | C29: 437 | D29: 282
B30: 2015-07-15 | C30: 329 | D30: 252
B31: 2015-07-16 | C31: 358 | D31: 267
B32: 2015-07-17 | C32: 322 | D32: 282
B33: 2015-07-18 | C33: 247 | D33: 201
B34: 2015-07-19 | C34: 245 | D34: 152
B35: 2015-07-20 | C35: 343 | D35: 260
B36: 2015-07-21 | C36: 366 | D36: 288
B37: 2015-07-22 | C37: 307 | D37: 208
B38: 2015-07-23 | C38: 267 | D38: 204
B39: 2015-07-24 | C39: 314 | D39: 192
B40: 2015-07-25 | C40: 135 | D40: 110
B41: 2015-07-26 | C41: 122 | D41: 107
B42: 2015-07-27 | C42: 231 | D42: 201
B43: 2015-07-28 | C43: 243 | D43: 202
B44: 2015-07-29 | C44: 260 | D44: 211
B45: 2015-07-30 | C45: 314 | D45: 231
B46: 2015-07-31 | C46: 288 | D46: 236
B47: 2015-08-01 | C47: 121 | D47: 94
B48: 2015-08-02 | C48: 107 | D48: 102
B49: 2015-08-03 | C49: 291 | D49: 254
B50: 2015-08-04 | C50: 230 | D50: 214
B51: 2015-08-05 | C51: 416 | D51: 267
B52: 2015-08-06 | C52: 358 | D52: 189
B53: 2015-08-07 | C53: 292 | D53: 235
B54: 2015-08-08 | C54: 146 | D54: 126
B55: 2015-08-09 | C55: 229 | D55: 178
B56: 2015-08-10 | C56: 316 | D56: 249
B57: 2015-08-11 | C57: 315 | D57: 221
B58: 2015-08-12 | C58: 384 | D58: 302
B59: 2015-08-13 | C59: 285 | D59: 220
B60: 2015-08-14 | C60: 286 | D60: 255
B61: 2015-08-15 | C61: 341 | D61: 121
B62: 2015-08-16 | C62: 168 | D62: 113
B63: 2015-08-17 | C63: 298 | D63: 220
B64: 2015-08-18 | C64: 431 | D64: 267
B65: 2015-08-19 | C65: 336 | D65: 287
B66: 2015-08-20 | C66: 335 | D66: 265
B67: 2015-08-21 | C67: 222 | D67: 186
B68: 2015-08-22 | C68: 357 | D68: 158
B69: 2015-08-23 | C69: 140 | D69: 124
B70: 2015-08-24 | C70: 533 | D70: 486
B71: 2015-08-25 | C71: 285 | D71: 270
B72: 2015-08-26 | C72: 259 | D72: 240
B73: 2015-08-27 | C73: 290 | D73: 262
B74: 2015-08-28 | C74: 479 | D74: 357
B75: 2015-08-29 | C75: 218 | D75: 136
B76: 2015-08-30 | C76: 177 | D76: 148
B77: 2015-08-31 | C77: 289 | D77: 278
B78: 2015-09-01 | C78: 438 | D78: 385
B79: 2015-09-02 | C79: 227 | D79: 223
B80: 2015-09-03 | C80: 323 | D80: 303
B81: =B80+1 -> 2015-09-04 | C81: 310 | D81: 296
B82: 2015-09-05 | C82: 138 | D82: 127
B83: 2015-09-06 | C83: 85 | D83: 83
B84: 2015-09-07 | C84: 244 | D84: 223
B85: 2015-09-08 | C85: 275 | D85: 240
B86: 2015-09-09 | C86: 275 | D86: 210
B87: 2015-09-10 | C87: 347 | D87: 216
B88: 2015-09-11 | C88: 283 | D88: 190
B89: 2015-09-12 | C89: 191 | D89: 100
B90: 2015-09-13 | C90: 110 | D90: 105
B91: 2015-09-14 | C91: 288 | D91: 269
B92: 2015-09-15 | C92: 344 | D92: 315
B93: 2015-09-16 | C93: 342 | D93: 263
B94: 2015-09-17 | C94: 301 | D94: 263
B95: 2015-09-18 | C95: 258 | D95: 213
B96: 2015-09-19 | C96: 125 | D96: 107
B97: 2015-09-20 | C97: 86 | D97: 76
B98: 2015-09-21 | C98: 214 | D98: 190
B99: 2015-09-22 | C99: 1118 | D99: 416
B100: 2015-09-23 | C100: 297 | D100: 219
B101: 2015-09-24 | C101: 344 | D101: 180
B102: 2015-09-25 | C102: 230 | D102: 210
B103: 2015-09-26 | C103: 146 | D103: 117
B104: 2015-09-27 | C104: 148 | D104: 95
B105: 2015-09-28 | C105: 733 | D105: 246
B106: 2015-09-29 | C106: 358 | D106: 223
B107: 2015-09-30 | C107: 362 | D107: 251
B108: 2015-10-01 | C108: 320 | D108: 262
B109: 2015-10-02 | C109: 353 | D109: 316
B110: 2015-10-03 | C110: 245 | D110: 179
B111: 2015-10-04 | C111: 233 | D111: 193
B112: 2015-10-05 | C112: 145 | D112: 132
B113: 2015-10-06 | C113: 428 | D113: 340
B114: 2015-10-07 | C114: 309 | D114: 254
B115: 2015-10-08 | C115: 332 | D115: 224
B116: 2015-10-09 | C116: 417 | D116: 325
B117: 2015-10-10 | C117: 210 | D117: 157
B118: 2015-10-11 | C118: 139 | D118: 119
B119: 2015-10-12 | C119: 422 | D119: 337
B120: 2015-10-13 | C120: 384 | D120: 323
B121: 2015-10-14 | C121: 432 | D121: 364
B122: 2015-10-15 | C122: 341 | D122: 278
B123: 2015-10-16 | C123: 262 | D123: 226
B124: 2015-10-17 | C124: 185 | D124: 122
B125: 2015-10-18 | C125: 95 | D125: 88
B126: 2015-10-19 | C126: 352 | D126: 333
B127: 2015-10-20 | C127: 285 | D127: 251
B128: 2015-10-21 | C128: 382 | D128: 308
B129: 2015-10-22 | C129: 338 | D129: 306
B130: 2015-10-23 | C130: 516 | D130: 423
B131: 2015-10-24 | C131: 485 | D131: 301
B132: 2015-10-25 | C132: 277 | D132: 217
B133: 2015-10-26 | C133: 543 | D133: 499
B134: 2015-10-27 | C134: 648 | D134: 557
B135: 2015-10-28 | C135: 866 | D135: 630
B136: 2015-10-29 | C136: 761 | D136: 582
B137: 2015-10-30 | C137: 447 | D137: 409
B138: 2015-10-31 | C138: 425 | D138: 224
B139: 2015-11-01 | C139: 483 | D139: 244
B140: 2015-11-02 | C140: 409 | D140: 381
B141: 2015-11-03 | C141: 314 | D141: 307
B142: 2015-11-04 | C142: 418 | D142: 376
B143: 2015-11-05 | C143: 646 | D143: 454
B144: 2015-11-06 | C144: 822 | D144: 603
B145: =B144+1 -> 2015-11-07 | C145: 769 | D145: 407
B146: 2015-11-08 | C146: 586 | D146: 436
B147: 2015-11-09 | C147: 779 | D147: 613
B148: 2015-11-10 | C148: 661 | D148: 530
B149: 2015-11-11 | C149: 293 | D149: 291
B150: 2015-11-12 | C150: 403 | D150: 386
B151: 2015-11-13 | C151: 302 | D151: 301
B152: 2015-11-14 | C152: 943 | D152: 307
B153: 2015-11-15 | C153: 890 | D153: 484
B154: 2015-11-16 | C154: 836 | D154: 773
B155: 2015-11-17 | C155: 525 | D155: 510
B156: 2015-11-18 | C156: 372 | D156: 367
B157: 2015-11-19 | C157: 443 | D157: 434
B158: 2015-11-20 | C158: 388 | D158: 374
B159: 2015-11-21 | C159: 173 | D159: 162
B160: 2015-11-22 | C160: 227 | D160: 201
B161: 2015-11-23 | C161: 580 | D161: 451
B162: 2015-11-24 | C162: 628 | D162: 581
B163: 2015-11-25 | C163: 564 | D163: 518
B164: 2015-11-26 | C164: 408 | D164: 392
B165: 2015-11-27 | C165: 752 | D165: 607
B166: 2015-11-28 | C166: 942 | D166: 523
B167: 2015-11-29 | C167: 944 | D167: 730
B168: 2015-11-30 | C168: 973 | D168: 827
B169: 2015-12-01 | C169: 801 | D169: 748
B170: 2015-12-02 | C170: 726 | D170: 615
B171: 2015-12-03 | C171: 1006 | D171: 792
B172: 2015-12-04 | C172: 716 | D172: 701
B173: 2015-12-05 | C173: 203 | D173: 179
B174: 2015-12-06 | C174: 168 | D174: 148
B175: 2015-12-07 | C175: 401 | D175: 385
B176: 2015-12-08 | C176: 334 | D176: 328
B177: 2015-12-09 | C177: 315 | D177: 313
B178: 2015-12-10 | C178: 440 | D178: 406
B179: 2015-12-11 | C179: 889 | D179: 724
B180: 2015-12-12 | C180: 483 | D180: 411
B181: 2015-12-13 | C181: 243 | D181: 226
B182: 2015-12-14 | C182: 386 | D182: 379
B183: 2015-12-15 | C183: 348 | D183: 346
B184: 2015-12-16 | C184: 305 | D184: 290
B185: 2015-12-17 | C185: 288 | D185: 285
B186: 2015-12-18 | C186: 329 | D186: 324
B187: 2015-12-19 | C187: 166 | D187: 139
B188: 2015-12-20 | C188: 135 | D188: 128
B189: 2015-12-21 | C189: 315 | D189: 312
B190: 2015-12-22 | C190: 235 | D190: 228
B191: 2015-12-23 | C191: 0 | D191: 0
B192: 2015-12-24 | C192: 669 | D192: 615
B193: 2015-12-25 | C193: 249 | D193: 213
B194: 2015-12-26 | C194: 227 | D194: 210
B195: 2015-12-27 | C195: 317 | D195: 301
B196: 2015-12-28 | C196: 382 | D196: 339
B197: 2015-12-29 | C197: 453 | D197: 444
B198: 2015-12-30 | C198: 256 | D198: 253
B199: 2015-12-31 | C199: 246 | D199: 244
B200: 2016-01-01 | C200: 163 | D200: 158
B201: 2016-01-02 | C201: 292 | D201: 234
B202: 2016-01-03 | C202: 259 | D202: 227
B203: 2016-01-04 | C203: 394 | D203: 375
B204: 2016-01-05 | C204: 502 | D204: 450
B205: 2016-01-06 | C205: 446 | D205: 404
... 176 more rows

Sheet 6.8 STPIS Exclusions
B1: =(LOOKUP(dms_Model,dms_Model_List,dms_Worksheet_List)) -> REGULATORY REPORTING STATEMENT
B2: =dms_TradingName -> Ergon Energy
B3: =CONCATENATE("Annual Reporting RIN Response ",CRY) -> Annual Reporting RIN Response 2015-16
B4: 6.8 STPIS EXCLUSIONS
B7: =CONCATENATE("This information is collected to inform the application of the STPIS to ",dms_TradingName," in future regulatory periods. The information is also collected to monitor network performance, and may be used in performance reports.") -> This information is collected to inform the application of the STPIS to Ergon Energy in future regulatory periods. The information is also collected to monitor network performance, and may be used in performance reports.
B9: 6.8.1 - STPIS EXCLUSIONS
B11: Date of event | C11: Outage ID | D11: Feeder ID / name | E11: Feeder classification (drop down) | F11: Cause of event (drop down) | G11: Unplanned | J11: Event category | K11: Effect on unplanned MAIFI | L11: Please provide separate explanation to confirm the outage was not due to inadequate transmission connection planning
B12: DD/MM/YYYY | G12: Number of interruptions | H12: Duration of interruption (mins) | I12: Total unplanned minutes off supply | J12: Use exclusion categories listed in section 3.3(a) of the STPIS (drop down) | K12: by feeder classification | O12: Cause of Event
O13: Weather
O14: Equipment failure
O15: Operational error
O16: Vegetation
O17: Animals
O18: Third party impacts
O19: Transmission failure
O20: Load shedding
O21: Inter-distributor connection failure
O22: Other
B44: To enter further events - please insert new lines above this line.

Sheet 6.9 STPIS - GSL
B1: =(LOOKUP(dms_Model,dms_Model_List,dms_Worksheet_List)) -> REGULATORY REPORTING STATEMENT
B2: =dms_TradingName -> Ergon Energy
B3: =CONCATENATE("Annual Reporting RIN Response ",CRY) -> Annual Reporting RIN Response 2015-16
B4: 6.9 STPIS - GUARANTEED SERVICE LEVEL
B6: Did the AER's GSL Scheme apply at any time during the regulatory year? | D6: No | E6: **IMPORTANT Please ensure this flag is set. Conditional formatting on this worksheet is dependant on this response.
B8: Instructions: Table 6.9.1 collects information relating to jurisdiction GSL scheme parameters. These parameters can be found in the jurisdictonal scheme relevant to NSP. Please identify each parameter in the relevant sub-tables and provide the volume and value of GSL payments. For GSL parameters that do not fit within the provided sub-tables provided, please enter a heading and identify the relevant parameter(s).
B10: 6.9.1 - GUARANTEED SERVICE LEVELS - JURISDICTIONAL GSL SCHEME
D11: =CRY -> 2015-16 | E11: =CRY -> 2015-16
D12: Volume | E12: Value of GSL payments
D13: 0's | E13: $0's
B14: Appointments
B15: Failure to attend Appointments on time | D15: 892 | E15: 50860
B19: To enter further GSL parameters relating to appointments - please copy a row from above and "insert copied cells" above this row.
B20: Connections
B21: Connection not provided by the agreed date | D21: 70 | E21: 8874
B26: To enter further GSL parameters relating to connections - please copy a row from above and "insert copied cells" above this row.
B27: Reliability of supply
B28: Interuption duration | D28: 6342 | E28: 722988
B29: Interuption frequency | D29: 58 | E29: 6612
B39: To enter further GSL parameters relating to reliability of supply - please copy a row from above and "insert copied cells" above this row.
B40: Street lights
B48: To enter further GSL parameters relating to street lights - please copy a row from above and "insert copied cells" above this row.
B49: Planned interruptions
B50: Notice of a planned interruption to supply not given to residential customer | D50: 1750 | E50: 49172
B51: Notice of a planned interruption to supply not given to business customer | D51: 238 | E51: 16898
B53: To enter further GSL parameters relating to planned interruptions - please copy a row from above and "insert copied cells" above this row.
B54: Wrongful disconnections
B55: Wrongful disconnections | D55: 125 | E55: 17666
B58: To enter further GSL parameters - please identify the parameter and if insufficient rows please copy a row from above and "insert copied cells" above this row.
B59: Customer Reconnections
B60: Reconnection not provided within the required time | D60: 32 | E60: 4985
B63: To enter further GSL parameters - please identify the parameter and if insufficient rows please copy a row from above and "insert copied cells" above this row.
B64: Hot Water Supply
B65: Failure to attend to customer's premises within the time required concerning loss of hot water supply | D65: 1 | E65: 57
B68: To enter further GSL parameters - please identify the parameter and if insufficient rows please copy a row from above and "insert copied cells" above this row.
B69: <NSP defined parameter category>
B73: To enter further GSL parameters - please identify the parameter and if insufficient rows please copy a row from above and "insert copied cells" above this row.
B76: 6.9.2 - GUARANTEED SERVICE LEVELS - AER GSL SCHEME
B78: Complete Table 6.9.2 if the AER's GSL scheme applied at any time during the regulatory year. Do not complete Table 6.9.2 if the AER's GSL scheme did not apply during the regulatory year.
D80: =CRY -> 2015-16 | E80: =CRY -> 2015-16
D81: Volume | E81: Value of GSL payments
D82: 0's | E82: $0's
B83: New connections
B84: Number of connections made
B85: Number of connections not made on or before the day agreed
B86: Connections - GSL payments – 1-6 day delay
B87: Connections - GSL payments – 7+ day delay
B88: Reliability of supply
B89: Frequency of interruptions – CBD feeders – 9 interruptions
B90: Frequency of interruptions – Urban feeders – 9 interruptions
B91: Frequency of interruptions – Rural (short and long) feeders – 15 interruptions
B92: Interruptions – CBD feeders – 12 hours duration
B93: Interruptions – Urban feeders – 12 hours duration
B94: Interruptions – Rural (short and long) feeders – 18 hours duration
B95: Total duration of interruptions Level 1 – 20 hours
B96: Total duration of interruptions Level 2 – 30 hours
B97: Total duration of interruptions Level 3 – 60 hours
B98: Street lights
B99: Streetlight repair 5 days – GSL payments
B100: Planned interruptions
B101: Notice of planned interruptions – 4 business days notice not given
B102: Total | E102: =SUM(E101,E99,E89:E97,E86:E87) -> 0

Sheet 7.8 Avoided TUOS Payments
B1: =(LOOKUP(dms_Model,dms_Model_List,dms_Worksheet_List)) -> REGULATORY REPORTING STATEMENT
B2: =dms_TradingName -> Ergon Energy
B3: =CONCATENATE("Annual Reporting RIN Response ",CRY) -> Annual Reporting RIN Response 2015-16
B4: 7.8 - AVOIDED TUOS PAYMENTS
B6: 7.8.1 - AVOIDED TUOS PAYMENTS
B7: Description | C7: Avoided TUOS Payment
C8: $0's, nominal
B9: Embedded generators | C9: 2072438.87
B10: Market network service providers | C10: 0
B11: Other | C11: 0

Sheet 7.10 Juris Scheme
B1: =(LOOKUP(dms_Model,dms_Model_List,dms_Worksheet_List)) -> REGULATORY REPORTING STATEMENT
B2: =dms_TradingName -> Ergon Energy
B3: =CONCATENATE("Annual Reporting RIN Response ",CRY) -> Annual Reporting RIN Response 2015-16
B4: 7.10 - JURISDICTIONAL SCHEMES
B6: Instructions Business must list each relevant jurisdictional scheme individually and report information for each scheme separately from other schemes.
B8: 7.10.1 - JURISDICTIONAL SCHEME PAYMENTS
B9: Jurisdictional Scheme Name | C9: Description | D9: Date DNSP Became Subject to Scheme | E9: Description of Cost Recovery Method | F9: Total Scheme Payments
F10: $0's, nominal
B11: Queensland Solar Bonus Scheme (SBS) | C11: The SBS obligates Ergon Energy to pay a Feed in Tariff (FIT) for energy supplied into our distribution network from specific micro-embedded generators (PVs). The scheme operates under Section 44A of the Electricity Act 1994 (Qld). | D11: 2015-05-21 | E11: Consistent with clause 6.18.7A of the NER, Ergon Energy passes through jurisdictional scheme amounts (including any under or over recovery of these amounts) to customers in our tariffs. Attachment 14 of the AER's final distribution determination sets out the requirements Ergon Energy must comply with under clause 6.18.7A of the NER. Specifically, Ergon Energy must: • earn jurisdictional scheme revenue amounts in the year it incurs those amounts; and • apply a true-up to account for any under or over recovery of actual revenue (which in practice occurs on a two year lag through adjustments to tariffs) Once the total jurisdictional revenue to be recovered through tariffs for a particular year is determined (i.e. forecast amount for year t plus under /over recovery amounts for year t-2), this amount is allocated to tariff classes and converted to tariffs consistent with the method outlined in our approved Pricing Proposal. For the 2015-16 regulatory year, this method is outlined in section 6.13.2 of our approved 2015-16 Pricing Proposal. It is also important to note actual FIT payments incurred by Ergon Energy in 2013-14 (which were recovered in network tariffs in 2015-16) were recovered through an adjustment made in the Total Annual Revenue (TAR) as a cost pass through amount. These amounts are therefore accounted for and recovered through our DUOS revenue in 2015-16. As the energy industry levy was not a jurisdictional scheme at the time of our 2015-16 Pricing Proposal, jurisdictional scheme revenue allocated to tariffs for 2015-16 only included forecast FIT payments to be incurred in 2015-16. As part of our 2017-18 annual Pricing Proposal, we will apply a true-up to account for any difference between our actual 2015-16 jurisdictional scheme revenue and our actual 2015-16 jurisdictional scheme payments (for both the FIT and the energy industry levy). | F11: 109044843
B12: Energy Industry Levy | C12: Ergon Energy is obligated under our Distribution Authority to pay a proportion of the Queensland Government's funding commitments for the AEMC in relation to the Energy Industry Levy. | D12: 2016-04-22 | E12: Refer above. | F12: 77041
E17: Total | F17: =SUM(F11:F16) -> 109121884

Sheet 7.11 DMIS-DMIA
B1: =(LOOKUP(dms_Model,dms_Model_List,dms_Worksheet_List)) -> REGULATORY REPORTING STATEMENT
B2: =dms_TradingName -> Ergon Energy
B3: =CONCATENATE("Annual Reporting RIN Response ",CRY) -> Annual Reporting RIN Response 2015-16
B4: 7.11 - DEMAND MANAGEMENT INCENTIVE SCHEME
B6: 7.11.1 - DMIA - PROJECTS SUBMITTED FOR APPROVAL
B7: Name of project | C7: =CONCATENATE("Total amount of the DMIA spent in ", CRY) -> Total amount of the DMIA spent in 2015-16
C8: Operating expenditure | D8: Capital expenditure | E8: Total
C9: $0's, nominal
B10: <project name> | E10: =SUM(C10:D10) -> 0
B11: ='[1]7.11 DMIS-DMIA'!$B11 -> URBAN LV STATCOM DMIA | C11: 28.58
B12: ='[1]7.11 DMIS-DMIA'!$B12 -> LARGE_LV_STATCOM | C12: 81.18
B13: ='[1]7.11 DMIS-DMIA'!$B13 -> SOLAR ENERGY MANAGEMENT SYSTEM | C13: 1842.59
B14: ='[1]7.11 DMIS-DMIA'!$B14 -> CTIP LED STREETLIGHT TRIAL | C14: 154.64
B15: ='[1]7.11 DMIS-DMIA'!$B15 -> DEMAND RESPONSE AUTOMATION SYSTEM | C15: 839.77 | E15: 839.77
B16: ='[1]7.11 DMIS-DMIA'!$B16 -> MD K MULTI LED STREETLIGHTS REMOVING BAR | C16: 4421.15 | E16: 4421.15
B17: ='[1]7.11 DMIS-DMIA'!$B17 -> CENTRALISED ENERGY STORAGE SYSTEM | C17: 230075.06 | E17: 230075.06
B18: ='[1]7.11 DMIS-DMIA'!$B18 -> IoT LOAD CONTROL | C18: 34285.37 | E18: 34285.37
B19: ='[1]7.11 DMIS-DMIA'!$B19 -> FEEDER OF FUTURE RESEARCH | C19: 22030.11
B20: ='[1]7.11 DMIS-DMIA'!$B20 -> ARC CUSTOMER RESPONSE AND RISK MANAGEMENT | C20: 43970.34
B22: NOTE: WITH THE INSERTION OF NEW ROWS, THE TOTAL EXPENDITURE IN COLUMN E IS UNABLE TO BE COPIED TO THE NEW CELLS
E23: =SUM(C23:D23) -> 0
B24: To enter additional projects - please copy a row from above and "insert copied cells" above this row.
B25: Total | C25: =SUM(C10:C24) -> 337728.79 | D25: =SUM(D10:D24) -> 0 | E25: =SUM(E10:E24) -> 269621.35

Sheet 7.12 Safety and Bushfire
B1: =(LOOKUP(dms_Model,dms_Model_List,dms_Worksheet_List)) -> REGULATORY REPORTING STATEMENT
B2: =dms_TradingName -> Ergon Energy
B3: =CONCATENATE("Annual Reporting RIN Response ",CRY) -> Annual Reporting RIN Response 2015-16
B4: 7.12 SAFETY AND BUSHFIRE RELATED EXPENDITURE
B6: These templates collect information from Victorian businesses only. Bushfire and safety related expenditure information is used by the AER to monitor the expenditures throughout the regulatory control period.
B8: CPI applied to convert expected expenditure in real $ to nominal based on lagged September CPI index
B10: Instructions
B11: For "Exclusive of Margins & Overheads" reported expenditure is to EXCLUDE any overheads, profit margins or management fees paid directly or indirectly to related party contractors (not including actual incurred expense of the related party contractor) for the reporting period.
B12: For "Value of Margins & Overheads" reported expenditure is to COMPRISE ONLY the sum of overheads, profit margins or management fees paid directly or indirectly to related party contractors (not including actual incurred expenses of the related party contractor) for the reporting period.
B14: =CONCATENATE(dms_TradingName, " is to specify each activity in this table in accordance with the definition in Appendix F of the RIN.") -> Ergon Energy is to specify each activity in this table in accordance with the definition in Appendix F of the RIN.
B15: All activities must be reported but the Reason for Difference is only required if there is a 10 per cent difference between the expected value and the actual value. Use median unit costs. Where unit costs are not recorded at the asset category level - provide the best estimates of the unit cost using the cost allocation method identified in this table. (As a transitional measure, the unit cost may be based on a statistically significant annual sample of actual work orders at a 5% or better confidence interval.) Provide basis of allocation where applicable.
B17: 7.12.1 - SAFETY AND BUSHFIRE RELATED ASSET GROUP DEFINITIONS AND ALLOCATION BASIS
B18: Activity | C18: Definitions | G18: Basis for allocation of cost to activity
B19: Planned non-preferred services replacements
B20: Planned replacement of non-preferred services due to height
B21: Removal of public lighting switchwire
B22: Replacement of existing SWER lines with 22kV overhead bare conductor
B23: Installation of GFN and associated equipment at zone substations
B24: Replacement of crossarms/insulator sets – pole top fire mitigation
B25: Replacement of crossarms – based on age and condition
B26: Replacement of poles – based on age and condition
B27: Stake poles – based on age and condition
B28: Replacement of undersized poles
B29: Stake undersized poles
B30: Replacement of overhead conductor – mainly steel
B31: Service line clearance – overhead services requiring relocation
B32: Service line clearance – overhead services requiring undergrounding
B33: Replacement of 22kV distribution feeders with ABC/underground cabling
B34: Replacement of SWER with covered carbon core conductor or equivalent
B35: Replacement of SWER with ABC
B36: Replacement of SWER with underground
B37: Replacement of surge diverters (neptune configuration)
B38: Replacement of surge diverters (single phase or three phase)
B46: To enter further activities - please copy row from above and "insert copied cells" into a row above this row.
B49: 7.12.2 - BUSHFIRE RELATED
B51: 7.12.2.1 - NUMBER OF ACTIVITIES
B52: Activity | C52: Units | D52: Actual Number
B53: Planned non-preferred services replacements | C53: number of services
B54: Planned replacement of non-preferred services due to height | C54: number of services
B55: Removal of public lighting switchwire | C55: number of spans removed
B56: Replacement of existing SWER lines with 22kV overhead bare conductor | C56: kms of SWER
B57: Installation of GFN and associated equipment at zone substations | C57: number of zone substations
B58: Replacement of crossarms/insulator sets – pole top fire mitigation | C58: number of crossarms/sets
B59: Replacement of crossarms – based on age and condition | C59: number of crossarms
B60: Replacement of poles – based on age and condition | C60: number of poles
B61: Stake poles – based on age and condition | C61: number of poles
B62: Replacement of undersized poles | C62: number of poles
B63: Stake undersized poles | C63: number of poles
B64: Replacement of overhead conductor – mainly steel | C64: kms
B65: Service line clearance – overhead services requiring relocation | C65: number of services
B66: Service line clearance – overhead services requiring undergrounding | C66: number of services
B67: Replacement of 22kV distribution feeders with ABC/underground cabling | C67: number of feeders
B68: Replacement of SWER with covered carbon core conductor or equivalent | C68: kms
B69: Replacement of SWER with ABC | C69: kms
B70: Replacement of SWER with underground | C70: kms
B71: Replacement of surge diverters (neptune configuration) | C71: number of units
B72: Replacement of surge diverters (single phase or three phase) | C72: number of units
B73: =IF(ISBLANK(B39),"",B39) -> 
B80: To enter further activities - please copy row from above and "insert copied cells" into a row above this row.
B83: 7.12.2.2 - EXPENDITURE
B84: Activity | C84: Units | D84: Exclusive of Margins & Overheads | E84: Value of Margins & Overheads
D85: Actual expenditure
D86: $0's, Nominal
B87: Planned non-preferred services replacements | C87: number of services
B88: Planned replacement of non-preferred services due to height | C88: number of services
B89: Removal of public lighting switchwire | C89: number of spans removed
B90: Replacement of existing SWER lines with 22kV overhead bare conductor | C90: kms of SWER
B91: Installation of GFN and associated equipment at zone substations | C91: number of zone substations
B92: Replacement of crossarms/insulator sets – pole top fire mitigation | C92: number of crossarms/sets
B93: Replacement of crossarms – based on age and condition | C93: number of crossarms
B94: Replacement of poles – based on age and condition | C94: number of poles
B95: Stake poles – based on age and condition | C95: number of poles
B96: Replacement of undersized poles | C96: number of poles
B97: Stake undersized poles | C97: number of poles
B98: Replacement of overhead conductor – mainly steel | C98: kms
B99: Service line clearance – overhead services requiring relocation | C99: number of services
B100: Service line clearance – overhead services requiring undergrounding | C100: number of services
B101: Replacement of 22kV distribution feeders with ABC/underground cabling | C101: number of feeders
B102: Replacement of SWER with covered carbon core conductor or equivalent | C102: kms
B103: Replacement of SWER with ABC | C103: kms
B104: Replacement of SWER with underground | C104: kms
B105: Replacement of surge diverters (neptune configuration) | C105: number of units
B106: Replacement of surge diverters (single phase or three phase) | C106: number of units
B107: =IF(ISBLANK(B39),"",B39) ->  | C107: =IF(ISBLANK(C73),"",C73) -> 
B114: To enter further activities - please copy row from above and "insert copied cells" into a row above this row.
B118: 7.12.2.3 - UNIT COSTS
B119: Activity | D119: Actual
D120: $0's, Per Unit
B121: Planned non-preferred services replacements
B122: Planned replacement of non-preferred services due to height
B123: Removal of public lighting switchwire
B124: Replacement of existing SWER lines with 22kV overhead bare conductor
B125: Installation of GFN and associated equipment at zone substations
B126: Replacement of crossarms/insulator sets – pole top fire mitigation
B127: Replacement of crossarms – based on age and condition
B128: Replacement of poles – based on age and condition
B129: Stake poles – based on age and condition
B130: Replacement of undersized poles
B131: Stake undersized poles
B132: Replacement of overhead conductor – mainly steel
B133: Service line clearance – overhead services requiring relocation
B134: Service line clearance – overhead services requiring undergrounding
B135: Replacement of 22kV distribution feeders with ABC/underground cabling
B136: Replacement of SWER with covered carbon core conductor or equivalent
B137: Replacement of SWER with ABC
B138: Replacement of SWER with underground
B139: Replacement of surge diverters (neptune configuration)
B140: Replacement of surge diverters (single phase or three phase)
B141: =IF(ISBLANK(B39),"",B39) -> 
B148: To enter further activities - please copy row from above and "insert copied cells" into a row above this row.
B151: 7.12.2.4 - CONTINGENT PROJECT APPLICATIONS - VOLUMES APPROVED
B152: Activity | C152: Units | D152: Volume approved under contingent project applications | E152: Actual volumes | F152: Difference
F153: =E153-D153 -> 0
F154: 0
F155: 0
F156: 0
F157: 0
F158: 0
F159: 0
F160: 0
B161: To enter further activities - please copy row from above and "insert copied cells" into a row above this row.
B163: 7.12.2.5 - CONTINGENT PROJECT APPLICATIONS - EXPENDITURE APPROVED
B164: Activity | C164: Exclusive of Margins & Overheads | F164: Value of Margins & Overheads | I164: Reasons for Difference
C165: Expenditure approved under contingent project applications | D165: Actual expenditure | E165: Difference | F165: Expenditure approved under contingent project applications | G165: Actual expenditure | H165: Difference
C166: $0's, Nominal | F166: $0's, Nominal
B167: =IF(ISBLANK(B153),"",B153) ->  | E167: =C167-D167 -> 0 | H167: =F167-G167 -> 0
B168: =IF(ISBLANK(B154),"",B154) ->  | E168: =C168-D168 -> 0 | H168: =F168-G168 -> 0
E169: 0 | H169: 0
E170: 0 | H170: 0
E171: 0 | H171: 0
E172: 0 | H172: 0
E173: 0 | H173: 0
E174: 0 | H174: 0
B175: To enter further activities - please copy row from above and "insert copied cells" into a row above this row.
B179: 7.12.3 - SAFETY RELATED
B181: 7.12.3.1 - NUMBER OF ACTIVITIES
B182: Activity | C182: Units | D182: Actual units
B183: Planned non-preferred services replacements | C183: number of services
B184: Planned replacement of non-preferred services due to height | C184: number of services
B185: Removal of public lighting switchwire | C185: number of spans removed
B186: Replacement of existing SWER lines with 22kV overhead bare conductor | C186: kms of SWER
B187: Installation of GFN and associated equipment at zone substations | C187: number of zone substations
B188: Replacement of crossarms/insulator sets – pole top fire mitigation | C188: number of crossarms/sets
B189: Replacement of crossarms – based on age and condition | C189: number of crossarms
B190: Replacement of poles – based on age and condition | C190: number of poles
B191: Stake poles – based on age and condition | C191: number of poles
B192: Replacement of undersized poles | C192: number of poles
B193: Stake undersized poles | C193: number of poles
B194: Replacement of overhead conductor – mainly steel | C194: kms
B195: Service line clearance – overhead services requiring relocation | C195: number of services
B196: Service line clearance – overhead services requiring undergrounding | C196: number of services
B197: Replacement of 22kV distribution feeders with ABC/underground cabling | C197: number of feeders
B198: Replacement of SWER with covered carbon core conductor or equivalent | C198: kms
B199: Replacement of SWER with ABC | C199: kms
B200: Replacement of SWER with underground | C200: kms
B201: Replacement of surge diverters (neptune configuration) | C201: number of units
B202: Replacement of surge diverters (single phase or three phase) | C202: number of units
B203: =IF(ISBLANK(B39),"",B39) ->  | C203: =IF(ISBLANK(C73),"",C73) -> 
B210: To enter further activities - please copy row from above and "insert copied cells" into a row above this row.
B213: 7.12.3.2 - EXPENDITURE
B214: Activity | C214: Units | D214: Exclusive of Margins & Overheads | E214: Value of Margins & Overheads
D215: Actual expenditure
D216: $0's, Nominal
B217: Planned non-preferred services replacements | C217: number of services
B218: Planned replacement of non-preferred services due to height | C218: number of services
B219: Removal of public lighting switchwire | C219: number of spans removed
B220: Replacement of existing SWER lines with 22kV overhead bare conductor | C220: kms of SWER
B221: Installation of GFN and associated equipment at zone substations | C221: number of zone substations
B222: Replacement of crossarms/insulator sets – pole top fire mitigation | C222: number of crossarms/sets
B223: Replacement of crossarms – based on age and condition | C223: number of crossarms
B224: Replacement of poles – based on age and condition | C224: number of poles
B225: Stake poles – based on age and condition | C225: number of poles
B226: Replacement of undersized poles | C226: number of poles
B227: Stake undersized poles | C227: number of poles
B228: Replacement of overhead conductor – mainly steel | C228: kms
B229: Service line clearance – overhead services requiring relocation | C229: number of services
B230: Service line clearance – overhead services requiring undergrounding | C230: number of services
B231: Replacement of 22kV distribution feeders with ABC/underground cabling | C231: number of feeders
B232: Replacement of SWER with covered carbon core conductor or equivalent | C232: kms
B233: Replacement of SWER with ABC | C233: kms
B234: Replacement of SWER with underground | C234: kms
B235: Replacement of surge diverters (neptune configuration) | C235: number of units
B236: Replacement of surge diverters (single phase or three phase) | C236: number of units
B237: =IF(ISBLANK(B39),"",B39) ->  | C237: =IF(ISBLANK(C73),"",C73) -> 
B244: To enter further activities - please copy row from above and "insert copied cells" into a row above this row.
B249: 7.12.3.3 - UNIT COSTS
B250: Activity | C250: Units | D250: Actual
D251: $0's per Unit
B252: Planned non-preferred services replacements | C252: number of services
B253: Planned replacement of non-preferred services due to height | C253: number of services
B254: Removal of public lighting switchwire | C254: number of spans removed
B255: Replacement of existing SWER lines with 22kV overhead bare conductor | C255: kms of SWER
B256: Installation of GFN and associated equipment at zone substations | C256: number of zone substations
B257: Replacement of crossarms/insulator sets – pole top fire mitigation | C257: number of crossarms/sets
B258: Replacement of crossarms – based on age and condition | C258: number of crossarms
B259: Replacement of poles – based on age and condition | C259: number of poles
B260: Stake poles – based on age and condition | C260: number of poles
B261: Replacement of undersized poles | C261: number of poles
B262: Stake undersized poles | C262: number of poles
B263: Replacement of overhead conductor – mainly steel | C263: kms
... 40 more rows

Sheet 7.13 TARC
B1: =(LOOKUP(dms_Model,dms_Model_List,dms_Worksheet_List)) -> REGULATORY REPORTING STATEMENT
B2: =dms_TradingName -> Ergon Energy
B3: =CONCATENATE("Annual Reporting RIN Response ",CRY) -> Annual Reporting RIN Response 2015-16
B4: 7.13 - TARC
B7: 7.13.1 - TOTAL ANNUAL RETAILER CHARGES
C8: $0's
B9: TARC | C9: 2037251082

Sheet 8.1 Income
B1: =(LOOKUP(dms_Model,dms_Model_List,dms_Worksheet_List)) -> REGULATORY REPORTING STATEMENT
B2: =dms_TradingName -> Ergon Energy
B3: =CONCATENATE("Annual Reporting RIN Response ",CRY) -> Annual Reporting RIN Response 2015-16
B4: 8.1 - INCOME
B6: 8.1.1 - INCOME STATEMENT
B7: Description | C7: Audited Statutory Accounts | D7: Adjustments | E7: Distribution business | F7: Standard Control Services | G7: Alternative Control Services | L7: Negotiated Services
G8: Public Lighting | I8: Other
G9: =IF(dms_Jurisdiction="Vic","Energy efficient","") ->  | H9: =IF(dms_Jurisdiction="Vic","Non-energy efficient","") ->  | I9: Connection services | J9: Metering services | K9: Ancillary network services
C10: $0's, nominal
B12: 8.1.1.1 - REVENUE
B13: Distribution revenue | C13: 1408540424 | D13: 96391628.8 | E13: 1504932053 | F13: 1447653419 | G13: 30432986.45 | I13: 0 | J13: 26845647.25 | K13: 0
B14: Cross boundary revenue | C14: 0 | D14: 4218966.602 | E14: 4218966.602 | F14: 4218966.602 | G14: 0 | I14: 0 | J14: 0 | K14: 0
B15: Contributions | C15: 44653810.2 | D15: -1350951.94 | E15: 43302858.26 | F15: 25621828.05 | G15: 5447694.63 | I15: 6725337.3 | J15: 5507998.28 | K15: 0
B16: Interest income | C16: 6987695.27 | D16: -6987695.27 | E16: 0 | F16: 0 | G16: 0 | I16: 0 | J16: 0 | K16: 0
B17: Jurisdictional scheme amounts | C17: 114138412.9 | D17: -74186.01455 | E17: 114064226.9 | F17: 114064226.9 | G17: 0 | I17: 0 | J17: 0 | K17: 0
B18: Profit from sale of fixed assets | C18: 1473798.68 | D18: -1473798.68 | E18: 0 | F18: 0 | G18: 0 | I18: 0 | J18: 0 | K18: 0
B19: TUOS revenue | C19: 371007570.5 | D19: -2437924.97 | E19: 368569645.6 | F19: 368569645.6 | G19: 0 | I19: 0 | J19: 0 | K19: 0
B20: Pass through revenue (F-factor) | C20: 0 | D20: 0 | E20: 0 | F20: 0 | G20: 0 | I20: 0 | J20: 0 | K20: 0
B21: Other Revenue | C21: 348252818.3 | D21: -330626120.5 | E21: 17626697.81 | F21: 0 | G21: 1325684.73 | I21: 6039180.44 | J21: 769591.37 | K21: 9492241.27
B22: Total revenue | C22: =SUM(C13:C21) -> 2295054530 | D22: -242340082 | E22: 2052714448 | F22: 1960128086 | G22: 37206365.81 | H22: 0 | I22: 12764517.74 | J22: 33123236.9 | K22: 9492241.27 | L22: 0
B24: 8.1.1.2 - EXPENDITURE
B25: TUOS expenditure | C25: 353874105.1 | D25: -6293588.57 | E25: 347580516.5 | F25: 347580516.5 | G25: 0 | I25: 0 | J25: 0 | K25: 0
B26: Avoided TUOS expenditure | C26: 2151821.48 | D26: -79382.61 | E26: 2072438.87 | F26: 2072438.87 | G26: 0 | I26: 0 | J26: 0 | K26: 0
B27: Cross boundary expenditure | C27: 0 | D27: 6293588.57 | E27: 6293588.57 | F27: 6293588.57 | G27: 0 | I27: 0 | J27: 0 | K27: 0
B28: Depreciation | C28: 431857281 | D28: -24012704.44 | E28: 407844576.6 | F28: 392924119 | G28: 9231589.34 | I28: 1040989.57 | J28: 4647878.65 | K28: 0
B29: Finance charges | C29: 295854376 | D29: -292891059.3 | E29: 2963316.67 | F29: 2891775.926 | G29: 38230.00185 | I29: 14095.44 | J29: 19215.30181 | K29: 0
B30: Impairment losses | C30: 14590968.3 | D30: -14590968.3 | E30: 0 | F30: 0 | G30: 0 | I30: 0 | J30: 0 | K30: 0
B31: Jurisdictional scheme amounts | C31: 0 | D31: 109121884 | E31: 109121884 | F31: 109121884 | G31: 0 | I31: 0 | J31: 0 | K31: 0
B32: Loss from sale of fixed assets | C32: 5105674 | D32: -5105674 | E32: 0 | F32: 0 | G32: 0 | I32: 0 | J32: 0 | K32: 0
B33: Maintenance expenditure | C33: 281518252 | D33: -11570377.7 | E33: 269947874.3 | F33: 252840784.7 | G33: 10953357.6 | I33: 0 | J33: 6153731.986 | K33: 0
B34: Operating expenditure excluding maintenance expenditure | C34: 287762705 | D34: -96480423.13 | E34: 191282281.9 | F34: 138369670 | G34: 3451369.7 | I34: 7374708.651 | J34: 28371661.18 | K34: 13714872.34
B35: Other | C35: 67123759.56 | D35: -67123759.56 | E35: 0 | F35: 0
B37: 8.1.1.3 - PROFIT
B38: Profit before tax (PBT) | C38: =C22-SUM(C25:C35) -> 555215587.4 | D38: 160392383.1 | E38: 715607970.5 | F38: 708033308.5 | G38: 13531819.17 | H38: 0 | I38: 4334724.079 | J38: -6069250.218 | K38: -4222631.069 | L38: 0
B39: Income tax expenses (/ benefit) | C39: 139935644.6 | D39: 74746746.55 | E39: 214682391.1 | F39: 212409992.6 | G39: 4059545.75 | I39: 1300417.224 | J39: -1820775.065 | K39: -1266789.321
B40: Profit after tax | C40: =C38-C39 -> 415279942.8 | D40: 85645636.58 | E40: 500925579.3 | F40: 495623316 | G40: 9472273.418 | H40: 0 | I40: 3034306.855 | J40: -4248475.152 | K40: -2955841.748 | L40: =L38-L39 -> 0

Sheet 8.2 Capex
B1: =(LOOKUP(dms_Model,dms_Model_List,dms_Worksheet_List)) -> REGULATORY REPORTING STATEMENT
B2: =dms_TradingName -> Ergon Energy
B3: =CONCATENATE("Annual Reporting RIN Response ",CRY) -> Annual Reporting RIN Response 2015-16
B4: 8.2 - CAPEX
B6: Instructions
B7: Reported expenditure must EXCLUDE capital contributions (except tables 8.2.1 and 8.2.5 which should include all capital contributions).
B8: =CONCATENATE("Forecast expenditure is to be taken from ",dms_TradingName,"'s ",dms_DeterminationRef,".") -> Forecast expenditure is to be taken from Ergon Energy's 2015-20 Distribution Determination.
B9: If allocating based on assumptions then provide method in Basis of Preparation. All adjustments must be explained in Basis of Preparation with supporting documentation attached.
B11: For tables 8.2.1 and 8.2.3: Reported expenditure must INCLUDE any profit margins or management fees paid directly or indirectly to related party contractors (not including actual incurred expenses of the related party contractor) for the regulatory reporting period. 'Related Party Margin Expenditure' must COMPRISE ONLY profit margins or management fees paid directly or indirectly to related party contractors (not including actual incurred expenses of the related party contractor) for the regulatory reporting period.
B13: 8.2.1 - CAPEX BY PURPOSE - STANDARD CONTROL SERVICES
B15: Each line item in this table must INCLUDE the capital contributions. Total capital contributions should also be identified in the last item in the table.
B17: Description | C17: EXPENDITURE
C18: CPI adjusted Forecast | D18: Actual | E18: Difference | F18: Related Party Margin | G18: Voltage level
G19: Subtransmission | H19: HV | I19: LV | J19: Other
C20: $0's, nominal | E20: (%) | F20: $0's, nominal
B21: =IF('[1]8.2 Capex'!B21=0,"",'[1]8.2 Capex'!B21) -> Augmentation capex | C21: =IF($B21="",,VLOOKUP($B21,'[1]8.2 Capex'!$B$21:$J$37,2,FALSE)) -> 127770617.6 | D21: =SUM(G21:J21) -> 94645197 | E21: =IF(C21=0,1,(D21-C21)/C21*1) -> -0.2592569501 | F21: =IF($B21="",,VLOOKUP($B21,'[1]8.2 Capex'!$B$21:$J$37,5,FALSE)) -> 0 | G21: =IF($B21="",,VLOOKUP($B21,'[1]8.2 Capex'!$B$21:$J$37,6,FALSE)) -> 6960333 | H21: =IF($B21="",,VLOOKUP($B21,'[1]8.2 Capex'!$B$21:$J$37,7,FALSE)) -> 51296155 | I21: =IF($B21="",,VLOOKUP($B21,'[1]8.2 Capex'!$B$21:$J$37,8,FALSE)) -> 6026578 | J21: =IF($B21="",,VLOOKUP($B21,'[1]8.2 Capex'!$B$21:$J$37,9,FALSE)) -> 30362131
B22: =IF('[1]8.2 Capex'!B22=0,"",'[1]8.2 Capex'!B22) -> Customer connections capex | C22: =IF($B22="",,VLOOKUP($B22,'[1]8.2 Capex'!$B$21:$J$37,2,FALSE)) -> 80290559.94 | D22: =SUM(G22:J22) -> 77778804 | E22: =IF(C22=0,1,(D22-C22)/C22*1) -> -0.03128332826 | F22: =IF($B22="",,VLOOKUP($B22,'[1]8.2 Capex'!$B$21:$J$37,5,FALSE)) -> 0 | G22: =IF($B22="",,VLOOKUP($B22,'[1]8.2 Capex'!$B$21:$J$37,6,FALSE)) -> 39771 | H22: =IF($B22="",,VLOOKUP($B22,'[1]8.2 Capex'!$B$21:$J$37,7,FALSE)) -> 57778403 | I22: =IF($B22="",,VLOOKUP($B22,'[1]8.2 Capex'!$B$21:$J$37,8,FALSE)) -> 19417629 | J22: =IF($B22="",,VLOOKUP($B22,'[1]8.2 Capex'!$B$21:$J$37,9,FALSE)) -> 543001
B23: =IF('[1]8.2 Capex'!B23=0,"",'[1]8.2 Capex'!B23) -> Asset replacement capex (repex) | C23: =IF($B23="",,VLOOKUP($B23,'[1]8.2 Capex'!$B$21:$J$37,2,FALSE)) -> 175107092.2 | D23: 172831341 | E23: -0.01299633913 | F23: =IF($B23="",,VLOOKUP($B23,'[1]8.2 Capex'!$B$21:$J$37,5,FALSE)) -> 0 | G23: =IF($B23="",,VLOOKUP($B23,'[1]8.2 Capex'!$B$21:$J$37,6,FALSE)) -> 5096151 | H23: =IF($B23="",,VLOOKUP($B23,'[1]8.2 Capex'!$B$21:$J$37,7,FALSE)) -> 100477501 | I23: =IF($B23="",,VLOOKUP($B23,'[1]8.2 Capex'!$B$21:$J$37,8,FALSE)) -> 37293896 | J23: =IF($B23="",,VLOOKUP($B23,'[1]8.2 Capex'!$B$21:$J$37,9,FALSE)) -> 29963793
B24: =IF('[1]8.2 Capex'!B24=0,"",'[1]8.2 Capex'!B24) -> Metering | C24: =IF($B24="",,VLOOKUP($B24,'[1]8.2 Capex'!$B$21:$J$37,2,FALSE)) -> 2669339.469 | D24: 3904259 | E24: 0.4626311287 | F24: =IF($B24="",,VLOOKUP($B24,'[1]8.2 Capex'!$B$21:$J$37,5,FALSE)) -> 0 | G24: =IF($B24="",,VLOOKUP($B24,'[1]8.2 Capex'!$B$21:$J$37,6,FALSE)) -> 0 | H24: =IF($B24="",,VLOOKUP($B24,'[1]8.2 Capex'!$B$21:$J$37,7,FALSE)) -> 0 | I24: =IF($B24="",,VLOOKUP($B24,'[1]8.2 Capex'!$B$21:$J$37,8,FALSE)) -> 0 | J24: =IF($B24="",,VLOOKUP($B24,'[1]8.2 Capex'!$B$21:$J$37,9,FALSE)) -> 3904259
B25: =IF('[1]8.2 Capex'!B25=0,"",'[1]8.2 Capex'!B25) -> Non-network capex | C25: =IF($B25="",,VLOOKUP($B25,'[1]8.2 Capex'!$B$21:$J$37,2,FALSE)) -> 112461910.6 | D25: 84158666 | E25: -0.2516696048 | F25: =IF($B25="",,VLOOKUP($B25,'[1]8.2 Capex'!$B$21:$J$37,5,FALSE)) -> 0 | G25: =IF($B25="",,VLOOKUP($B25,'[1]8.2 Capex'!$B$21:$J$37,6,FALSE)) -> 0 | H25: =IF($B25="",,VLOOKUP($B25,'[1]8.2 Capex'!$B$21:$J$37,7,FALSE)) -> 0 | I25: =IF($B25="",,VLOOKUP($B25,'[1]8.2 Capex'!$B$21:$J$37,8,FALSE)) -> 0 | J25: =IF($B25="",,VLOOKUP($B25,'[1]8.2 Capex'!$B$21:$J$37,9,FALSE)) -> 84158666
B26: =IF('[1]8.2 Capex'!B26=0,"",'[1]8.2 Capex'!B26) -> Capitalised overheads | C26: =IF($B26="",,VLOOKUP($B26,'[1]8.2 Capex'!$B$21:$J$37,2,FALSE)) -> 210089910 | D26: =SUM(G26:J26) -> 189898932 | E26: -0.09610636715 | F26: =IF($B26="",,VLOOKUP($B26,'[1]8.2 Capex'!$B$21:$J$37,5,FALSE)) -> 0 | G26: =IF($B26="",,VLOOKUP($B26,'[1]8.2 Capex'!$B$21:$J$37,6,FALSE)) -> 5919221 | H26: =IF($B26="",,VLOOKUP($B26,'[1]8.2 Capex'!$B$21:$J$37,7,FALSE)) -> 101628377 | I26: =IF($B26="",,VLOOKUP($B26,'[1]8.2 Capex'!$B$21:$J$37,8,FALSE)) -> 30406296 | J26: =IF($B26="",,VLOOKUP($B26,'[1]8.2 Capex'!$B$21:$J$37,9,FALSE)) -> 51945038
B27: =IF('[1]8.2 Capex'!B27=0,"",'[1]8.2 Capex'!B27) ->  | D27: 0 | E27: 1
B28: =IF('[1]8.2 Capex'!B28=0,"",'[1]8.2 Capex'!B28) ->  | D28: 0 | E28: 1
B29: =IF('[1]8.2 Capex'!B29=0,"",'[1]8.2 Capex'!B29) ->  | D29: 0 | E29: 1
B30: =IF('[1]8.2 Capex'!B30=0,"",'[1]8.2 Capex'!B30) ->  | D30: =SUM(G30:J30) -> 0 | E30: 1
B31: =IF('[1]8.2 Capex'!B31=0,"",'[1]8.2 Capex'!B31) ->  | D31: 0 | E31: 1
B32: =IF('[1]8.2 Capex'!B32=0,"",'[1]8.2 Capex'!B32) ->  | D32: 0 | E32: 1
D33: 0 | E33: 1
D34: 0 | E34: 1
D35: 0 | E35: 1
B36: Capital contributions included in the above | C36: =IF($B36="",,VLOOKUP($B36,'[1]8.2 Capex'!$B$21:$J$37,2,FALSE)) -> 30120150.09 | D36: 25621829 | E36: -0.1493459056 | F36: =IF($B36="",,VLOOKUP($B36,'[1]8.2 Capex'!$B$21:$J$37,5,FALSE)) -> 0 | G36: =IF($B36="",,VLOOKUP($B36,'[1]8.2 Capex'!$B$21:$J$37,6,FALSE)) -> 345532 | H36: =IF($B36="",,VLOOKUP($B36,'[1]8.2 Capex'!$B$21:$J$37,7,FALSE)) -> 12091281 | I36: =IF($B36="",,VLOOKUP($B36,'[1]8.2 Capex'!$B$21:$J$37,8,FALSE)) -> 2376884 | J36: =IF($B36="",,VLOOKUP($B36,'[1]8.2 Capex'!$B$21:$J$37,9,FALSE)) -> 10808132
B37: Total | C37: =SUM(C21:C35) -> 708389429.8 | D37: 623217199 | E37: =IF(C37=0,1,(D37-C37)/C37*1) -> -0.1202336275 | G37: =SUM(G21:G35) -> 18015476 | H37: =SUM(H21:H35) -> 311180436 | I37: 93144399 | J37: 200876888
B40: 8.2.2 - CAPEX BY PURPOSE - MATERIAL DIFFERENCE EXPLANATION
B42: Where the difference between forecast and actual expenditure shown in table 8.2.1 is a Material Difference please explain the main factors driving the difference.
B44: Description | C44: Reason for material difference
B45: ='[1]8.2 Capex'!B45 -> Augmentation capex | C45: =VLOOKUP(B45,'[1]8.2 Capex'!$B$45:$F$48,2,FALSE) -> Augmentation investment in 2015-16 has been lower than originally predicted due to softening demand on the network which has led to the re-assessment and cancellation of investments. Safety Net Criteria has also provided opportunities to revisit network constraints, facilitating scope changes or different/alternative solutions to be delivered. The investment in different/alternative solutions has impacted on the program and therefore contributed to the underspend. Some investments were completed under budget which also had some impact.
B46: ='[1]8.2 Capex'!B46 -> Metering | C46: =VLOOKUP(B46,'[1]8.2 Capex'!$B$45:$F$48,2,FALSE) -> Delays to the insitu metering program are the reason for the underspend in this area. These programs were due to commence in the later part of the year but have not ramped up as expected due to meter availability and delays in the development of this program.
B47: ='[1]8.2 Capex'!B47 -> Non-network capex | C47: =VLOOKUP(B47,'[1]8.2 Capex'!$B$45:$F$48,2,FALSE) -> Primarily driven by Ergon Energy delaying property projects until the finalisation of 2015-20 Distribution Determination for confirmation of funding outcomes. Projects commenced after October 2016, therefore creating a 3-4 month delay in capex spend during 2015/16 for Buildings, Office Furniture etc.
B48: ='[1]8.2 Capex'!B48 -> Capitalised overheads | C48: =VLOOKUP(B48,'[1]8.2 Capex'!$B$45:$F$48,2,FALSE) -> Overheads are applied to capex using a percentage apportionment based on direct cost by line of business. The reduction in overheads is driven by a lower direct regulated Capex spend against forecast, to which the percentage apportionment is applied.
B62: 8.2.3 - CAPEX OTHER
C63: EXPENDITURE
C64: CPI adjusted Forecast | D64: Actual | E64: Difference | F64: Related Party Margin | G64: Voltage level
G65: Subtransmission | H65: HV | I65: LV | J65: Other
C66: $0's, nominal | E66: (%) | F66: $0's, nominal
B67: Public lighting
B68: =IF(dms_Jurisdiction="Vic","Energy Efficient", "Total") -> Total | C68: =VLOOKUP(B68,'[1]8.2 Capex'!$B$58:$J$66,COLUMN(B68),FALSE) -> 24862851.78 | D68: =SUM(G68:J68) -> 15587945 | E68: =IF(C68=0,1,((D68-C68)/C68)*1) -> -0.3730427573 | G68: =VLOOKUP($B68,'[1]8.2 Capex'!$B$58:$J$66,COLUMN(F68),FALSE) ->  | H68: =VLOOKUP($B68,'[1]8.2 Capex'!$B$58:$J$66,COLUMN(G68),FALSE) ->  | I68: =VLOOKUP($B68,'[1]8.2 Capex'!$B$58:$J$66,COLUMN(H68),FALSE) ->  | J68: =VLOOKUP($B68,'[1]8.2 Capex'!$B$58:$J$66,COLUMN(I68),FALSE) -> 15587945
B69: =IF(dms_Jurisdiction="Vic","Non-energy efficient", "") ->  | D69: =SUM(G69:J69) -> 0 | E69: =IF(C69=0,1,((D69-C69)/C69)*1) -> 1
B70: Alternative Control Services
B71: Connection services | D71: =SUM(G71:J71) -> 16506720 | E71: =IF(C71=0,1,((D71-C71)/C71)*1) -> 1 | G71: =VLOOKUP($B71,'[1]8.2 Capex'!$B$58:$J$66,COLUMN(F71),FALSE) -> 585249 | H71: =VLOOKUP($B71,'[1]8.2 Capex'!$B$58:$J$66,COLUMN(G71),FALSE) -> 8786568 | I71: =VLOOKUP($B71,'[1]8.2 Capex'!$B$58:$J$66,COLUMN(H71),FALSE) -> 4876594 | J71: =VLOOKUP($B71,'[1]8.2 Capex'!$B$58:$J$66,COLUMN(I71),FALSE) -> 2258309
B72: Metering services | C72: =VLOOKUP(B72,'[1]8.2 Capex'!$B$58:$J$66,COLUMN(B72),FALSE) -> 13768630.39 | D72: 8548022 | E72: =IF(C72=0,1,((D72-C72)/C72)*1) -> -0.379166863 | G72: =VLOOKUP($B72,'[1]8.2 Capex'!$B$58:$J$66,COLUMN(F72),FALSE) ->  | H72: =VLOOKUP($B72,'[1]8.2 Capex'!$B$58:$J$66,COLUMN(G72),FALSE) ->  | I72: =VLOOKUP($B72,'[1]8.2 Capex'!$B$58:$J$66,COLUMN(H72),FALSE) ->  | J72: =VLOOKUP($B72,'[1]8.2 Capex'!$B$58:$J$66,COLUMN(I72),FALSE) -> 8548022
B73: Ancillary network services | D73: 0 | E73: =IF(C73=0,1,((D73-C73)/C73)*1) -> 1 | G73: =VLOOKUP($B73,'[1]8.2 Capex'!$B$58:$J$66,COLUMN(F73),FALSE) ->  | H73: =VLOOKUP($B73,'[1]8.2 Capex'!$B$58:$J$66,COLUMN(G73),FALSE) ->  | I73: =VLOOKUP($B73,'[1]8.2 Capex'!$B$58:$J$66,COLUMN(H73),FALSE) ->  | J73: =VLOOKUP($B73,'[1]8.2 Capex'!$B$58:$J$66,COLUMN(I73),FALSE) -> 
B74: Negotiated Services
B75: Negotiated services | D75: =SUM(G75:J75) -> 0 | E75: =IF(C75=0,1,((D75-C75)/C75)*1) -> 1
B76: Total | C76: =SUM(C68:C69,C71:C73,C75) -> 38631482.18 | D76: =SUM(D68:D69,D71:D73,D75) -> 40642687 | E76: =IF(C76=0,1,((D76-C76)/C76)*1) -> 0.0520612907 | G76: =SUM(G68:G69,G71:G73,G75) -> 585249 | H76: =SUM(H68:H69,H71:H73,H75) -> 8786568 | I76: =SUM(I68:I69,I71:I73,I75) -> 4876594 | J76: =SUM(J68:J69,J71:J73,J75) -> 26394276
B80: 8.2.4 - CAPEX BY ASSET CLASS
B82: =CONCATENATE(dms_TradingName, " to enter in Table 8.2.4 each Asset Class specified in its current determination as listed in the AER's final decision in its Roll Forward Model and Post-tax Revenue Model and enter information against that Asset Class.") -> Ergon Energy to enter in Table 8.2.4 each Asset Class specified in its current determination as listed in the AER's final decision in its Roll Forward Model and Post-tax Revenue Model and enter information against that Asset Class.
B84: Asset class | C84: CPI adjusted Forecast | D84: Actual | E84: Difference | F84: Movements in provisions allocated to as-incurred capex
C86: $0's, nominal | E86: (%) | F86: $0's, nominal
B87: Overhead Sub-Transmission Lines | C87: 24443859.22 | D87: 21365249 | E87: =IF(C87=0,1,((D87-C87)/C87)*1) -> -0.1259461606 | F87: -144628
B88: Underground Sub-Transmission Cables | C88: 687419.1553 | D88: 4489222 | E88: =IF(C88=0,1,((D88-C88)/C88)*1) -> 5.530545396 | F88: -30434
B89: Overhead Distribution Lines | C89: 214340815.9 | D89: 209161710 | E89: -0.02416294757 | F89: -1455070
B90: Underground Distribution Cables | C90: 34039563.62 | D90: 40415965 | E90: 0.1873232411 | F90: -293330
B91: Distribution Equipment | C91: 12316987.12 | D91: 2087655 | E91: -0.8305060336 | F91: -14683
B92: Substation Bays | C92: 33696373.86 | D92: 49247671 | E92: 0.4615124823 | F92: -330387
B93: Substation Establishment | C93: 13388202.62 | D93: 9799627 | E93: -0.2680401338 | F93: -65478
B94: Distribution Substation Switchgear | C94: 9179624.228 | D94: 41547314 | E94: 3.526036466 | F94: -281932
B95: Zone Transformers | C95: 27233345.75 | D95: 13818333 | E95: -0.4925951028 | F95: -92330
B96: Distribution Transformers | C96: 61523955.85 | D96: 70022958 | E96: 0.1381413472 | F96: -533358
B97: Low Voltage Services | C97: 31711704.19 | D97: 10482968 | E97: -0.6694290557 | F97: -85926
B98: Metering | C98: 3561522.873 | D98: 5692896 | E98: 0.5984443181 | F98: -38330
B99: Communications – Pilot Wires | C99: 25464369.13 | D99: 1024556 | E99: -0.9597651136 | F99: -6874
B100: Generation Assets | C100: 2307094.866 | D100: 5092124 | E100: 1.207158481 | F100: -34024
B101: Street Lighting | D101: 0 | E101: 1 | F101: 0
B102: Other Equipment | C102: 26755282.67 | D102: 0 | E102: -1 | F102: 0
B103: Control Centre - SCADA | C103: 2973783.877 | D103: 6851451 | E103: 1.303950551 | F103: -45806
B104: Land & Easements (System) | C104: 2897407.795 | D104: 1397079 | E104: -0.5178176152 | F104: -9335
B105: Metering Type 5-6 | D105: 0 | E105: 1 | F105: 0
B106: Communications | C106: 0 | D106: 6706292 | E106: 1 | F106: -47493
B107: IT Systems | C107: 2715084.428 | D107: 8568141 | E107: 2.155754905 | F107: -65012
B108: Office Equipment & Furniture | C108: 3701463.415 | D108: 1530697 | E108: -0.5864616697 | F108: -11955
B109: Motor Vehicles | C109: 33791106.94 | D109: 22575608 | E109: -0.3319068227 | F109: -160900
B110: Plant & Equipment | C110: 6660600.375 | D110: 12388514 | E110: 0.8599695676 | F110: -88295
B111: Buildings | C111: 104881443.9 | D111: 41253591 | E111: -0.6066645398 | F111: -322203
B112: Land & Easements | C112: 0 | D112: 212865 | E112: 1 | F112: -1663
B113: Land Improvements | C113: 0 | D113: 11862884 | E113: 1 | F113: -92653
B114: Equity Raising Costs | C114: 0 | D114: 0 | E114: 1
E115: 1
E116: 1
E117: =IF(C117=0,1,((D117-C117)/C117)*1) -> 1
E118: 1
E119: 1
E120: 1
E121: 1
E122: 1
E123: 1
E124: 1
E125: 1
E126: 1
E127: 1
E128: 1
E129: 1
E130: 1
E131: 1
E132: 1
E133: 1
E134: 1
E135: 1
E136: 1
B137: Total | C137: =SUM(C87:C136) -> 678271011.8 | D137: =SUM(D87:D136) -> 597595370 | E137: -0.1189430779 | F137: =SUM(F87:F136) -> -4252099
B140: 8.2.5 - CAPITAL CONTRIBUTIONS BY ASSET CLASS
B141: Asset class | C141: CPI Adjusted Forecast | D141: Actual | E141: Difference
C143: $0's, nominal | E143: (%)
B144: =IF(ISBLANK(B87),"",B87) -> Overhead Sub-Transmission Lines | C144: 1372795.497 | D144: 280004 | E144: =IF(C144=0,1,((D144-C144)/C144)*1) -> -0.7960337133
B145: Underground Sub-Transmission Cables | C145: 40675.42214 | D145: 65528 | E145: =IF(C145=0,1,((D145-C145)/C145)*1) -> 0.610997417
B146: Overhead Distribution Lines | C146: 8684202.627 | D146: 8606949 | E146: -0.008895880251
B147: Underground Distribution Cables | C147: 4382776.735 | D147: 3484332 | E147: -0.204994411
B148: Distribution Equipment | C148: 122026.2664 | D148: 109883 | E148: -0.09951354551
B149: Substation Bays | C149: 1260938.086 | D149: 198659 | E149: -0.8424514239
B150: Substation Establishment | C150: 50844.27767 | D150: 0 | E150: -1
B151: Distribution Substation Switchgear | C151: 1057560.976 | D151: 647150 | E151: -0.3880731089
B152: Zone Transformers | C152: 223714.8218 | D152: 0 | E152: -1
B153: Distribution Transformers | C153: 9995984.991 | D153: 9800522 | E153: -0.01955415007
B154: Low Voltage Services | C154: 2745590.994 | D154: 2376884 | E154: -0.1342905754
B155: Metering | C155: 0 | D155: 43647 | E155: 1
B156: Communications – Pilot Wires | C156: 10168.85553 | D156: 4268 | E156: -0.5802870849
B157: Generation Assets | C157: 0 | D157: 0 | E157: 1
B158: Street Lighting | D158: 0 | E158: 1
B159: Other Equipment | C159: 0 | D159: 0 | E159: 1
B160: Control Centre - SCADA | C160: 0 | D160: 4003 | E160: 1
B161: Land & Easements (System) | C161: 172870.5441 | D161: 0 | E161: -1
B162: Metering Type 5-6 | D162: 0 | E162: 1
B163: Communications | C163: 0 | D163: 0 | E163: 1
B164: IT Systems | C164: 0 | D164: 0 | E164: 1
B165: Office Equipment & Furniture | C165: 0 | D165: 0 | E165: 1
B166: Motor Vehicles | C166: 0 | D166: 0 | E166: 1
B167: Plant & Equipment | C167: 0 | D167: 0 | E167: 1
B168: Buildings | C168: 0 | D168: 0 | E168: 1
B169: Land & Easements | C169: 0 | D169: 0 | E169: 1
B170: Land Improvements | C170: 0 | D170: 0 | E170: 1
B171: Equity Raising Costs | C171: 0 | D171: 0 | E171: 1
E172: 1
E173: =IF(C173=0,1,((D173-C173)/C173)*1) -> 1
E174: 1
E175: 1
B176: =IF(ISBLANK(B119),"",B119) ->  | E176: 1
E177: 1
E178: 1
E179: 1
E180: 1
E181: 1
E182: 1
E183: =IF(C183=0,1,((D183-C183)/C183)*1) -> 1
E184: 1
E185: 1
E186: 1
E187: 1
E188: 1
E189: 1
E190: 1
E191: 1
E192: 1
E193: 1
B194: Total | C194: =SUM(C144:C193) -> 30120150.09 | D194: =SUM(D144:D193) -> 25621829 | E194: -0.1493459056
B197: 8.2.6 - DISPOSALS BY ASSET CLASS
B198: Asset class | C198: CPI Adjusted Forecast | D198: Actual | E198: Difference
C200: $0's, nominal | E200: (%)
B201: =IF(ISBLANK(B87),"",B87) -> Overhead Sub-Transmission Lines | C201: 0 | D201: 0 | E201: =IF(C201=0,1,((D201-C201)/C201)*1) -> 1
B202: Underground Sub-Transmission Cables | C202: 0 | D202: 0 | E202: =IF(C202=0,1,((D202-C202)/C202)*1) -> 1
B203: Overhead Distribution Lines | C203: 0 | D203: 317589 | E203: 1
B204: Underground Distribution Cables | C204: 0 | D204: 0 | E204: 1
B205: Distribution Equipment | C205: 0 | D205: 0 | E205: 1
B206: Substation Bays | C206: 0 | D206: 0 | E206: 1
B207: Substation Establishment | C207: 0 | D207: 575000 | E207: 1
B208: Distribution Substation Switchgear | C208: 0 | D208: 0 | E208: 1
B209: Zone Transformers | C209: 0 | D209: 0 | E209: 1
B210: Distribution Transformers | C210: 0 | D210: 33904 | E210: 1
B211: Low Voltage Services | C211: 0 | D211: 0 | E211: 1
B212: Metering | C212: 0 | D212: 0 | E212: 1
B213: Communications – Pilot Wires | C213: 0 | D213: 0 | E213: 1
B214: Generation Assets | C214: 0 | D214: 0 | E214: 1
B215: Street Lighting | D215: 0 | E215: 1
B216: Other Equipment | C216: 0 | D216: 0 | E216: 1
B217: Control Centre - SCADA | C217: 0 | D217: 0 | E217: 1
B218: Land & Easements (System) | C218: 0 | D218: 0 | E218: 1
B219: Metering Type 5-6 | D219: 0 | E219: 1
B220: Communications | C220: 0 | D220: 0 | E220: 1
B221: IT Systems | C221: 0 | D221: 0 | E221: 1
B222: Office Equipment & Furniture | C222: 0 | D222: 0 | E222: 1
B223: Motor Vehicles | C223: 7118198.874 | D223: 3514570 | E223: -0.5062557169
B224: Plant & Equipment | C224: 0 | D224: 1190302 | E224: 1
B225: Buildings | C225: 0 | D225: 0 | E225: 1
B226: Land & Easements | C226: 0 | D226: 0 | E226: 1
B227: Land Improvements | C227: 0 | D227: 0 | E227: 1
B228: Equity Raising Costs | C228: 0 | D228: 0 | E228: 1
E229: 1
E230: 1
E231: =IF(C231=0,1,((D231-C231)/C231)*1) -> 1
E232: 1
B233: =IF(ISBLANK(B119),"",B119) ->  | E233: 1
E234: 1
... 17 more rows

Sheet 8.4 Opex
B1: =(LOOKUP(dms_Model,dms_Model_List,dms_Worksheet_List)) -> REGULATORY REPORTING STATEMENT
B2: =dms_TradingName -> Ergon Energy
B3: =CONCATENATE("Annual Reporting RIN Response ",CRY) -> Annual Reporting RIN Response 2015-16
B4: 8.4 OPEX
B6: Instructions
B7: =CONCATENATE("Forecast expenditure is to be taken from ",dms_TradingName,"'s ",dms_DeterminationRef,".") -> Forecast expenditure is to be taken from Ergon Energy's 2015-20 Distribution Determination.
B8: If allocating based on assumptions then provide method in Basis of Preparation. All adjustments must be explained in Basis of Preparation with supporting documentation attached.
B10: 8.4.1 - OPERATING & MAINTENANCE EXPENDITURE - BY PURPOSE
B13: =CONCATENATE(dms_TradingName," is to list the operating expenditure categories identified in ", dms_TradingName,"'s regulatory proposal at table 3.2.1.1 current opex categories and cost allocations.") -> Ergon Energy is to list the operating expenditure categories identified in Ergon Energy's regulatory proposal at table 3.2.1.1 current opex categories and cost allocations.
B14: =CONCATENATE(dms_TradingName, " must specify any expenditure category where the expense is more than 5 per cent of the total standard control services operating expenditure.") -> Ergon Energy must specify any expenditure category where the expense is more than 5 per cent of the total standard control services operating expenditure.
B15: Reported operating expenditure must INCLUDE any profit margins or management fees paid directly or indirectly to related party contractors (not including actual incurred expenditure of the related party contractor) for the regulatory reporting period.
B17: Opex category | C17: Audited Statutory Accounts | D17: Adjustments | E17: Distribution business | F17: Standard Control Services | I17: Alternative Control Services | N17: Negotiated Services
F18: CPI Adjusted Forecast | G18: Actual | H18: Difference | I18: Public Lighting | K18: Other
I19: =IF(dms_Jurisdiction="Vic","Energy efficient","") ->  | J19: =IF(dms_Jurisdiction="Vic","Non-energy efficient","") ->  | K19: Connection services | L19: Metering services | M19: Ancillary network services
C20: $0's, nominal | H20: % | I20: $0's, nominal
B21: Preventative Maintenance | C21: 109373074 | D21: -4093135 | E21: 105279939 | F21: 73447480.34 | G21: 95340772 | H21: =IF(F21=0,1,((G21-F21)/F21)*1) -> 0.2980809084 | I21: 6254713 | L21: 3684454
B22: Corrective Maintenance | C22: 101516121 | D22: -6471172 | E22: 95044949 | F22: 108238013.1 | G22: 87877026 | H22: -0.1881130897 | I22: 4698645 | L22: 2469278
B23: Forced Maintenance | C23: 70629057 | D23: -1006070 | E23: 69622987 | F23: 70814249.87 | G23: 69622987 | H23: -0.01682236093
B24: Other Network Maintenance | C24: 0 | D24: 0 | E24: 0 | F24: 0 | H24: 1
B25: Network Operating Costs | C25: 40344793 | D25: -3861646 | E25: 36483147 | F25: 36159800.01 | G25: 36483147 | H25: 0.008942167625
B26: Meter reading | C26: 10782535 | D26: -229669 | E26: 10552866 | F26: 0 | H26: 1 | L26: 10552866
B27: Customer service (incl Call Centre) | C27: 61399749 | D27: -8909628 | E27: 52490121 | F27: 10699361.09 | G27: 10130376 | H27: -0.05317935227 | I27: 3451370 | K27: 7374709 | L27: 17818795 | M27: 13714872
B28: Other Operating Costs | C28: 92318647 | D28: -83411062 | E28: 8907585 | F28: 9208295.947 | G28: 8907585 | H28: -0.03265652497
B29: Training | C29: 21067484 | E29: 21067484 | F29: 21187277.54 | G29: 21067484 | H29: -0.00565403185
B30: Feed-in-Tariff | C30: 0 | D30: 109044843 | E30: 109044843 | F30: 113285219.3 | G30: 109044843 | H30: -0.03743097614
B31: AEMC Levy | C31: 0 | D31: 77041 | E31: 77041 | F31: 0 | G31: 77041 | H31: 1
B32: Debt Raising Costs | C32: 0 | D32: 2963317 | E32: 2963317 | F32: 4981693.119 | G32: 2891776 | H32: -0.4195194423 | I32: 38230 | K32: 14095 | L32: 19215 | M32: -
B33: Over Absorbed Overheads | C33: 0 | D33: 0 | E33: 0 | F33: 0 | G33: 0 | H33: 1 | I33: 0 | K33: 0 | L33: 0 | M33: 0
B34: Non-Network Alternatives | C34: 5097249 | D34: -68419 | E34: 5028830 | F34: 8061254.337 | G34: 5028830 | H34: -0.3761727654 | I34: 0 | K34: 0 | L34: 0 | M34: 0
B35: Corporate Restructuring | C35: 43065472 | D35: 0 | E35: 43065472 | F35: 2129108.325 | G35: 43065472 | H35: 19.22699902
B36: Not Proceeding Network Initiated Capital Works | C36: 13686776 | D36: 0 | E36: 13686776 | F36: 0 | G36: 13686776 | H36: =IF(F36=0,1,((G36-F36)/F36)*1) -> 1
B37: =IF('[1]8.4 Opex'!$B37=0,"",'[1]8.4 Opex'!$B37) ->  | H37: 1
B38: =IF('[1]8.4 Opex'!$B38=0,"",'[1]8.4 Opex'!$B38) ->  | H38: 1
B39: =IF('[1]8.4 Opex'!$B39=0,"",'[1]8.4 Opex'!$B39) ->  | H39: 1
B40: =IF('[1]8.4 Opex'!$B40=0,"",'[1]8.4 Opex'!$B40) ->  | H40: 1
B41: =IF('[1]8.4 Opex'!$B41=0,"",'[1]8.4 Opex'!$B41) ->  | H41: 1
H42: =IF(F42=0,1,((G42-F42)/F42)*1) -> 1
H43: 1
H44: 1
H45: 1
H46: 1
H47: 1
H48: 1
H49: 1
H50: 1
H51: 1
H52: 1
H53: 1
H54: 1
H55: 1
H56: 1
H57: 1
H58: 1
H59: 1
H60: 1
H61: 1
H62: 1
H63: 1
H64: 1
H65: 1
H66: 1
H67: 1
H68: 1
H69: 1
H70: 1
B71: Total | C71: =SUM(C21:C70) -> 569280957 | D71: 4034400 | E71: 573315357 | F71: 458211753 | G71: 503224115 | H71: 0.09823484823 | I71: =SUM(I21:I70) -> 14442958 | J71: 0 | K71: 7388804 | L71: 34544608 | M71: 13714872 | N71: 0
B74: 8.4.2 - OPERATING & MAINTENANCE EXPENDITURE - BY PURPOSE - MARGINS ONLY
B76: "Related party margin expenditure' must COMPRISE ONLY profit margins or management fees paid directly or indirectly to related party contractors (for expenditure that is not an actual incurred expenditure of the related party contractor) for the regulatory reporting period.
B78: Opex category | C78: Audited Statutory Accounts | D78: Adjustments | E78: Distribution business | F78: Standard Control Services | I78: Alternative Control Services | N78: Negotiated Services
F79: CPI Adjusted Forecast | G79: Actual | H79: Difference | I79: Public Lighting | K79: Other
I80: =IF(dms_Jurisdiction="Vic","Energy efficient","") ->  | J80: =IF(dms_Jurisdiction="Vic","Non-energy efficient","") ->  | K80: Connection services | L80: Metering services | M80: Ancillary network services
C81: $0's, nominal | G81: $0's, nominal | H81: per cent | I81: $0's, nominal
B82: =IF(ISBLANK(B21),"",B21) -> Preventative Maintenance | H82: =IF(F82=0,1,((G82-F82)/F82)*1) -> 
B83: Corrective Maintenance
B84: Forced Maintenance
B85: Other Network Maintenance
B86: Network Operating Costs
B87: Meter reading
B88: Customer service (incl Call Centre)
B89: =IF(ISBLANK(B27),"",B27) -> Customer service (incl Call Centre) | H89: =IF(F89=0,1,((G89-F89)/F89)*1) -> 
B90: Other Operating Costs
B91: Training
B92: Feed-in-Tariff
B93: AEMC Levy
B94: Debt Raising Costs
B95: Over Absorbed Overheads
B96: Non-Network Alternatives
B97: Corporate Restructuring | C97: 0 | D97: 0 | E97: 0 | F97: 0 | G97: 0 | H97: 1 | I97: 0 | K97: 0 | L97: 0 | M97: 0
B98: Not Proceeding Network Initiated Capital Works | C98: 0 | D98: 0 | E98: 0 | F98: 0 | G98: 0 | H98: =IF(F98=0,1,((G98-F98)/F98)*1) -> 1 | I98: 0 | K98: 0 | L98: 0 | M98: 0
H99: 1
H100: 1
H101: 1
H102: 1
H103: 1
H104: =IF(F104=0,1,((G104-F104)/F104)*1) -> 1
H105: 1
H106: 1
H107: 1
H108: 1
H109: 1
H110: 1
H111: 1
H112: 1
H113: 1
H114: 1
H115: 1
H116: 1
H117: 1
H118: 1
H119: 1
H120: 1
H121: 1
H122: 1
H123: 1
H124: 1
H125: 1
H126: 1
H127: 1
H128: 1
H129: 1
H130: 1
H131: 1
H132: 1
B133: Total | C133: =SUM(C82:C132) -> 0 | D133: =SUM(D82:D132) -> 0 | E133: =SUM(E82:E132) -> 0 | F133: =SUM(F82:F132) -> 0 | G133: =SUM(G82:G132) -> 0 | H133: 1 | I133: =SUM(I82:I132) -> 0 | J133: =SUM(J82:J132) -> 0 | K133: 0 | L133: 0 | M133: =SUM(M82:M132) -> 0 | N133: =SUM(N82:N132) -> 0
B136: 8.4.3 - OPERATING & MAINTENANCE EXPENDITURE - EXPLANATION OF MATERIAL DIFFERENCE
B138: Where the difference between forecast and actual expenditure shown in table 8.4.1, column I is a Material Difference please explain the main factors driving the difference.
B140: Category | C140: Explanation
B141: Preventative Maintenance | C141: Variance is attributable to a variety of factors including; • A trade off in the CPI adjusted forecast categories between preventive and corrective maintenance • Some carry over expenditure from 2014/15 as claims were completed, rechecked and verified • Higher levels of facility costs than forecast for substation and communication sites • One minor subset of Asset Inspection, the Pole Top inspection program running and higher unit rates than forecast
B142: Corrective Maintenance | C142: Primarily driven by efficiencies in the vegetation management program reflective of improved processes, analysis and application of ROAMES information and management intervention. Also, a reduced number of non-compliance instances against acceptance criteria identified during the routine maintenance process resulting in less non-routine maintenance work across several asset classes.
B143: Electricity Industry Levy | C143: Clause 16 (Australian Energy Market Commission Levy) of Ergon Energy’s Distribution Authority was amended on 22 March 2016 requiring Ergon Energy to pay the Energy Industry Levy which reflects a portion of the Queensland Government's funding commitments for the AEMC. No costs were forecast as the obligation arose after the publication of the 2015-20 Distribution Determination. On 22 April 2016, the AER approved the Energy Industry Levy as a Jurisdictional Scheme.
B144: Debt Raising Costs | C144: The key driver of the debt raising costs variance was the restructure of our debt as part of the energy industry merger to form Energy Queensland Limited on 30 June 2016. Under the Regulation our debt service payment and debt raising costs for the June quarter were transferred to the State of Queensland (for both Ergon Energy and Energex). Accordingly, we were not required to pay Queensland Treasury Corporation's (QTC) Administration Fees for April to June 2016. Other drivers for the variance relate to the differential between the rate charged by QTC and our AER allowance. QTC charged on average 7 basis points over the 2015/-16 financial year, whereas the AER allowance was 8.27 basis points. In addition, Ergon Energy's actual debt balance at the start of the year with QTC was $5,273 Million which increased to $5,901 Million prior to the debt restructure compared to the AER 2015/-16 debt balance at the start of the year of $5,924 Million (using a 2.5% forecast inflation rate) and end of period balance of $6,221 Million.
B145: Non-Network Alternatives | C145: With lower customer demand, there was a reduced need for Non-Network Alternative solutions with uncompromised network capability.
B146: Corporate Restructuring | C146: Ergon Energy experienced significant organisational change during the year to transition workforce levels to align with the AER's 2015-20 Final Determination forecasts. As such a voluntary retrenchment program was offered, resulting in redundancies exceeding AER approved forecasts, to achieve required support cost savings.
B147: Not Proceeding Network Initiated Capital Works | C147: The relaxation of security criteria changes and the drop in customer connection enquiries have significantly impacted the Network Initiated Augmentation Program, resulting in a number of projects written off as considered no longer necessary.

Sheet 9.5 TUoS
B1: =(LOOKUP(dms_Model,dms_Model_List,dms_Worksheet_List)) -> REGULATORY REPORTING STATEMENT
B2: =dms_TradingName -> Ergon Energy
B3: =CONCATENATE("Annual Reporting RIN Response ",CRY) -> Annual Reporting RIN Response 2015-16
B4: 9.5 - TUoS AUDIT (t-2)
B6: This template collects information for annual pricing proposals from Victorian businesses only.
B8: 9.5.1 - TUOS CHARGES (AEMO)
F9: =CRY -> 2015-16
E14: Total | F14: =SUM(F10:F13) -> 0
B16: 9.5.2 - TRANSMISSION CONNECTION FEES
F17: =CRY -> 2015-16
E22: Total | F22: =SUM(F18:F21) -> 0
B24: 9.5.3 - CROSS BOUNDARY NETWORK CHARGES
B25: Distribution Business | C25: Amount (payable)/receivable
C26: $0's, nominal
C27: HV crossings | D27: Subtransmission crossings | E27: TUoS Adjustment | F27: Total
F28: =CRY -> 2015-16
F29: =IF((SUM(C29:E29)=0),"",(SUM(C29:E29))) -> 
F30: =IF((SUM(C30:E30)=0),"",(SUM(C30:E30))) -> 
B37: Total
B39: 9.5.4 - PAYMENTS TO EMBEDDED GENERATORS
B40: 9.5.4.1 - AVOIDED TRANSMISSION COSTS | F40: =CRY -> 2015-16
B49: Total | F49: =SUM(F41:F48) -> 0
B50: 9.5.4.2 - AVOIDED TUoS USAGE CHARGES | F50: =CRY -> 2015-16
B59: Total | F59: =SUM(F51:F58) -> 0
B60: Total payments to embedded generators | F60: =F59+F49 -> 0

Sheet unlocked
